{"text_format":"1","workbook":"xlsx","n_sheets":10,"sheets":["Prezenční listina","Startovní listina","Výsledková listina","Běh přes přehradu","mezičasy 2017","mezičasy tisk","Diplom MSM A5","Diplom MSM A5 (2)","Družstva (prac.)","Výsledková listina (2)"],"not_rendered":{"charts":0,"images":18,"macros":1,"external_links":0,"defined_names":12,"comments":0,"pivot_tables":0},"unopened":[],"bounds":{"document_bytes":16777216,"sheet_cells":100000,"rows_first":2000,"rows_last":500,"rows_between":2000,"halvings":0,"cell_chars":16384,"cell_head_chars":4096},"cells_cut":0,"cells_raw":0,"read":"whole","date_system":"1900"}

{"sheet":"Prezenční listina","index":0,"n_rows":152,"n_cols":25,"rows_kept":152,"cut":false,"hidden":true,"merged":[[5,16,5,18],[0,0,0,10]]}
[{"$f":"\"Prezenční listina - Bystřickem kolem Vírské přehrady \"&U2","v":"Prezenční listina - Bystřickem kolem Vírské přehrady 2018"}]
["Kategorie","#","Startovní číslo","Příjmení","Jméno","Rok narození","M / Ž","E-mail","Telefon","Město","Tým","Datum registrace","Zaplaceno?","VS",null,null,null,null,null,null,2018,null,null,null,"Pohlaví"]
[{"$f":"IF(Y3<>\"Ž\",IF($U$2-F3>39,IF($U$2-F3>49,IF($U$2-F3>59,IF($U$2-F3>69,IF($U$2-F3>90,\"\",\"E\"),\"D\"),\"C\"),\"B\"),\"A\"),IF(Y3=\"Ž\",IF($U$2-F3>34,IF($U$2-F3>44,IF($U$2-F3>90,\"\",\"H\"),\"G\"),\"F\")))","v":"B"},1,42,"Fritscher","Adam",1975,"Muž","ambo@email.cz",736533790,null,"TJ Liga 100 Olomouc","2018-05-26","Nezaplaceno",74737479,null,null,null,null,null,null,null,null,null,null,{"$f":"IF(LEN(D3)=0,\" \",IF(MID(D3,LEN(D3),1)=\"á\",\"Ž\",\"M\"))","v":"M"}]
["F",2,41,"Matějíková","Jana",1990,"Žena","matejikova.jana@centrum.cz",721162550,null,"TJ Liga 100 Olomouc","2018-05-26","Nezaplaceno",19763815,null,null,null,null,null,null,null,null,null,null,"Ž"]
["A",3,36,"Hradecký","Jaromír",1985,"Muž","jaromirhradecky@gmail.com",720474536,"Skuteč",null,"2018-05-26","Nezaplaceno",80027669,null,null,null,null,null,null,null,null,null,null,"M"]
["A",4,34,"Oberreiter","Martin",1988,"Muž","bionic7@seznam.cz",725563450,"Polná",null,"2018-05-26","Nezaplaceno",90732247,null,null,"Rok nastavit v buňce T2",null,null,null,null,null,null,null,"M"]
["B",5,33,"Pohanka","Martin",1973,"Muž","mpohanka@centrum.cz",734420358,null,"Track & Field Brno","2018-05-26","Nezaplaceno",79113638,null,null,null,null,null,null,null,null,null,null,"M"]
["C",6,30,"Dvořáček","Jiří",1968,"Muž","dvorjiri@cntrum.cz",730902579,null,"Elite Sport Max Training","2018-05-26","Nezaplaceno",34640308,null,null,null,null,null,null,null,null,null,null,"M"]
["A",7,29,"Šebánek","Petr",1979,"Muž","petrseban@seznam.cz",608410908,"Rájec",null,"2018-05-26","Nezaplaceno",32959754,null,null,null,null,null,null,null,null,null,null,"M"]
["A",8,27,"Kohut","Jan",1985,"Muž","hkohut@seznam.cz",777975754,null,"Univerzita Brno","2018-05-26","Nezaplaceno",50709775,null,null,null,null,null,null,null,null,null,null,"M"]
["F",9,15,"Trefilová","Ester",1993,"Žena","trefilovaester@seznam.cz",731373229,"Vír",null,"2018-05-26","Nezaplaceno",33892780,null,null,null,null,null,null,null,null,null,null,"Ž"]
["A",10,11,"Vrba","Tomáš",1986,"Muž","tomas.vrba@sseznam.cz",732916576,"Bystré",null,"2018-05-26","Nezaplaceno",41682519,null,null,null,null,null,null,null,null,null,null,"M"]
["B",11,10,"Štýbnar","Zbyněk",1974,"Muž","z1stybnar@sseznam.cz",604646142,null,"PTEAM","2018-05-26","Nezaplaceno",53066934,null,null,null,null,null,null,null,null,null,null,"M"]
["B",12,8,"Faja","Ondřej",1976,"Muž","ondra.faja@seznam.cz",603364391,"Brno",null,"2018-05-18","Nezaplaceno",65561489,null,null,null,null,null,null,null,null,null,null,"M"]
["E",13,7,"Holý","Josef",1941,"Muž","holyjosef@upcmail.cz",732789425,null,"AC Moravská Slavia","2018-05-26","Nezaplaceno",19550201,null,null,null,null,null,null,null,null,null,null,"M"]
["A",14,3,"Hanák","Jakub",1986,"Muž","jacobakiro@gmail.com",724929121,"Vír","Plant Powered Runners","2018-04-29","Nezaplaceno",2127935,null,null,null,null,null,null,null,null,null,null,"M"]
["B",15,2,"Kuneš","David",1974,"Muž","dkunes@post.cz",604820537,"Tišnov","EURUNNER","2018-05-26","Nezaplaceno",92891832,null,null,null,null,null,null,null,null,null,null,"M"]
["B",16,6,"Šerák","Martin",1978,"Muž","sherry@sendmail.cz",null,null,"Sokol Bílovice n. Svit.","2018-05-23","Nezaplaceno",54961417,null,null,null,null,null,null,null,null,null,null,"M"]
["C",17,23,"Šimunek","Martin",1966,"Muž","simunek@servisdmychadel.cz",732335291,"Modřice","Modřice","2018-05-22","Nezaplaceno",98649068,null,null,null,null,null,null,null,null,null,null,"M"]
["H",18,null,"Podmelová","Vilma",1962,"Žena","vilka@centrum.cz",null,"Brno","ČAU","2018-05-21","Nezaplaceno",61942551,null,null,null,null,null,null,null,null,null,null,"Ž"]
["G",19,null,"Novotná","Zuzana",1981,"Žena","zuzana.novotna@atlas.cz",608448871,null,null,"2018-05-20","Nezaplaceno",19761325,null,null,null,null,null,null,null,null,null,null,"Ž"]
["F",20,37,"Tomková","Iva",1990,"Žena","iv.atom@email.cz",null,"Letovice","Letovice","2018-05-19","Nezaplaceno",45954170,null,null,null,null,null,null,null,null,null,null,"Ž"]
["C",21,24,"Nosek","Pavel ",1965,"Muž","nosek_pavel@volny.cz",777630690,"Slavkov u Brna","ASK Slavkov","2018-05-19","Nezaplaceno",84422486,null,null,null,null,null,null,null,null,null,null,"M"]
["A",22,26,"Hakl","Zdeněk ",1982,"Muž","haklzdenek@seznam.cz",776276726,"Žďár nad Sázavou ","SK Tri Cyklochlubna","2018-05-19","Nezaplaceno",37608342,null,null,null,null,null,null,null,null,null,null,"M"]
["B",23,44,"Kratochvíl","Jaroslav",1977,"Muž","kratochviljaroslav77@seznam.cz",737986319,"Moravany","SDH Hluboké","2018-05-19","Nezaplaceno",36825554,null,null,null,null,null,null,null,null,null,null,"M"]
["G",24,32,"Klinecká","Jana",1981,"Žena","j.klinecka@seznam.cz",774350664,"Hlinsko","MK Hlinsko","2018-05-18","Nezaplaceno",46941351,null,null,null,null,null,null,null,null,null,null,"Ž"]
["C",25,14,"Ožana","Václav",1964,"Muž","vaclav.ozana@seznam.cz",null,"Nové Město na Moravě","TJ Nové Město na Moravě","2018-05-18","Nezaplaceno",78709905,null,null,null,null,null,null,null,null,null,null,"M"]
["A",26,40,"Lenhart","Vít",1982,"Muž","v.lenhart@seznam.cz",777570694,"Přerov","TJ Liga 100 Olomouc","2018-05-18","Nezaplaceno",72695504,null,null,null,null,null,null,null,null,null,null,"M"]
["B",27,35,"Vintrlík","Martin",1977,"Muž","vintrlik@gmail.com",602770915,"Křepice","Triatlon Křepice","2018-05-17","Nezaplaceno",90045605,null,null,null,null,null,null,null,null,null,null,"M"]
["H",28,12,"Breburdová","Hana",1961,"Žena","hana.kb@centrum.cz",723364854,"19800 Praha 9, Tálinská 999","Maraton klub Kladno","2018-05-16","Nezaplaceno",39559492,null,null,null,null,null,null,null,null,null,null,"Ž"]
["B",29,28,"Kupka","Pavel",1975,"Muž","kupkovic@volny.cz",776237257,"Lukovany",null,"2018-05-16","Nezaplaceno",232347,null,null,null,null,null,null,null,null,null,null,"M"]
["A",30,null,"Kremeň","Martin",1994,"Muž","Kremen.M@seznam.cz",733288144,"Svitavy",null,"2018-05-14","Nezaplaceno",11727445,null,null,null,null,null,null,null,null,null,null,"M"]
["G",31,16,"Kuncová","Markéta",1982,"Žena","kuncmarketa@centrum.cz",702189396,"Rožná",null,"2018-05-14","Nezaplaceno",64726521,null,null,null,null,null,null,null,null,null,null,"Ž"]
["C",32,31,"Žák","Miroslav",1965,"Muž","boba.z@seznam.cz",720646989,"Stříbrné Hory",null,"2018-05-13","Nezaplaceno",9373852,null,null,null,null,null,null,null,null,null,null,"M"]
[{"$f":"IF(Y35<>\"Ž\",IF($U$2-F35>39,IF($U$2-F35>49,IF($U$2-F35>59,IF($U$2-F35>69,IF($U$2-F35>90,\"\",\"E\"),\"D\"),\"C\"),\"B\"),\"A\"),IF(Y35=\"Ž\",IF($U$2-F35>34,IF($U$2-F35>44,IF($U$2-F35>90,\"\",\"H\"),\"G\"),\"F\")))","v":"C"},33,19,"Hýbl","Jiří",1967,"Muž","hybljura@seznam.cz",721721392,"Hrušovany u Brna","Hrušovany u Brna","2018-05-13","Nezaplaceno",38342570,null,null,null,null,null,null,null,null,null,null,{"$f":"IF(LEN(D35)=0,\" \",IF(MID(D35,LEN(D35),1)=\"á\",\"Ž\",\"M\"))","v":"M"}]
["C",34,22,"Svoboda","Petr",1968,"Muž","pesvoboda@bvk.cz",777289161,"Brno","AC Moravská Slavia Brno","2018-05-11","Nezaplaceno",19787461,null,null,null,null,null,null,null,null,null,null,"M"]
["A",35,43,"Glier","Michal",1982,"Muž","Michalglier@seznam.cz",736121372,"Doubravník","SDH Doubravník","2018-05-06","Nezaplaceno",46228470,null,null,null,null,null,null,null,null,null,null,"M"]
["A",36,9,"Labedz","Jan",1984,"Muž","jan.labedz@gmail.com",797977797,"Svinošice",null,"2018-05-02","Nezaplaceno",38263288,null,null,null,null,null,null,null,null,null,null,"M"]
["F",37,4,"Pešáková","Mirka",1985,"Žena","Pesakova.Mirka@seznam.cz",773656679,"Tetčice","AC Racers","2018-05-02","Nezaplaceno",63869881,null,null,null,null,null,null,null,null,null,null,"Ž"]
["A",38,25,"Košek","Martin",1984,"Muž","martin.kosek@gmail.com",777001377,"Brno",null,"2018-04-29","Nezaplaceno",33299342,null,null,null,null,null,null,null,null,null,null,"M"]
["G",39,38,"Komárková","Zdeňka",1974,"Žena","zdekom252@seznam.cz",null,"Olešnice na Mor.","SDH Bolešín","2018-04-27","Nezaplaceno",58699195,null,null,null,null,null,null,null,null,null,null,"Ž"]
["A",40,21,"Toman","Radek",1987,"Muž","radektomanu@seznam.cz",736148211,"Litomysl","AFK Kornice","2018-04-25","Nezaplaceno",89836754,null,null,null,null,null,null,null,null,null,null,"M"]
["A",41,13,"Koutský","Tomáš",1987,"Muž","koutskyt@gmail.com",775862730,null,"Ledová stěna Vír","2018-04-19","Nezaplaceno",69326216,null,null,null,null,null,null,null,null,null,null,"M"]
["B",42,20,"Kropáček","Jaroslav",1970,"Muž","jarda.krop@email.cz",608629531,"Brno",null,"2018-04-18","Nezaplaceno",47610013,null,null,null,null,null,null,null,null,null,null,"M"]
["C",43,17,"Krátký","Josef",1965,"Muž","cagwe@seznam.cz",775651040,"Vysoká nad Labem","Hvězda Pardubice","2018-04-17","Nezaplaceno",66495966,null,null,null,null,null,null,null,null,null,null,"M"]
["D",44,18,"Mareš","Bohumil",1951,"Muž","maresbo@seznam.cz",734312683,"Brno","Posilovna Průvan Brno","2018-04-16","Nezaplaceno",77869723,null,null,null,null,null,null,null,null,null,null,"M"]
["D",45,null,"Sedláček","Svatopluk",1957,"Muž","ssedlacek@volny.cz",602764685,"Brno","AC Moravská Slavia Brno","2018-04-16","Nezaplaceno",23376992,null,null,null,null,null,null,null,null,null,null,"M"]
["A",46,1,"Hübner","Tomáš",1979,"Muž","tomas.hubner@gmail.com",777565711,"Brno","SDH Bolešín","2018-04-16","Nezaplaceno",86322273,null,null,null,null,null,null,null,null,null,null,"M"]
["A",47,5,"Hrdina","Tomáš",1979,"Muž","tom@tomejc.cz",603216549,"Rosice","AC Moravská Slavia Brno","2018-03-28","Nezaplaceno",1923374,null,null,null,null,null,null,null,null,null,null,"M"]
["B",48,39,"Konečný","Libor",1971,"Muž","kovokonecny@seznam.cz",608879716,"Kuřim",null,"2018-03-24","Nezaplaceno",55376710,null,null,null,null,null,null,null,null,null,null,"M"]
["F",49,null,"Vlachová Hutová","Eliška",1988,"Žena","ehutova@gmail.com",732274564,"Brno","Tréninková skupina Tomáše Ondráčka","2018-03-06","Nezaplaceno",14161748,null,null,null,null,null,null,null,null,null,null,"Ž"]
["",null,null,null,null,null,null,null,null,null,null,null,null,null,null,null,null,null,null,null,null,null,null,null," "]
["",null,null,null,null,null,null,null,null,null,null,null,null,null,null,null,null,null,null,null,null,null,null,null," "]
["",null,null,null,null,null,null,null,null,null,null,null,null,null,null,null,null,null,null,null,null,null,null,null," "]
["",null,null,null,null,null,null,null,null,null,null,null,null,null,null,null,null,null,null,null,null,null,null,null," "]
["",null,null,null,null,null,null,null,null,null,null,null,null,null,null,null,null,null,null,null,null,null,null,null," "]
["",null,null,null,null,null,null,null,null,null,null,null,null,null,null,null,null,null,null,null,null,null,null,null," "]
["",null,null,null,null,null,null,null,null,null,null,null,null,null,null,null,null,null,null,null,null,null,null,null," "]
["",null,null,null,null,null,null,null,null,null,null,null,null,null,null,null,null,null,null,null,null,null,null,null," "]
["",null,null,null,null,null,null,null,null,null,null,null,null,null,null,null,null,null,null,null,null,null,null,null," "]
["",null,null,null,null,null,null,null,null,null,null,null,null,null,null,null,null,null,null,null,null,null,null,null," "]
["",null,null,null,null,null,null,null,null,null,null,null,null,null,null,null,null,null,null,null,null,null,null,null," "]
["",null,null,null,null,null,null,null,null,null,null,null,null,null,null,null,null,null,null,null,null,null,null,null," "]
["",null,null,null,null,null,null,null,null,null,null,null,null,null,null,null,null,null,null,null,null,null,null,null," "]
["",null,null,null,null,null,null,null,null,null,null,null,null,null,null,null,null,null,null,null,null,null,null,null," "]
["",null,null,null,null,null,null,null,null,null,null,null,null,null,null,null,null,null,null,null,null,null,null,null," "]
[{"$f":"IF(Y67<>\"Ž\",IF($U$2-F67>39,IF($U$2-F67>49,IF($U$2-F67>59,IF($U$2-F67>69,IF($U$2-F67>90,\"\",\"E\"),\"D\"),\"C\"),\"B\"),\"A\"),IF(Y67=\"Ž\",IF($U$2-F67>34,IF($U$2-F67>44,IF($U$2-F67>90,\"\",\"H\"),\"G\"),\"F\")))","v":""},null,null,null,null,null,null,null,null,null,null,null,null,null,null,null,null,null,null,null,null,null,null,null,{"$f":"IF(LEN(D67)=0,\" \",IF(MID(D67,LEN(D67),1)=\"á\",\"Ž\",\"M\"))","v":" "}]
["",null,null,null,null,null,null,null,null,null,null,null,null,null,null,null,null,null,null,null,null,null,null,null," "]
["",null,null,null,null,null,null,null,null,null,null,null,null,null,null,null,null,null,null,null,null,null,null,null," "]
["",null,null,null,null,null,null,null,null,null,null,null,null,null,null,null,null,null,null,null,null,null,null,null," "]
["",null,null,null,null,null,null,null,null,null,null,null,null,null,null,null,null,null,null,null,null,null,null,null," "]
["",null,null,null,null,null,null,null,null,null,null,null,null,null,null,null,null,null,null,null,null,null,null,null," "]
["",null,null,null,null,null,null,null,null,null,null,null,null,null,null,null,null,null,null,null,null,null,null,null," "]
["",null,null,null,null,null,null,null,null,null,null,null,null,null,null,null,null,null,null,null,null,null,null,null," "]
["",null,null,null,null,null,null,null,null,null,null,null,null,null,null,null,null,null,null,null,null,null,null,null," "]
["",null,null,null,null,null,null,null,null,null,null,null,null,null,null,null,null,null,null,null,null,null,null,null," "]
["",null,null,null,null,null,null,null,null,null,null,null,null,null,null,null,null,null,null,null,null,null,null,null," "]
["",null,null,null,null,null,null,null,null,null,null,null,null,null,null,null,null,null,null,null,null,null,null,null," "]
["",null,null,null,null,null,null,null,null,null,null,null,null,null,null,null,null,null,null,null,null,null,null,null," "]
["",null,null,null,null,null,null,null,null,null,null,null,null,null,null,null,null,null,null,null,null,null,null,null," "]
["",null,null,null,null,null,null,null,null,null,null,null,null,null,null,null,null,null,null,null,null,null,null,null," "]
["",null,null,null,null,null,null,null,null,null,null,null,null,null,null,null,null,null,null,null,null,null,null,null," "]
["",null,null,null,null,null,null,null,null,null,null,null,null,null,null,null,null,null,null,null,null,null,null,null," "]
["",null,null,null,null,null,null,null,null,null,null,null,null,null,null,null,null,null,null,null,null,null,null,null," "]
["",null,null,null,null,null,null,null,null,null,null,null,null,null,null,null,null,null,null,null,null,null,null,null," "]
["",null,null,null,null,null,null,null,null,null,null,null,null,null,null,null,null,null,null,null,null,null,null,null," "]
["",null,null,null,null,null,null,null,null,null,null,null,null,null,null,null,null,null,null,null,null,null,null,null," "]
["",null,null,null,null,null,null,null,null,null,null,null,null,null,null,null,null,null,null,null,null,null,null,null," "]
["",null,null,null,null,null,null,null,null,null,null,null,null,null,null,null,null,null,null,null,null,null,null,null," "]
["",null,null,null,null,null,null,null,null,null,null,null,null,null,null,null,null,null,null,null,null,null,null,null," "]
["",null,null,null,null,null,null,null,null,null,null,null,null,null,null,null,null,null,null,null,null,null,null,null," "]
["",null,null,null,null,null,null,null,null,null,null,null,null,null,null,null,null,null,null,null,null,null,null,null," "]
["",null,null,null,null,null,null,null,null,null,null,null,null,null,null,null,null,null,null,null,null,null,null,null," "]
["",null,null,null,null,null,null,null,null,null,null,null,null,null,null,null,null,null,null,null,null,null,null,null," "]
["",null,null,null,null,null,null,null,null,null,null,null,null,null,null,null,null,null,null,null,null,null,null,null," "]
["",null,null,null,null,null,null,null,null,null,null,null,null,null,null,null,null,null,null,null,null,null,null,null," "]
["",null,null,null,null,null,null,null,null,null,null,null,null,null,null,null,null,null,null,null,null,null,null,null," "]
["",null,null,null,null,null,null,null,null,null,null,null,null,null,null,null,null,null,null,null,null,null,null,null," "]
[{"$f":"IF(Y99<>\"Ž\",IF($U$2-F99>39,IF($U$2-F99>49,IF($U$2-F99>59,IF($U$2-F99>69,IF($U$2-F99>90,\"\",\"E\"),\"D\"),\"C\"),\"B\"),\"A\"),IF(Y99=\"Ž\",IF($U$2-F99>34,IF($U$2-F99>44,IF($U$2-F99>90,\"\",\"H\"),\"G\"),\"F\")))","v":""},null,null,null,null,null,null,null,null,null,null,null,null,null,null,null,null,null,null,null,null,null,null,null,{"$f":"IF(LEN(D99)=0,\" \",IF(MID(D99,LEN(D99),1)=\"á\",\"Ž\",\"M\"))","v":" "}]
["",null,null,null,null,null,null,null,null,null,null,null,null,null,null,null,null,null,null,null,null,null,null,null," "]
["",null,null,null,null,null,null,null,null,null,null,null,null,null,null,null,null,null,null,null,null,null,null,null," "]
["",null,null,null,null,null,null,null,null,null,null,null,null,null,null,null,null,null,null,null,null,null,null,null," "]
["",null,null,null,null,null,null,null,null,null,null,null,null,null,null,null,null,null,null,null,null,null,null,null," "]
["",null,null,null,null,null,null,null,null,null,null,null,null,null,null,null,null,null,null,null,null,null,null,null," "]
["",null,null,null,null,null,null,null,null,null,null,null,null,null,null,null,null,null,null,null,null,null,null,null," "]
["",null,null,null,null,null,null,null,null,null,null,null,null,null,null,null,null,null,null,null,null,null,null,null," "]
["",null,null,null,null,null,null,null,null,null,null,null,null,null,null,null,null,null,null,null,null,null,null,null," "]
["",null,null,null,null,null,null,null,null,null,null,null,null,null,null,null,null,null,null,null,null,null,null,null," "]
["",null,null,null,null,null,null,null,null,null,null,null,null,null,null,null,null,null,null,null,null,null,null,null," "]
["",null,null,null,null,null,null,null,null,null,null,null,null,null,null,null,null,null,null,null,null,null,null,null," "]
["",null,null,null,null,null,null,null,null,null,null,null,null,null,null,null,null,null,null,null,null,null,null,null," "]
["",null,null,null,null,null,null,null,null,null,null,null,null,null,null,null,null,null,null,null,null,null,null,null," "]
["",null,null,null,null,null,null,null,null,null,null,null,null,null,null,null,null,null,null,null,null,null,null,null," "]
["",null,null,null,null,null,null,null,null,null,null,null,null,null,null,null,null,null,null,null,null,null,null,null," "]
["",null,null,null,null,null,null,null,null,null,null,null,null,null,null,null,null,null,null,null,null,null,null,null," "]
["",null,null,null,null,null,null,null,null,null,null,null,null,null,null,null,null,null,null,null,null,null,null,null," "]
["",null,null,null,null,null,null,null,null,null,null,null,null,null,null,null,null,null,null,null,null,null,null,null," "]
["",null,null,null,null,null,null,null,null,null,null,null,null,null,null,null,null,null,null,null,null,null,null,null," "]
["",null,null,null,null,null,null,null,null,null,null,null,null,null,null,null,null,null,null,null,null,null,null,null," "]
["",null,null,null,null,null,null,null,null,null,null,null,null,null,null,null,null,null,null,null,null,null,null,null," "]
["",null,null,null,null,null,null,null,null,null,null,null,null,null,null,null,null,null,null,null,null,null,null,null," "]
["",null,null,null,null,null,null,null,null,null,null,null,null,null,null,null,null,null,null,null,null,null,null,null," "]
["",null,null,null,null,null,null,null,null,null,null,null,null,null,null,null,null,null,null,null,null,null,null,null," "]
["",null,null,null,null,null,null,null,null,null,null,null,null,null,null,null,null,null,null,null,null,null,null,null," "]
["",null,null,null,null,null,null,null,null,null,null,null,null,null,null,null,null,null,null,null,null,null,null,null," "]
["",null,null,null,null,null,null,null,null,null,null,null,null,null,null,null,null,null,null,null,null,null,null,null," "]
["",null,null,null,null,null,null,null,null,null,null,null,null,null,null,null,null,null,null,null,null,null,null,null," "]
["",null,null,null,null,null,null,null,null,null,null,null,null,null,null,null,null,null,null,null,null,null,null,null," "]
["",null,null,null,null,null,null,null,null,null,null,null,null,null,null,null,null,null,null,null,null,null,null,null," "]
["",null,null,null,null,null,null,null,null,null,null,null,null,null,null,null,null,null,null,null,null,null,null,null," "]
[{"$f":"IF(Y131<>\"Ž\",IF($U$2-F131>39,IF($U$2-F131>49,IF($U$2-F131>59,IF($U$2-F131>69,IF($U$2-F131>90,\"\",\"E\"),\"D\"),\"C\"),\"B\"),\"A\"),IF(Y131=\"Ž\",IF($U$2-F131>34,IF($U$2-F131>44,IF($U$2-F131>90,\"\",\"H\"),\"G\"),\"F\")))","v":""},null,null,null,null,null,null,null,null,null,null,null,null,null,null,null,null,null,null,null,null,null,null,null,{"$f":"IF(LEN(D131)=0,\" \",IF(MID(D131,LEN(D131),1)=\"á\",\"Ž\",\"M\"))","v":" "}]
["",null,null,null,null,null,null,null,null,null,null,null,null,null,null,null,null,null,null,null,null,null,null,null," "]
["",null,null,null,null,null,null,null,null,null,null,null,null,null,null,null,null,null,null,null,null,null,null,null," "]
["",null,null,null,null,null,null,null,null,null,null,null,null,null,null,null,null,null,null,null,null,null,null,null," "]
["",null,null,null,null,null,null,null,null,null,null,null,null,null,null,null,null,null,null,null,null,null,null,null," "]
["",null,null,null,null,null,null,null,null,null,null,null,null,null,null,null,null,null,null,null,null,null,null,null," "]
["",null,null,null,null,null,null,null,null,null,null,null,null,null,null,null,null,null,null,null,null,null,null,null," "]
["",null,null,null,null,null,null,null,null,null,null,null,null,null,null,null,null,null,null,null,null,null,null,null," "]
["",null,null,null,null,null,null,null,null,null,null,null,null,null,null,null,null,null,null,null,null,null,null,null," "]
["",null,null,null,null,null,null,null,null,null,null,null,null,null,null,null,null,null,null,null,null,null,null,null," "]
["",null,null,null,null,null,null,null,null,null,null,null,null,null,null,null,null,null,null,null,null,null,null,null," "]
["",null,null,null,null,null,null,null,null,null,null,null,null,null,null,null,null,null,null,null,null,null,null,null," "]
["",null,null,null,null,null,null,null,null,null,null,null,null,null,null,null,null,null,null,null,null,null,null,null," "]
["",null,null,null,null,null,null,null,null,null,null,null,null,null,null,null,null,null,null,null,null,null,null,null," "]
["",null,null,null,null,null,null,null,null,null,null,null,null,null,null,null,null,null,null,null,null,null,null,null," "]
["",null,null,null,null,null,null,null,null,null,null,null,null,null,null,null,null,null,null,null,null,null,null,null," "]
["",null,null,null,null,null,null,null,null,null,null,null,null,null,null,null,null,null,null,null,null,null,null,null," "]
["",null,null,null,null,null,null,null,null,null,null,null,null,null,null,null,null,null,null,null,null,null,null,null," "]
["",null,null,null,null,null,null,null,null,null,null,null,null,null,null,null,null,null,null,null,null,null,null,null," "]
["",null,null,null,null,null,null,null,null,null,null,null,null,null,null,null,null,null,null,null,null,null,null,null," "]
["",null,null,null,null,null,null,null,null,null,null,null,null,null,null,null,null,null,null,null,null,null,null,null," "]
["",null,null,null,null,null,null,null,null,null,null,null,null,null,null,null,null,null,null,null,null,null,null,null," "]

{"sheet":"Startovní listina","index":1,"n_rows":152,"n_cols":13,"rows_kept":152,"cut":false,"hidden":false,"merged":[[4,12,11,12],[0,0,0,7],[2,0,2,7],[1,0,1,7],[1,9,2,10]]}
[{"$f":"\"Startovní listina - Bystřickem kolem Vírské přehrady \"&'Prezenční listina'!U2","v":"Startovní listina - Bystřickem kolem Vírské přehrady 2018"}]
["2018-05-26",null,null,null,null,null,null,null,null,"Počet přihlášených v jednotlivých kategoriích"]
[{"$f":"'Prezenční listina'!U2-2004&\". ročník\"","v":"14. ročník"},null,null,null,null,null,null,null,null,null,null,null,"Celkem startujících"]
["#","Startovní číslo","Příjmení","Jméno","Narození","Město","Tým","Kategorie"]
[1,{"$f":"IF('Prezenční listina'!C48=0,\"\",'Prezenční listina'!C48)","v":1},{"$f":"IF('Prezenční listina'!C48=0,\"\",'Prezenční listina'!D48)","v":"Hübner"},{"$f":"IF('Prezenční listina'!C48=0,\"\",'Prezenční listina'!E48)","v":"Tomáš"},{"$f":"IF('Prezenční listina'!C48=0,\"\",'Prezenční listina'!F48)","v":1979},{"$f":"IF('Prezenční listina'!C48=0,\"\",'Prezenční listina'!J48)","v":"Brno"},{"$f":"IF('Prezenční listina'!C48=0,\"\",'Prezenční listina'!K48)","v":"SDH Bolešín"},{"$f":"IF('Prezenční listina'!C48=0,\"\",'Prezenční listina'!A48)","v":"A"},null,"A:",{"$f":"COUNTIF($H$5:$H$141,\"A\")","v":15},null,{"$f":"COUNT(B5:B141)","v":44}]
[{"$f":"IF(B6=\"\",\"\",A5+1)","v":2},{"$f":"IF('Prezenční listina'!C17=0,\"\",'Prezenční listina'!C17)","v":2},{"$f":"IF('Prezenční listina'!C17=0,\"\",'Prezenční listina'!D17)","v":"Kuneš"},{"$f":"IF('Prezenční listina'!C17=0,\"\",'Prezenční listina'!E17)","v":"David"},{"$f":"IF('Prezenční listina'!C17=0,\"\",'Prezenční listina'!F17)","v":1974},{"$f":"IF('Prezenční listina'!C17=0,\"\",'Prezenční listina'!J17)","v":"Tišnov"},{"$f":"IF('Prezenční listina'!C17=0,\"\",'Prezenční listina'!K17)","v":"EURUNNER"},{"$f":"IF('Prezenční listina'!C17=0,\"\",'Prezenční listina'!A17)","v":"B"},null,"B:",{"$f":"COUNTIF($H$5:$H$141,\"B\")","v":11}]
[{"$f":"IF(B7=\"\",\"\",A6+1)","v":3},{"$f":"IF('Prezenční listina'!C16=0,\"\",'Prezenční listina'!C16)","v":3},{"$f":"IF('Prezenční listina'!C16=0,\"\",'Prezenční listina'!D16)","v":"Hanák"},{"$f":"IF('Prezenční listina'!C16=0,\"\",'Prezenční listina'!E16)","v":"Jakub"},{"$f":"IF('Prezenční listina'!C16=0,\"\",'Prezenční listina'!F16)","v":1986},{"$f":"IF('Prezenční listina'!C16=0,\"\",'Prezenční listina'!J16)","v":"Vír"},{"$f":"IF('Prezenční listina'!C16=0,\"\",'Prezenční listina'!K16)","v":"Plant Powered Runners"},{"$f":"IF('Prezenční listina'!C16=0,\"\",'Prezenční listina'!A16)","v":"A"},null,"C:",{"$f":"COUNTIF($H$5:$H$141,\"C\")","v":8}]
[4,{"$f":"IF('Prezenční listina'!C39=0,\"\",'Prezenční listina'!C39)","v":4},{"$f":"IF('Prezenční listina'!C39=0,\"\",'Prezenční listina'!D39)","v":"Pešáková"},{"$f":"IF('Prezenční listina'!C39=0,\"\",'Prezenční listina'!E39)","v":"Mirka"},{"$f":"IF('Prezenční listina'!C39=0,\"\",'Prezenční listina'!F39)","v":1985},{"$f":"IF('Prezenční listina'!C39=0,\"\",'Prezenční listina'!J39)","v":"Tetčice"},{"$f":"IF('Prezenční listina'!C39=0,\"\",'Prezenční listina'!K39)","v":"AC Racers"},{"$f":"IF('Prezenční listina'!C39=0,\"\",'Prezenční listina'!A39)","v":"F"},null,"D:",{"$f":"COUNTIF($H$5:$H$141,\"D\")","v":1}]
[5,{"$f":"IF('Prezenční listina'!C49=0,\"\",'Prezenční listina'!C49)","v":5},{"$f":"IF('Prezenční listina'!C49=0,\"\",'Prezenční listina'!D49)","v":"Hrdina"},{"$f":"IF('Prezenční listina'!C49=0,\"\",'Prezenční listina'!E49)","v":"Tomáš"},{"$f":"IF('Prezenční listina'!C49=0,\"\",'Prezenční listina'!F49)","v":1979},{"$f":"IF('Prezenční listina'!C49=0,\"\",'Prezenční listina'!J49)","v":"Rosice"},{"$f":"IF('Prezenční listina'!C49=0,\"\",'Prezenční listina'!K49)","v":"AC Moravská Slavia Brno"},{"$f":"IF('Prezenční listina'!C49=0,\"\",'Prezenční listina'!A49)","v":"A"},null,"E:",{"$f":"COUNTIF($H$5:$H$141,\"E\")","v":1}]
[6,{"$f":"IF('Prezenční listina'!C18=0,\"\",'Prezenční listina'!C18)","v":6},{"$f":"IF('Prezenční listina'!C18=0,\"\",'Prezenční listina'!D18)","v":"Šerák"},{"$f":"IF('Prezenční listina'!C18=0,\"\",'Prezenční listina'!E18)","v":"Martin"},{"$f":"IF('Prezenční listina'!C18=0,\"\",'Prezenční listina'!F18)","v":1978},{"$f":"IF('Prezenční listina'!C18=0,\"\",'Prezenční listina'!J18)","v":0},{"$f":"IF('Prezenční listina'!C18=0,\"\",'Prezenční listina'!K18)","v":"Sokol Bílovice n. Svit."},{"$f":"IF('Prezenční listina'!C18=0,\"\",'Prezenční listina'!A18)","v":"B"},null,"F:",{"$f":"COUNTIF($H$5:$H$141,\"F\")","v":4}]
[7,{"$f":"IF('Prezenční listina'!C15=0,\"\",'Prezenční listina'!C15)","v":7},{"$f":"IF('Prezenční listina'!C15=0,\"\",'Prezenční listina'!D15)","v":"Holý"},{"$f":"IF('Prezenční listina'!C15=0,\"\",'Prezenční listina'!E15)","v":"Josef"},{"$f":"IF('Prezenční listina'!C15=0,\"\",'Prezenční listina'!F15)","v":1941},{"$f":"IF('Prezenční listina'!C15=0,\"\",'Prezenční listina'!J15)","v":0},{"$f":"IF('Prezenční listina'!C15=0,\"\",'Prezenční listina'!K15)","v":"AC Moravská Slavia"},{"$f":"IF('Prezenční listina'!C15=0,\"\",'Prezenční listina'!A15)","v":"E"},null,"G:",{"$f":"COUNTIF($H$5:$H$141,\"G\")","v":3}]
[8,{"$f":"IF('Prezenční listina'!C14=0,\"\",'Prezenční listina'!C14)","v":8},{"$f":"IF('Prezenční listina'!C14=0,\"\",'Prezenční listina'!D14)","v":"Faja"},{"$f":"IF('Prezenční listina'!C14=0,\"\",'Prezenční listina'!E14)","v":"Ondřej"},{"$f":"IF('Prezenční listina'!C14=0,\"\",'Prezenční listina'!F14)","v":1976},{"$f":"IF('Prezenční listina'!C14=0,\"\",'Prezenční listina'!J14)","v":"Brno"},{"$f":"IF('Prezenční listina'!C14=0,\"\",'Prezenční listina'!K14)","v":0},{"$f":"IF('Prezenční listina'!C14=0,\"\",'Prezenční listina'!A14)","v":"B"},null,"H:",{"$f":"COUNTIF($H$5:$H$141,\"H\")","v":1}]
[9,{"$f":"IF('Prezenční listina'!C38=0,\"\",'Prezenční listina'!C38)","v":9},{"$f":"IF('Prezenční listina'!C38=0,\"\",'Prezenční listina'!D38)","v":"Labedz"},{"$f":"IF('Prezenční listina'!C38=0,\"\",'Prezenční listina'!E38)","v":"Jan"},{"$f":"IF('Prezenční listina'!C38=0,\"\",'Prezenční listina'!F38)","v":1984},{"$f":"IF('Prezenční listina'!C38=0,\"\",'Prezenční listina'!J38)","v":"Svinošice"},{"$f":"IF('Prezenční listina'!C38=0,\"\",'Prezenční listina'!K38)","v":0},{"$f":"IF('Prezenční listina'!C38=0,\"\",'Prezenční listina'!A38)","v":"A"}]
[10,{"$f":"IF('Prezenční listina'!C13=0,\"\",'Prezenční listina'!C13)","v":10},{"$f":"IF('Prezenční listina'!C13=0,\"\",'Prezenční listina'!D13)","v":"Štýbnar"},{"$f":"IF('Prezenční listina'!C13=0,\"\",'Prezenční listina'!E13)","v":"Zbyněk"},{"$f":"IF('Prezenční listina'!C13=0,\"\",'Prezenční listina'!F13)","v":1974},{"$f":"IF('Prezenční listina'!C13=0,\"\",'Prezenční listina'!J13)","v":0},{"$f":"IF('Prezenční listina'!C13=0,\"\",'Prezenční listina'!K13)","v":"PTEAM"},{"$f":"IF('Prezenční listina'!C13=0,\"\",'Prezenční listina'!A13)","v":"B"}]
[11,{"$f":"IF('Prezenční listina'!C12=0,\"\",'Prezenční listina'!C12)","v":11},{"$f":"IF('Prezenční listina'!C12=0,\"\",'Prezenční listina'!D12)","v":"Vrba"},{"$f":"IF('Prezenční listina'!C12=0,\"\",'Prezenční listina'!E12)","v":"Tomáš"},{"$f":"IF('Prezenční listina'!C12=0,\"\",'Prezenční listina'!F12)","v":1986},{"$f":"IF('Prezenční listina'!C12=0,\"\",'Prezenční listina'!J12)","v":"Bystré"},{"$f":"IF('Prezenční listina'!C12=0,\"\",'Prezenční listina'!K12)","v":0},{"$f":"IF('Prezenční listina'!C12=0,\"\",'Prezenční listina'!A12)","v":"A"}]
[12,{"$f":"IF('Prezenční listina'!C30=0,\"\",'Prezenční listina'!C30)","v":12},{"$f":"IF('Prezenční listina'!C30=0,\"\",'Prezenční listina'!D30)","v":"Breburdová"},{"$f":"IF('Prezenční listina'!C30=0,\"\",'Prezenční listina'!E30)","v":"Hana"},{"$f":"IF('Prezenční listina'!C30=0,\"\",'Prezenční listina'!F30)","v":1961},{"$f":"IF('Prezenční listina'!C30=0,\"\",'Prezenční listina'!J30)","v":"19800 Praha 9, Tálinská 999"},{"$f":"IF('Prezenční listina'!C30=0,\"\",'Prezenční listina'!K30)","v":"Maraton klub Kladno"},{"$f":"IF('Prezenční listina'!C30=0,\"\",'Prezenční listina'!A30)","v":"H"}]
[13,{"$f":"IF('Prezenční listina'!C43=0,\"\",'Prezenční listina'!C43)","v":13},{"$f":"IF('Prezenční listina'!C43=0,\"\",'Prezenční listina'!D43)","v":"Koutský"},{"$f":"IF('Prezenční listina'!C43=0,\"\",'Prezenční listina'!E43)","v":"Tomáš"},{"$f":"IF('Prezenční listina'!C43=0,\"\",'Prezenční listina'!F43)","v":1987},{"$f":"IF('Prezenční listina'!C43=0,\"\",'Prezenční listina'!J43)","v":0},{"$f":"IF('Prezenční listina'!C43=0,\"\",'Prezenční listina'!K43)","v":"Ledová stěna Vír"},{"$f":"IF('Prezenční listina'!C43=0,\"\",'Prezenční listina'!A43)","v":"A"}]
[14,{"$f":"IF('Prezenční listina'!C27=0,\"\",'Prezenční listina'!C27)","v":14},{"$f":"IF('Prezenční listina'!C27=0,\"\",'Prezenční listina'!D27)","v":"Ožana"},{"$f":"IF('Prezenční listina'!C27=0,\"\",'Prezenční listina'!E27)","v":"Václav"},{"$f":"IF('Prezenční listina'!C27=0,\"\",'Prezenční listina'!F27)","v":1964},{"$f":"IF('Prezenční listina'!C27=0,\"\",'Prezenční listina'!J27)","v":"Nové Město na Moravě"},{"$f":"IF('Prezenční listina'!C27=0,\"\",'Prezenční listina'!K27)","v":"TJ Nové Město na Moravě"},{"$f":"IF('Prezenční listina'!C27=0,\"\",'Prezenční listina'!A27)","v":"C"}]
[15,{"$f":"IF('Prezenční listina'!C11=0,\"\",'Prezenční listina'!C11)","v":15},{"$f":"IF('Prezenční listina'!C11=0,\"\",'Prezenční listina'!D11)","v":"Trefilová"},{"$f":"IF('Prezenční listina'!C11=0,\"\",'Prezenční listina'!E11)","v":"Ester"},{"$f":"IF('Prezenční listina'!C11=0,\"\",'Prezenční listina'!F11)","v":1993},{"$f":"IF('Prezenční listina'!C11=0,\"\",'Prezenční listina'!J11)","v":"Vír"},{"$f":"IF('Prezenční listina'!C11=0,\"\",'Prezenční listina'!K11)","v":0},{"$f":"IF('Prezenční listina'!C11=0,\"\",'Prezenční listina'!A11)","v":"F"}]
[16,{"$f":"IF('Prezenční listina'!C33=0,\"\",'Prezenční listina'!C33)","v":16},{"$f":"IF('Prezenční listina'!C33=0,\"\",'Prezenční listina'!D33)","v":"Kuncová"},{"$f":"IF('Prezenční listina'!C33=0,\"\",'Prezenční listina'!E33)","v":"Markéta"},{"$f":"IF('Prezenční listina'!C33=0,\"\",'Prezenční listina'!F33)","v":1982},{"$f":"IF('Prezenční listina'!C33=0,\"\",'Prezenční listina'!J33)","v":"Rožná"},{"$f":"IF('Prezenční listina'!C33=0,\"\",'Prezenční listina'!K33)","v":0},{"$f":"IF('Prezenční listina'!C33=0,\"\",'Prezenční listina'!A33)","v":"G"}]
[17,{"$f":"IF('Prezenční listina'!C45=0,\"\",'Prezenční listina'!C45)","v":17},{"$f":"IF('Prezenční listina'!C45=0,\"\",'Prezenční listina'!D45)","v":"Krátký"},{"$f":"IF('Prezenční listina'!C45=0,\"\",'Prezenční listina'!E45)","v":"Josef"},{"$f":"IF('Prezenční listina'!C45=0,\"\",'Prezenční listina'!F45)","v":1965},{"$f":"IF('Prezenční listina'!C45=0,\"\",'Prezenční listina'!J45)","v":"Vysoká nad Labem"},{"$f":"IF('Prezenční listina'!C45=0,\"\",'Prezenční listina'!K45)","v":"Hvězda Pardubice"},{"$f":"IF('Prezenční listina'!C45=0,\"\",'Prezenční listina'!A45)","v":"C"}]
[18,{"$f":"IF('Prezenční listina'!C46=0,\"\",'Prezenční listina'!C46)","v":18},{"$f":"IF('Prezenční listina'!C46=0,\"\",'Prezenční listina'!D46)","v":"Mareš"},{"$f":"IF('Prezenční listina'!C46=0,\"\",'Prezenční listina'!E46)","v":"Bohumil"},{"$f":"IF('Prezenční listina'!C46=0,\"\",'Prezenční listina'!F46)","v":1951},{"$f":"IF('Prezenční listina'!C46=0,\"\",'Prezenční listina'!J46)","v":"Brno"},{"$f":"IF('Prezenční listina'!C46=0,\"\",'Prezenční listina'!K46)","v":"Posilovna Průvan Brno"},{"$f":"IF('Prezenční listina'!C46=0,\"\",'Prezenční listina'!A46)","v":"D"}]
[19,{"$f":"IF('Prezenční listina'!C35=0,\"\",'Prezenční listina'!C35)","v":19},{"$f":"IF('Prezenční listina'!C35=0,\"\",'Prezenční listina'!D35)","v":"Hýbl"},{"$f":"IF('Prezenční listina'!C35=0,\"\",'Prezenční listina'!E35)","v":"Jiří"},{"$f":"IF('Prezenční listina'!C35=0,\"\",'Prezenční listina'!F35)","v":1967},{"$f":"IF('Prezenční listina'!C35=0,\"\",'Prezenční listina'!J35)","v":"Hrušovany u Brna"},{"$f":"IF('Prezenční listina'!C35=0,\"\",'Prezenční listina'!K35)","v":"Hrušovany u Brna"},{"$f":"IF('Prezenční listina'!C35=0,\"\",'Prezenční listina'!A35)","v":"C"}]
[20,{"$f":"IF('Prezenční listina'!C44=0,\"\",'Prezenční listina'!C44)","v":20},{"$f":"IF('Prezenční listina'!C44=0,\"\",'Prezenční listina'!D44)","v":"Kropáček"},{"$f":"IF('Prezenční listina'!C44=0,\"\",'Prezenční listina'!E44)","v":"Jaroslav"},{"$f":"IF('Prezenční listina'!C44=0,\"\",'Prezenční listina'!F44)","v":1970},{"$f":"IF('Prezenční listina'!C44=0,\"\",'Prezenční listina'!J44)","v":"Brno"},{"$f":"IF('Prezenční listina'!C44=0,\"\",'Prezenční listina'!K44)","v":0},{"$f":"IF('Prezenční listina'!C44=0,\"\",'Prezenční listina'!A44)","v":"B"}]
[21,{"$f":"IF('Prezenční listina'!C42=0,\"\",'Prezenční listina'!C42)","v":21},{"$f":"IF('Prezenční listina'!C42=0,\"\",'Prezenční listina'!D42)","v":"Toman"},{"$f":"IF('Prezenční listina'!C42=0,\"\",'Prezenční listina'!E42)","v":"Radek"},{"$f":"IF('Prezenční listina'!C42=0,\"\",'Prezenční listina'!F42)","v":1987},{"$f":"IF('Prezenční listina'!C42=0,\"\",'Prezenční listina'!J42)","v":"Litomysl"},{"$f":"IF('Prezenční listina'!C42=0,\"\",'Prezenční listina'!K42)","v":"AFK Kornice"},{"$f":"IF('Prezenční listina'!C42=0,\"\",'Prezenční listina'!A42)","v":"A"}]
[22,{"$f":"IF('Prezenční listina'!C36=0,\"\",'Prezenční listina'!C36)","v":22},{"$f":"IF('Prezenční listina'!C36=0,\"\",'Prezenční listina'!D36)","v":"Svoboda"},{"$f":"IF('Prezenční listina'!C36=0,\"\",'Prezenční listina'!E36)","v":"Petr"},{"$f":"IF('Prezenční listina'!C36=0,\"\",'Prezenční listina'!F36)","v":1968},{"$f":"IF('Prezenční listina'!C36=0,\"\",'Prezenční listina'!J36)","v":"Brno"},{"$f":"IF('Prezenční listina'!C36=0,\"\",'Prezenční listina'!K36)","v":"AC Moravská Slavia Brno"},{"$f":"IF('Prezenční listina'!C36=0,\"\",'Prezenční listina'!A36)","v":"C"}]
[23,{"$f":"IF('Prezenční listina'!C19=0,\"\",'Prezenční listina'!C19)","v":23},{"$f":"IF('Prezenční listina'!C19=0,\"\",'Prezenční listina'!D19)","v":"Šimunek"},{"$f":"IF('Prezenční listina'!C19=0,\"\",'Prezenční listina'!E19)","v":"Martin"},{"$f":"IF('Prezenční listina'!C19=0,\"\",'Prezenční listina'!F19)","v":1966},{"$f":"IF('Prezenční listina'!C19=0,\"\",'Prezenční listina'!J19)","v":"Modřice"},{"$f":"IF('Prezenční listina'!C19=0,\"\",'Prezenční listina'!K19)","v":"Modřice"},{"$f":"IF('Prezenční listina'!C19=0,\"\",'Prezenční listina'!A19)","v":"C"}]
[24,{"$f":"IF('Prezenční listina'!C23=0,\"\",'Prezenční listina'!C23)","v":24},{"$f":"IF('Prezenční listina'!C23=0,\"\",'Prezenční listina'!D23)","v":"Nosek"},{"$f":"IF('Prezenční listina'!C23=0,\"\",'Prezenční listina'!E23)","v":"Pavel "},{"$f":"IF('Prezenční listina'!C23=0,\"\",'Prezenční listina'!F23)","v":1965},{"$f":"IF('Prezenční listina'!C23=0,\"\",'Prezenční listina'!J23)","v":"Slavkov u Brna"},{"$f":"IF('Prezenční listina'!C23=0,\"\",'Prezenční listina'!K23)","v":"ASK Slavkov"},{"$f":"IF('Prezenční listina'!C23=0,\"\",'Prezenční listina'!A23)","v":"C"}]
[25,{"$f":"IF('Prezenční listina'!C40=0,\"\",'Prezenční listina'!C40)","v":25},{"$f":"IF('Prezenční listina'!C40=0,\"\",'Prezenční listina'!D40)","v":"Košek"},{"$f":"IF('Prezenční listina'!C40=0,\"\",'Prezenční listina'!E40)","v":"Martin"},{"$f":"IF('Prezenční listina'!C40=0,\"\",'Prezenční listina'!F40)","v":1984},{"$f":"IF('Prezenční listina'!C40=0,\"\",'Prezenční listina'!J40)","v":"Brno"},{"$f":"IF('Prezenční listina'!C40=0,\"\",'Prezenční listina'!K40)","v":0},{"$f":"IF('Prezenční listina'!C40=0,\"\",'Prezenční listina'!A40)","v":"A"}]
[26,{"$f":"IF('Prezenční listina'!C24=0,\"\",'Prezenční listina'!C24)","v":26},{"$f":"IF('Prezenční listina'!C24=0,\"\",'Prezenční listina'!D24)","v":"Hakl"},{"$f":"IF('Prezenční listina'!C24=0,\"\",'Prezenční listina'!E24)","v":"Zdeněk "},{"$f":"IF('Prezenční listina'!C24=0,\"\",'Prezenční listina'!F24)","v":1982},{"$f":"IF('Prezenční listina'!C24=0,\"\",'Prezenční listina'!J24)","v":"Žďár nad Sázavou "},{"$f":"IF('Prezenční listina'!C24=0,\"\",'Prezenční listina'!K24)","v":"SK Tri Cyklochlubna"},{"$f":"IF('Prezenční listina'!C24=0,\"\",'Prezenční listina'!A24)","v":"A"}]
[27,{"$f":"IF('Prezenční listina'!C10=0,\"\",'Prezenční listina'!C10)","v":27},{"$f":"IF('Prezenční listina'!C10=0,\"\",'Prezenční listina'!D10)","v":"Kohut"},{"$f":"IF('Prezenční listina'!C10=0,\"\",'Prezenční listina'!E10)","v":"Jan"},{"$f":"IF('Prezenční listina'!C10=0,\"\",'Prezenční listina'!F10)","v":1985},{"$f":"IF('Prezenční listina'!C10=0,\"\",'Prezenční listina'!J10)","v":0},{"$f":"IF('Prezenční listina'!C10=0,\"\",'Prezenční listina'!K10)","v":"Univerzita Brno"},{"$f":"IF('Prezenční listina'!C10=0,\"\",'Prezenční listina'!A10)","v":"A"}]
[28,{"$f":"IF('Prezenční listina'!C31=0,\"\",'Prezenční listina'!C31)","v":28},{"$f":"IF('Prezenční listina'!C31=0,\"\",'Prezenční listina'!D31)","v":"Kupka"},{"$f":"IF('Prezenční listina'!C31=0,\"\",'Prezenční listina'!E31)","v":"Pavel"},{"$f":"IF('Prezenční listina'!C31=0,\"\",'Prezenční listina'!F31)","v":1975},{"$f":"IF('Prezenční listina'!C31=0,\"\",'Prezenční listina'!J31)","v":"Lukovany"},{"$f":"IF('Prezenční listina'!C31=0,\"\",'Prezenční listina'!K31)","v":0},{"$f":"IF('Prezenční listina'!C31=0,\"\",'Prezenční listina'!A31)","v":"B"}]
[29,{"$f":"IF('Prezenční listina'!C9=0,\"\",'Prezenční listina'!C9)","v":29},{"$f":"IF('Prezenční listina'!C9=0,\"\",'Prezenční listina'!D9)","v":"Šebánek"},{"$f":"IF('Prezenční listina'!C9=0,\"\",'Prezenční listina'!E9)","v":"Petr"},{"$f":"IF('Prezenční listina'!C9=0,\"\",'Prezenční listina'!F9)","v":1979},{"$f":"IF('Prezenční listina'!C9=0,\"\",'Prezenční listina'!J9)","v":"Rájec"},{"$f":"IF('Prezenční listina'!C9=0,\"\",'Prezenční listina'!K9)","v":0},{"$f":"IF('Prezenční listina'!C9=0,\"\",'Prezenční listina'!A9)","v":"A"}]
[30,{"$f":"IF('Prezenční listina'!C8=0,\"\",'Prezenční listina'!C8)","v":30},{"$f":"IF('Prezenční listina'!C8=0,\"\",'Prezenční listina'!D8)","v":"Dvořáček"},{"$f":"IF('Prezenční listina'!C8=0,\"\",'Prezenční listina'!E8)","v":"Jiří"},{"$f":"IF('Prezenční listina'!C8=0,\"\",'Prezenční listina'!F8)","v":1968},{"$f":"IF('Prezenční listina'!C8=0,\"\",'Prezenční listina'!J8)","v":0},{"$f":"IF('Prezenční listina'!C8=0,\"\",'Prezenční listina'!K8)","v":"Elite Sport Max Training"},{"$f":"IF('Prezenční listina'!C8=0,\"\",'Prezenční listina'!A8)","v":"C"}]
[31,{"$f":"IF('Prezenční listina'!C34=0,\"\",'Prezenční listina'!C34)","v":31},{"$f":"IF('Prezenční listina'!C34=0,\"\",'Prezenční listina'!D34)","v":"Žák"},{"$f":"IF('Prezenční listina'!C34=0,\"\",'Prezenční listina'!E34)","v":"Miroslav"},{"$f":"IF('Prezenční listina'!C34=0,\"\",'Prezenční listina'!F34)","v":1965},{"$f":"IF('Prezenční listina'!C34=0,\"\",'Prezenční listina'!J34)","v":"Stříbrné Hory"},{"$f":"IF('Prezenční listina'!C34=0,\"\",'Prezenční listina'!K34)","v":0},{"$f":"IF('Prezenční listina'!C34=0,\"\",'Prezenční listina'!A34)","v":"C"}]
[32,{"$f":"IF('Prezenční listina'!C26=0,\"\",'Prezenční listina'!C26)","v":32},{"$f":"IF('Prezenční listina'!C26=0,\"\",'Prezenční listina'!D26)","v":"Klinecká"},{"$f":"IF('Prezenční listina'!C26=0,\"\",'Prezenční listina'!E26)","v":"Jana"},{"$f":"IF('Prezenční listina'!C26=0,\"\",'Prezenční listina'!F26)","v":1981},{"$f":"IF('Prezenční listina'!C26=0,\"\",'Prezenční listina'!J26)","v":"Hlinsko"},{"$f":"IF('Prezenční listina'!C26=0,\"\",'Prezenční listina'!K26)","v":"MK Hlinsko"},{"$f":"IF('Prezenční listina'!C26=0,\"\",'Prezenční listina'!A26)","v":"G"}]
[33,{"$f":"IF('Prezenční listina'!C7=0,\"\",'Prezenční listina'!C7)","v":33},{"$f":"IF('Prezenční listina'!C7=0,\"\",'Prezenční listina'!D7)","v":"Pohanka"},{"$f":"IF('Prezenční listina'!C7=0,\"\",'Prezenční listina'!E7)","v":"Martin"},{"$f":"IF('Prezenční listina'!C7=0,\"\",'Prezenční listina'!F7)","v":1973},{"$f":"IF('Prezenční listina'!C7=0,\"\",'Prezenční listina'!J7)","v":0},{"$f":"IF('Prezenční listina'!C7=0,\"\",'Prezenční listina'!K7)","v":"Track & Field Brno"},{"$f":"IF('Prezenční listina'!C7=0,\"\",'Prezenční listina'!A7)","v":"B"}]
[34,{"$f":"IF('Prezenční listina'!C6=0,\"\",'Prezenční listina'!C6)","v":34},{"$f":"IF('Prezenční listina'!C6=0,\"\",'Prezenční listina'!D6)","v":"Oberreiter"},{"$f":"IF('Prezenční listina'!C6=0,\"\",'Prezenční listina'!E6)","v":"Martin"},{"$f":"IF('Prezenční listina'!C6=0,\"\",'Prezenční listina'!F6)","v":1988},{"$f":"IF('Prezenční listina'!C6=0,\"\",'Prezenční listina'!J6)","v":"Polná"},{"$f":"IF('Prezenční listina'!C6=0,\"\",'Prezenční listina'!K6)","v":0},{"$f":"IF('Prezenční listina'!C6=0,\"\",'Prezenční listina'!A6)","v":"A"}]
[35,{"$f":"IF('Prezenční listina'!C29=0,\"\",'Prezenční listina'!C29)","v":35},{"$f":"IF('Prezenční listina'!C29=0,\"\",'Prezenční listina'!D29)","v":"Vintrlík"},{"$f":"IF('Prezenční listina'!C29=0,\"\",'Prezenční listina'!E29)","v":"Martin"},{"$f":"IF('Prezenční listina'!C29=0,\"\",'Prezenční listina'!F29)","v":1977},{"$f":"IF('Prezenční listina'!C29=0,\"\",'Prezenční listina'!J29)","v":"Křepice"},{"$f":"IF('Prezenční listina'!C29=0,\"\",'Prezenční listina'!K29)","v":"Triatlon Křepice"},{"$f":"IF('Prezenční listina'!C29=0,\"\",'Prezenční listina'!A29)","v":"B"}]
[36,{"$f":"IF('Prezenční listina'!C5=0,\"\",'Prezenční listina'!C5)","v":36},{"$f":"IF('Prezenční listina'!C5=0,\"\",'Prezenční listina'!D5)","v":"Hradecký"},{"$f":"IF('Prezenční listina'!C5=0,\"\",'Prezenční listina'!E5)","v":"Jaromír"},{"$f":"IF('Prezenční listina'!C5=0,\"\",'Prezenční listina'!F5)","v":1985},{"$f":"IF('Prezenční listina'!C5=0,\"\",'Prezenční listina'!J5)","v":"Skuteč"},{"$f":"IF('Prezenční listina'!C5=0,\"\",'Prezenční listina'!K5)","v":0},{"$f":"IF('Prezenční listina'!C5=0,\"\",'Prezenční listina'!A5)","v":"A"}]
[37,{"$f":"IF('Prezenční listina'!C22=0,\"\",'Prezenční listina'!C22)","v":37},{"$f":"IF('Prezenční listina'!C22=0,\"\",'Prezenční listina'!D22)","v":"Tomková"},{"$f":"IF('Prezenční listina'!C22=0,\"\",'Prezenční listina'!E22)","v":"Iva"},{"$f":"IF('Prezenční listina'!C22=0,\"\",'Prezenční listina'!F22)","v":1990},{"$f":"IF('Prezenční listina'!C22=0,\"\",'Prezenční listina'!J22)","v":"Letovice"},{"$f":"IF('Prezenční listina'!C22=0,\"\",'Prezenční listina'!K22)","v":"Letovice"},{"$f":"IF('Prezenční listina'!C22=0,\"\",'Prezenční listina'!A22)","v":"F"}]
[38,{"$f":"IF('Prezenční listina'!C41=0,\"\",'Prezenční listina'!C41)","v":38},{"$f":"IF('Prezenční listina'!C41=0,\"\",'Prezenční listina'!D41)","v":"Komárková"},{"$f":"IF('Prezenční listina'!C41=0,\"\",'Prezenční listina'!E41)","v":"Zdeňka"},{"$f":"IF('Prezenční listina'!C41=0,\"\",'Prezenční listina'!F41)","v":1974},{"$f":"IF('Prezenční listina'!C41=0,\"\",'Prezenční listina'!J41)","v":"Olešnice na Mor."},{"$f":"IF('Prezenční listina'!C41=0,\"\",'Prezenční listina'!K41)","v":"SDH Bolešín"},{"$f":"IF('Prezenční listina'!C41=0,\"\",'Prezenční listina'!A41)","v":"G"}]
[39,{"$f":"IF('Prezenční listina'!C50=0,\"\",'Prezenční listina'!C50)","v":39},{"$f":"IF('Prezenční listina'!C50=0,\"\",'Prezenční listina'!D50)","v":"Konečný"},{"$f":"IF('Prezenční listina'!C50=0,\"\",'Prezenční listina'!E50)","v":"Libor"},{"$f":"IF('Prezenční listina'!C50=0,\"\",'Prezenční listina'!F50)","v":1971},{"$f":"IF('Prezenční listina'!C50=0,\"\",'Prezenční listina'!J50)","v":"Kuřim"},{"$f":"IF('Prezenční listina'!C50=0,\"\",'Prezenční listina'!K50)","v":0},{"$f":"IF('Prezenční listina'!C50=0,\"\",'Prezenční listina'!A50)","v":"B"}]
[40,{"$f":"IF('Prezenční listina'!C28=0,\"\",'Prezenční listina'!C28)","v":40},{"$f":"IF('Prezenční listina'!C28=0,\"\",'Prezenční listina'!D28)","v":"Lenhart"},{"$f":"IF('Prezenční listina'!C28=0,\"\",'Prezenční listina'!E28)","v":"Vít"},{"$f":"IF('Prezenční listina'!C28=0,\"\",'Prezenční listina'!F28)","v":1982},{"$f":"IF('Prezenční listina'!C28=0,\"\",'Prezenční listina'!J28)","v":"Přerov"},{"$f":"IF('Prezenční listina'!C28=0,\"\",'Prezenční listina'!K28)","v":"TJ Liga 100 Olomouc"},{"$f":"IF('Prezenční listina'!C28=0,\"\",'Prezenční listina'!A28)","v":"A"}]
[41,{"$f":"IF('Prezenční listina'!C4=0,\"\",'Prezenční listina'!C4)","v":41},{"$f":"IF('Prezenční listina'!C4=0,\"\",'Prezenční listina'!D4)","v":"Matějíková"},{"$f":"IF('Prezenční listina'!C4=0,\"\",'Prezenční listina'!E4)","v":"Jana"},{"$f":"IF('Prezenční listina'!C4=0,\"\",'Prezenční listina'!F4)","v":1990},{"$f":"IF('Prezenční listina'!C4=0,\"\",'Prezenční listina'!J4)","v":0},{"$f":"IF('Prezenční listina'!C4=0,\"\",'Prezenční listina'!K4)","v":"TJ Liga 100 Olomouc"},{"$f":"IF('Prezenční listina'!C4=0,\"\",'Prezenční listina'!A4)","v":"F"}]
[42,{"$f":"IF('Prezenční listina'!C3=0,\"\",'Prezenční listina'!C3)","v":42},{"$f":"IF('Prezenční listina'!C3=0,\"\",'Prezenční listina'!D3)","v":"Fritscher"},{"$f":"IF('Prezenční listina'!C3=0,\"\",'Prezenční listina'!E3)","v":"Adam"},{"$f":"IF('Prezenční listina'!C3=0,\"\",'Prezenční listina'!F3)","v":1975},{"$f":"IF('Prezenční listina'!C3=0,\"\",'Prezenční listina'!J3)","v":0},{"$f":"IF('Prezenční listina'!C3=0,\"\",'Prezenční listina'!K3)","v":"TJ Liga 100 Olomouc"},{"$f":"IF('Prezenční listina'!C3=0,\"\",'Prezenční listina'!A3)","v":"B"}]
[43,{"$f":"IF('Prezenční listina'!C37=0,\"\",'Prezenční listina'!C37)","v":43},{"$f":"IF('Prezenční listina'!C37=0,\"\",'Prezenční listina'!D37)","v":"Glier"},{"$f":"IF('Prezenční listina'!C37=0,\"\",'Prezenční listina'!E37)","v":"Michal"},{"$f":"IF('Prezenční listina'!C37=0,\"\",'Prezenční listina'!F37)","v":1982},{"$f":"IF('Prezenční listina'!C37=0,\"\",'Prezenční listina'!J37)","v":"Doubravník"},{"$f":"IF('Prezenční listina'!C37=0,\"\",'Prezenční listina'!K37)","v":"SDH Doubravník"},{"$f":"IF('Prezenční listina'!C37=0,\"\",'Prezenční listina'!A37)","v":"A"}]
[44,{"$f":"IF('Prezenční listina'!C25=0,\"\",'Prezenční listina'!C25)","v":44},{"$f":"IF('Prezenční listina'!C25=0,\"\",'Prezenční listina'!D25)","v":"Kratochvíl"},{"$f":"IF('Prezenční listina'!C25=0,\"\",'Prezenční listina'!E25)","v":"Jaroslav"},{"$f":"IF('Prezenční listina'!C25=0,\"\",'Prezenční listina'!F25)","v":1977},{"$f":"IF('Prezenční listina'!C25=0,\"\",'Prezenční listina'!J25)","v":"Moravany"},{"$f":"IF('Prezenční listina'!C25=0,\"\",'Prezenční listina'!K25)","v":"SDH Hluboké"},{"$f":"IF('Prezenční listina'!C25=0,\"\",'Prezenční listina'!A25)","v":"B"}]
["",{"$f":"IF('Prezenční listina'!C20=0,\"\",'Prezenční listina'!C20)","v":""},{"$f":"IF('Prezenční listina'!C20=0,\"\",'Prezenční listina'!D20)","v":""},{"$f":"IF('Prezenční listina'!C20=0,\"\",'Prezenční listina'!E20)","v":""},{"$f":"IF('Prezenční listina'!C20=0,\"\",'Prezenční listina'!F20)","v":""},{"$f":"IF('Prezenční listina'!C20=0,\"\",'Prezenční listina'!J20)","v":""},{"$f":"IF('Prezenční listina'!C20=0,\"\",'Prezenční listina'!K20)","v":""},{"$f":"IF('Prezenční listina'!C20=0,\"\",'Prezenční listina'!A20)","v":""}]
["",{"$f":"IF('Prezenční listina'!C21=0,\"\",'Prezenční listina'!C21)","v":""},{"$f":"IF('Prezenční listina'!C21=0,\"\",'Prezenční listina'!D21)","v":""},{"$f":"IF('Prezenční listina'!C21=0,\"\",'Prezenční listina'!E21)","v":""},{"$f":"IF('Prezenční listina'!C21=0,\"\",'Prezenční listina'!F21)","v":""},{"$f":"IF('Prezenční listina'!C21=0,\"\",'Prezenční listina'!J21)","v":""},{"$f":"IF('Prezenční listina'!C21=0,\"\",'Prezenční listina'!K21)","v":""},{"$f":"IF('Prezenční listina'!C21=0,\"\",'Prezenční listina'!A21)","v":""}]
["",{"$f":"IF('Prezenční listina'!C32=0,\"\",'Prezenční listina'!C32)","v":""},{"$f":"IF('Prezenční listina'!C32=0,\"\",'Prezenční listina'!D32)","v":""},{"$f":"IF('Prezenční listina'!C32=0,\"\",'Prezenční listina'!E32)","v":""},{"$f":"IF('Prezenční listina'!C32=0,\"\",'Prezenční listina'!F32)","v":""},{"$f":"IF('Prezenční listina'!C32=0,\"\",'Prezenční listina'!J32)","v":""},{"$f":"IF('Prezenční listina'!C32=0,\"\",'Prezenční listina'!K32)","v":""},{"$f":"IF('Prezenční listina'!C32=0,\"\",'Prezenční listina'!A32)","v":""}]
["",{"$f":"IF('Prezenční listina'!C47=0,\"\",'Prezenční listina'!C47)","v":""},{"$f":"IF('Prezenční listina'!C47=0,\"\",'Prezenční listina'!D47)","v":""},{"$f":"IF('Prezenční listina'!C47=0,\"\",'Prezenční listina'!E47)","v":""},{"$f":"IF('Prezenční listina'!C47=0,\"\",'Prezenční listina'!F47)","v":""},{"$f":"IF('Prezenční listina'!C47=0,\"\",'Prezenční listina'!J47)","v":""},{"$f":"IF('Prezenční listina'!C47=0,\"\",'Prezenční listina'!K47)","v":""},{"$f":"IF('Prezenční listina'!C47=0,\"\",'Prezenční listina'!A47)","v":""}]
["",{"$f":"IF('Prezenční listina'!C51=0,\"\",'Prezenční listina'!C51)","v":""},{"$f":"IF('Prezenční listina'!C51=0,\"\",'Prezenční listina'!D51)","v":""},{"$f":"IF('Prezenční listina'!C51=0,\"\",'Prezenční listina'!E51)","v":""},{"$f":"IF('Prezenční listina'!C51=0,\"\",'Prezenční listina'!F51)","v":""},{"$f":"IF('Prezenční listina'!C51=0,\"\",'Prezenční listina'!J51)","v":""},{"$f":"IF('Prezenční listina'!C51=0,\"\",'Prezenční listina'!K51)","v":""},{"$f":"IF('Prezenční listina'!C51=0,\"\",'Prezenční listina'!A51)","v":""}]
["",{"$f":"IF('Prezenční listina'!C52=0,\"\",'Prezenční listina'!C52)","v":""},{"$f":"IF('Prezenční listina'!C52=0,\"\",'Prezenční listina'!D52)","v":""},{"$f":"IF('Prezenční listina'!C52=0,\"\",'Prezenční listina'!E52)","v":""},{"$f":"IF('Prezenční listina'!C52=0,\"\",'Prezenční listina'!F52)","v":""},{"$f":"IF('Prezenční listina'!C52=0,\"\",'Prezenční listina'!J52)","v":""},{"$f":"IF('Prezenční listina'!C52=0,\"\",'Prezenční listina'!K52)","v":""},{"$f":"IF('Prezenční listina'!C52=0,\"\",'Prezenční listina'!A52)","v":""}]
["",{"$f":"IF('Prezenční listina'!C53=0,\"\",'Prezenční listina'!C53)","v":""},{"$f":"IF('Prezenční listina'!C53=0,\"\",'Prezenční listina'!D53)","v":""},{"$f":"IF('Prezenční listina'!C53=0,\"\",'Prezenční listina'!E53)","v":""},{"$f":"IF('Prezenční listina'!C53=0,\"\",'Prezenční listina'!F53)","v":""},{"$f":"IF('Prezenční listina'!C53=0,\"\",'Prezenční listina'!J53)","v":""},{"$f":"IF('Prezenční listina'!C53=0,\"\",'Prezenční listina'!K53)","v":""},{"$f":"IF('Prezenční listina'!C53=0,\"\",'Prezenční listina'!A53)","v":""}]
["",{"$f":"IF('Prezenční listina'!C54=0,\"\",'Prezenční listina'!C54)","v":""},{"$f":"IF('Prezenční listina'!C54=0,\"\",'Prezenční listina'!D54)","v":""},{"$f":"IF('Prezenční listina'!C54=0,\"\",'Prezenční listina'!E54)","v":""},{"$f":"IF('Prezenční listina'!C54=0,\"\",'Prezenční listina'!F54)","v":""},{"$f":"IF('Prezenční listina'!C54=0,\"\",'Prezenční listina'!J54)","v":""},{"$f":"IF('Prezenční listina'!C54=0,\"\",'Prezenční listina'!K54)","v":""},{"$f":"IF('Prezenční listina'!C54=0,\"\",'Prezenční listina'!A54)","v":""}]
["",{"$f":"IF('Prezenční listina'!C55=0,\"\",'Prezenční listina'!C55)","v":""},{"$f":"IF('Prezenční listina'!C55=0,\"\",'Prezenční listina'!D55)","v":""},{"$f":"IF('Prezenční listina'!C55=0,\"\",'Prezenční listina'!E55)","v":""},{"$f":"IF('Prezenční listina'!C55=0,\"\",'Prezenční listina'!F55)","v":""},{"$f":"IF('Prezenční listina'!C55=0,\"\",'Prezenční listina'!J55)","v":""},{"$f":"IF('Prezenční listina'!C55=0,\"\",'Prezenční listina'!K55)","v":""},{"$f":"IF('Prezenční listina'!C55=0,\"\",'Prezenční listina'!A55)","v":""}]
["",{"$f":"IF('Prezenční listina'!C56=0,\"\",'Prezenční listina'!C56)","v":""},{"$f":"IF('Prezenční listina'!C56=0,\"\",'Prezenční listina'!D56)","v":""},{"$f":"IF('Prezenční listina'!C56=0,\"\",'Prezenční listina'!E56)","v":""},{"$f":"IF('Prezenční listina'!C56=0,\"\",'Prezenční listina'!F56)","v":""},{"$f":"IF('Prezenční listina'!C56=0,\"\",'Prezenční listina'!J56)","v":""},{"$f":"IF('Prezenční listina'!C56=0,\"\",'Prezenční listina'!K56)","v":""},{"$f":"IF('Prezenční listina'!C56=0,\"\",'Prezenční listina'!A56)","v":""}]
["",{"$f":"IF('Prezenční listina'!C57=0,\"\",'Prezenční listina'!C57)","v":""},{"$f":"IF('Prezenční listina'!C57=0,\"\",'Prezenční listina'!D57)","v":""},{"$f":"IF('Prezenční listina'!C57=0,\"\",'Prezenční listina'!E57)","v":""},{"$f":"IF('Prezenční listina'!C57=0,\"\",'Prezenční listina'!F57)","v":""},{"$f":"IF('Prezenční listina'!C57=0,\"\",'Prezenční listina'!J57)","v":""},{"$f":"IF('Prezenční listina'!C57=0,\"\",'Prezenční listina'!K57)","v":""},{"$f":"IF('Prezenční listina'!C57=0,\"\",'Prezenční listina'!A57)","v":""}]
["",{"$f":"IF('Prezenční listina'!C58=0,\"\",'Prezenční listina'!C58)","v":""},{"$f":"IF('Prezenční listina'!C58=0,\"\",'Prezenční listina'!D58)","v":""},{"$f":"IF('Prezenční listina'!C58=0,\"\",'Prezenční listina'!E58)","v":""},{"$f":"IF('Prezenční listina'!C58=0,\"\",'Prezenční listina'!F58)","v":""},{"$f":"IF('Prezenční listina'!C58=0,\"\",'Prezenční listina'!J58)","v":""},{"$f":"IF('Prezenční listina'!C58=0,\"\",'Prezenční listina'!K58)","v":""},{"$f":"IF('Prezenční listina'!C58=0,\"\",'Prezenční listina'!A58)","v":""}]
["",{"$f":"IF('Prezenční listina'!C59=0,\"\",'Prezenční listina'!C59)","v":""},{"$f":"IF('Prezenční listina'!C59=0,\"\",'Prezenční listina'!D59)","v":""},{"$f":"IF('Prezenční listina'!C59=0,\"\",'Prezenční listina'!E59)","v":""},{"$f":"IF('Prezenční listina'!C59=0,\"\",'Prezenční listina'!F59)","v":""},{"$f":"IF('Prezenční listina'!C59=0,\"\",'Prezenční listina'!J59)","v":""},{"$f":"IF('Prezenční listina'!C59=0,\"\",'Prezenční listina'!K59)","v":""},{"$f":"IF('Prezenční listina'!C59=0,\"\",'Prezenční listina'!A59)","v":""}]
["",{"$f":"IF('Prezenční listina'!C60=0,\"\",'Prezenční listina'!C60)","v":""},{"$f":"IF('Prezenční listina'!C60=0,\"\",'Prezenční listina'!D60)","v":""},{"$f":"IF('Prezenční listina'!C60=0,\"\",'Prezenční listina'!E60)","v":""},{"$f":"IF('Prezenční listina'!C60=0,\"\",'Prezenční listina'!F60)","v":""},{"$f":"IF('Prezenční listina'!C60=0,\"\",'Prezenční listina'!J60)","v":""},{"$f":"IF('Prezenční listina'!C60=0,\"\",'Prezenční listina'!K60)","v":""},{"$f":"IF('Prezenční listina'!C60=0,\"\",'Prezenční listina'!A60)","v":""}]
["",{"$f":"IF('Prezenční listina'!C61=0,\"\",'Prezenční listina'!C61)","v":""},{"$f":"IF('Prezenční listina'!C61=0,\"\",'Prezenční listina'!D61)","v":""},{"$f":"IF('Prezenční listina'!C61=0,\"\",'Prezenční listina'!E61)","v":""},{"$f":"IF('Prezenční listina'!C61=0,\"\",'Prezenční listina'!F61)","v":""},{"$f":"IF('Prezenční listina'!C61=0,\"\",'Prezenční listina'!J61)","v":""},{"$f":"IF('Prezenční listina'!C61=0,\"\",'Prezenční listina'!K61)","v":""},{"$f":"IF('Prezenční listina'!C61=0,\"\",'Prezenční listina'!A61)","v":""}]
["",{"$f":"IF('Prezenční listina'!C62=0,\"\",'Prezenční listina'!C62)","v":""},{"$f":"IF('Prezenční listina'!C62=0,\"\",'Prezenční listina'!D62)","v":""},{"$f":"IF('Prezenční listina'!C62=0,\"\",'Prezenční listina'!E62)","v":""},{"$f":"IF('Prezenční listina'!C62=0,\"\",'Prezenční listina'!F62)","v":""},{"$f":"IF('Prezenční listina'!C62=0,\"\",'Prezenční listina'!J62)","v":""},{"$f":"IF('Prezenční listina'!C62=0,\"\",'Prezenční listina'!K62)","v":""},{"$f":"IF('Prezenční listina'!C62=0,\"\",'Prezenční listina'!A62)","v":""}]
["",{"$f":"IF('Prezenční listina'!C63=0,\"\",'Prezenční listina'!C63)","v":""},{"$f":"IF('Prezenční listina'!C63=0,\"\",'Prezenční listina'!D63)","v":""},{"$f":"IF('Prezenční listina'!C63=0,\"\",'Prezenční listina'!E63)","v":""},{"$f":"IF('Prezenční listina'!C63=0,\"\",'Prezenční listina'!F63)","v":""},{"$f":"IF('Prezenční listina'!C63=0,\"\",'Prezenční listina'!J63)","v":""},{"$f":"IF('Prezenční listina'!C63=0,\"\",'Prezenční listina'!K63)","v":""},{"$f":"IF('Prezenční listina'!C63=0,\"\",'Prezenční listina'!A63)","v":""}]
["",{"$f":"IF('Prezenční listina'!C64=0,\"\",'Prezenční listina'!C64)","v":""},{"$f":"IF('Prezenční listina'!C64=0,\"\",'Prezenční listina'!D64)","v":""},{"$f":"IF('Prezenční listina'!C64=0,\"\",'Prezenční listina'!E64)","v":""},{"$f":"IF('Prezenční listina'!C64=0,\"\",'Prezenční listina'!F64)","v":""},{"$f":"IF('Prezenční listina'!C64=0,\"\",'Prezenční listina'!J64)","v":""},{"$f":"IF('Prezenční listina'!C64=0,\"\",'Prezenční listina'!K64)","v":""},{"$f":"IF('Prezenční listina'!C64=0,\"\",'Prezenční listina'!A64)","v":""}]
["",{"$f":"IF('Prezenční listina'!C65=0,\"\",'Prezenční listina'!C65)","v":""},{"$f":"IF('Prezenční listina'!C65=0,\"\",'Prezenční listina'!D65)","v":""},{"$f":"IF('Prezenční listina'!C65=0,\"\",'Prezenční listina'!E65)","v":""},{"$f":"IF('Prezenční listina'!C65=0,\"\",'Prezenční listina'!F65)","v":""},{"$f":"IF('Prezenční listina'!C65=0,\"\",'Prezenční listina'!J65)","v":""},{"$f":"IF('Prezenční listina'!C65=0,\"\",'Prezenční listina'!K65)","v":""},{"$f":"IF('Prezenční listina'!C65=0,\"\",'Prezenční listina'!A65)","v":""}]
["",{"$f":"IF('Prezenční listina'!C66=0,\"\",'Prezenční listina'!C66)","v":""},{"$f":"IF('Prezenční listina'!C66=0,\"\",'Prezenční listina'!D66)","v":""},{"$f":"IF('Prezenční listina'!C66=0,\"\",'Prezenční listina'!E66)","v":""},{"$f":"IF('Prezenční listina'!C66=0,\"\",'Prezenční listina'!F66)","v":""},{"$f":"IF('Prezenční listina'!C66=0,\"\",'Prezenční listina'!J66)","v":""},{"$f":"IF('Prezenční listina'!C66=0,\"\",'Prezenční listina'!K66)","v":""},{"$f":"IF('Prezenční listina'!C66=0,\"\",'Prezenční listina'!A66)","v":""}]
["",{"$f":"IF('Prezenční listina'!C67=0,\"\",'Prezenční listina'!C67)","v":""},{"$f":"IF('Prezenční listina'!C67=0,\"\",'Prezenční listina'!D67)","v":""},{"$f":"IF('Prezenční listina'!C67=0,\"\",'Prezenční listina'!E67)","v":""},{"$f":"IF('Prezenční listina'!C67=0,\"\",'Prezenční listina'!F67)","v":""},{"$f":"IF('Prezenční listina'!C67=0,\"\",'Prezenční listina'!J67)","v":""},{"$f":"IF('Prezenční listina'!C67=0,\"\",'Prezenční listina'!K67)","v":""},{"$f":"IF('Prezenční listina'!C67=0,\"\",'Prezenční listina'!A67)","v":""}]
["",{"$f":"IF('Prezenční listina'!C68=0,\"\",'Prezenční listina'!C68)","v":""},{"$f":"IF('Prezenční listina'!C68=0,\"\",'Prezenční listina'!D68)","v":""},{"$f":"IF('Prezenční listina'!C68=0,\"\",'Prezenční listina'!E68)","v":""},{"$f":"IF('Prezenční listina'!C68=0,\"\",'Prezenční listina'!F68)","v":""},{"$f":"IF('Prezenční listina'!C68=0,\"\",'Prezenční listina'!J68)","v":""},{"$f":"IF('Prezenční listina'!C68=0,\"\",'Prezenční listina'!K68)","v":""},{"$f":"IF('Prezenční listina'!C68=0,\"\",'Prezenční listina'!A68)","v":""}]
[{"$f":"IF(B71=\"\",\"\",A70+1)","v":""},{"$f":"IF('Prezenční listina'!C69=0,\"\",'Prezenční listina'!C69)","v":""},{"$f":"IF('Prezenční listina'!C69=0,\"\",'Prezenční listina'!D69)","v":""},{"$f":"IF('Prezenční listina'!C69=0,\"\",'Prezenční listina'!E69)","v":""},{"$f":"IF('Prezenční listina'!C69=0,\"\",'Prezenční listina'!F69)","v":""},{"$f":"IF('Prezenční listina'!C69=0,\"\",'Prezenční listina'!J69)","v":""},{"$f":"IF('Prezenční listina'!C69=0,\"\",'Prezenční listina'!K69)","v":""},{"$f":"IF('Prezenční listina'!C69=0,\"\",'Prezenční listina'!A69)","v":""}]
["",{"$f":"IF('Prezenční listina'!C70=0,\"\",'Prezenční listina'!C70)","v":""},{"$f":"IF('Prezenční listina'!C70=0,\"\",'Prezenční listina'!D70)","v":""},{"$f":"IF('Prezenční listina'!C70=0,\"\",'Prezenční listina'!E70)","v":""},{"$f":"IF('Prezenční listina'!C70=0,\"\",'Prezenční listina'!F70)","v":""},{"$f":"IF('Prezenční listina'!C70=0,\"\",'Prezenční listina'!J70)","v":""},{"$f":"IF('Prezenční listina'!C70=0,\"\",'Prezenční listina'!K70)","v":""},{"$f":"IF('Prezenční listina'!C70=0,\"\",'Prezenční listina'!A70)","v":""}]
["",{"$f":"IF('Prezenční listina'!C71=0,\"\",'Prezenční listina'!C71)","v":""},{"$f":"IF('Prezenční listina'!C71=0,\"\",'Prezenční listina'!D71)","v":""},{"$f":"IF('Prezenční listina'!C71=0,\"\",'Prezenční listina'!E71)","v":""},{"$f":"IF('Prezenční listina'!C71=0,\"\",'Prezenční listina'!F71)","v":""},{"$f":"IF('Prezenční listina'!C71=0,\"\",'Prezenční listina'!J71)","v":""},{"$f":"IF('Prezenční listina'!C71=0,\"\",'Prezenční listina'!K71)","v":""},{"$f":"IF('Prezenční listina'!C71=0,\"\",'Prezenční listina'!A71)","v":""}]
["",{"$f":"IF('Prezenční listina'!C72=0,\"\",'Prezenční listina'!C72)","v":""},{"$f":"IF('Prezenční listina'!C72=0,\"\",'Prezenční listina'!D72)","v":""},{"$f":"IF('Prezenční listina'!C72=0,\"\",'Prezenční listina'!E72)","v":""},{"$f":"IF('Prezenční listina'!C72=0,\"\",'Prezenční listina'!F72)","v":""},{"$f":"IF('Prezenční listina'!C72=0,\"\",'Prezenční listina'!J72)","v":""},{"$f":"IF('Prezenční listina'!C72=0,\"\",'Prezenční listina'!K72)","v":""},{"$f":"IF('Prezenční listina'!C72=0,\"\",'Prezenční listina'!A72)","v":""}]
["",{"$f":"IF('Prezenční listina'!C73=0,\"\",'Prezenční listina'!C73)","v":""},{"$f":"IF('Prezenční listina'!C73=0,\"\",'Prezenční listina'!D73)","v":""},{"$f":"IF('Prezenční listina'!C73=0,\"\",'Prezenční listina'!E73)","v":""},{"$f":"IF('Prezenční listina'!C73=0,\"\",'Prezenční listina'!F73)","v":""},{"$f":"IF('Prezenční listina'!C73=0,\"\",'Prezenční listina'!J73)","v":""},{"$f":"IF('Prezenční listina'!C73=0,\"\",'Prezenční listina'!K73)","v":""},{"$f":"IF('Prezenční listina'!C73=0,\"\",'Prezenční listina'!A73)","v":""}]
["",{"$f":"IF('Prezenční listina'!C74=0,\"\",'Prezenční listina'!C74)","v":""},{"$f":"IF('Prezenční listina'!C74=0,\"\",'Prezenční listina'!D74)","v":""},{"$f":"IF('Prezenční listina'!C74=0,\"\",'Prezenční listina'!E74)","v":""},{"$f":"IF('Prezenční listina'!C74=0,\"\",'Prezenční listina'!F74)","v":""},{"$f":"IF('Prezenční listina'!C74=0,\"\",'Prezenční listina'!J74)","v":""},{"$f":"IF('Prezenční listina'!C74=0,\"\",'Prezenční listina'!K74)","v":""},{"$f":"IF('Prezenční listina'!C74=0,\"\",'Prezenční listina'!A74)","v":""}]
["",{"$f":"IF('Prezenční listina'!C75=0,\"\",'Prezenční listina'!C75)","v":""},{"$f":"IF('Prezenční listina'!C75=0,\"\",'Prezenční listina'!D75)","v":""},{"$f":"IF('Prezenční listina'!C75=0,\"\",'Prezenční listina'!E75)","v":""},{"$f":"IF('Prezenční listina'!C75=0,\"\",'Prezenční listina'!F75)","v":""},{"$f":"IF('Prezenční listina'!C75=0,\"\",'Prezenční listina'!J75)","v":""},{"$f":"IF('Prezenční listina'!C75=0,\"\",'Prezenční listina'!K75)","v":""},{"$f":"IF('Prezenční listina'!C75=0,\"\",'Prezenční listina'!A75)","v":""}]
["",{"$f":"IF('Prezenční listina'!C76=0,\"\",'Prezenční listina'!C76)","v":""},{"$f":"IF('Prezenční listina'!C76=0,\"\",'Prezenční listina'!D76)","v":""},{"$f":"IF('Prezenční listina'!C76=0,\"\",'Prezenční listina'!E76)","v":""},{"$f":"IF('Prezenční listina'!C76=0,\"\",'Prezenční listina'!F76)","v":""},{"$f":"IF('Prezenční listina'!C76=0,\"\",'Prezenční listina'!J76)","v":""},{"$f":"IF('Prezenční listina'!C76=0,\"\",'Prezenční listina'!K76)","v":""},{"$f":"IF('Prezenční listina'!C76=0,\"\",'Prezenční listina'!A76)","v":""}]
["",{"$f":"IF('Prezenční listina'!C77=0,\"\",'Prezenční listina'!C77)","v":""},{"$f":"IF('Prezenční listina'!C77=0,\"\",'Prezenční listina'!D77)","v":""},{"$f":"IF('Prezenční listina'!C77=0,\"\",'Prezenční listina'!E77)","v":""},{"$f":"IF('Prezenční listina'!C77=0,\"\",'Prezenční listina'!F77)","v":""},{"$f":"IF('Prezenční listina'!C77=0,\"\",'Prezenční listina'!J77)","v":""},{"$f":"IF('Prezenční listina'!C77=0,\"\",'Prezenční listina'!K77)","v":""},{"$f":"IF('Prezenční listina'!C77=0,\"\",'Prezenční listina'!A77)","v":""}]
["",{"$f":"IF('Prezenční listina'!C78=0,\"\",'Prezenční listina'!C78)","v":""},{"$f":"IF('Prezenční listina'!C78=0,\"\",'Prezenční listina'!D78)","v":""},{"$f":"IF('Prezenční listina'!C78=0,\"\",'Prezenční listina'!E78)","v":""},{"$f":"IF('Prezenční listina'!C78=0,\"\",'Prezenční listina'!F78)","v":""},{"$f":"IF('Prezenční listina'!C78=0,\"\",'Prezenční listina'!J78)","v":""},{"$f":"IF('Prezenční listina'!C78=0,\"\",'Prezenční listina'!K78)","v":""},{"$f":"IF('Prezenční listina'!C78=0,\"\",'Prezenční listina'!A78)","v":""}]
["",{"$f":"IF('Prezenční listina'!C79=0,\"\",'Prezenční listina'!C79)","v":""},{"$f":"IF('Prezenční listina'!C79=0,\"\",'Prezenční listina'!D79)","v":""},{"$f":"IF('Prezenční listina'!C79=0,\"\",'Prezenční listina'!E79)","v":""},{"$f":"IF('Prezenční listina'!C79=0,\"\",'Prezenční listina'!F79)","v":""},{"$f":"IF('Prezenční listina'!C79=0,\"\",'Prezenční listina'!J79)","v":""},{"$f":"IF('Prezenční listina'!C79=0,\"\",'Prezenční listina'!K79)","v":""},{"$f":"IF('Prezenční listina'!C79=0,\"\",'Prezenční listina'!A79)","v":""}]
["",{"$f":"IF('Prezenční listina'!C80=0,\"\",'Prezenční listina'!C80)","v":""},{"$f":"IF('Prezenční listina'!C80=0,\"\",'Prezenční listina'!D80)","v":""},{"$f":"IF('Prezenční listina'!C80=0,\"\",'Prezenční listina'!E80)","v":""},{"$f":"IF('Prezenční listina'!C80=0,\"\",'Prezenční listina'!F80)","v":""},{"$f":"IF('Prezenční listina'!C80=0,\"\",'Prezenční listina'!J80)","v":""},{"$f":"IF('Prezenční listina'!C80=0,\"\",'Prezenční listina'!K80)","v":""},{"$f":"IF('Prezenční listina'!C80=0,\"\",'Prezenční listina'!A80)","v":""}]
["",{"$f":"IF('Prezenční listina'!C81=0,\"\",'Prezenční listina'!C81)","v":""},{"$f":"IF('Prezenční listina'!C81=0,\"\",'Prezenční listina'!D81)","v":""},{"$f":"IF('Prezenční listina'!C81=0,\"\",'Prezenční listina'!E81)","v":""},{"$f":"IF('Prezenční listina'!C81=0,\"\",'Prezenční listina'!F81)","v":""},{"$f":"IF('Prezenční listina'!C81=0,\"\",'Prezenční listina'!J81)","v":""},{"$f":"IF('Prezenční listina'!C81=0,\"\",'Prezenční listina'!K81)","v":""},{"$f":"IF('Prezenční listina'!C81=0,\"\",'Prezenční listina'!A81)","v":""}]
["",{"$f":"IF('Prezenční listina'!C82=0,\"\",'Prezenční listina'!C82)","v":""},{"$f":"IF('Prezenční listina'!C82=0,\"\",'Prezenční listina'!D82)","v":""},{"$f":"IF('Prezenční listina'!C82=0,\"\",'Prezenční listina'!E82)","v":""},{"$f":"IF('Prezenční listina'!C82=0,\"\",'Prezenční listina'!F82)","v":""},{"$f":"IF('Prezenční listina'!C82=0,\"\",'Prezenční listina'!J82)","v":""},{"$f":"IF('Prezenční listina'!C82=0,\"\",'Prezenční listina'!K82)","v":""},{"$f":"IF('Prezenční listina'!C82=0,\"\",'Prezenční listina'!A82)","v":""}]
["",{"$f":"IF('Prezenční listina'!C83=0,\"\",'Prezenční listina'!C83)","v":""},{"$f":"IF('Prezenční listina'!C83=0,\"\",'Prezenční listina'!D83)","v":""},{"$f":"IF('Prezenční listina'!C83=0,\"\",'Prezenční listina'!E83)","v":""},{"$f":"IF('Prezenční listina'!C83=0,\"\",'Prezenční listina'!F83)","v":""},{"$f":"IF('Prezenční listina'!C83=0,\"\",'Prezenční listina'!J83)","v":""},{"$f":"IF('Prezenční listina'!C83=0,\"\",'Prezenční listina'!K83)","v":""},{"$f":"IF('Prezenční listina'!C83=0,\"\",'Prezenční listina'!A83)","v":""}]
["",{"$f":"IF('Prezenční listina'!C84=0,\"\",'Prezenční listina'!C84)","v":""},{"$f":"IF('Prezenční listina'!C84=0,\"\",'Prezenční listina'!D84)","v":""},{"$f":"IF('Prezenční listina'!C84=0,\"\",'Prezenční listina'!E84)","v":""},{"$f":"IF('Prezenční listina'!C84=0,\"\",'Prezenční listina'!F84)","v":""},{"$f":"IF('Prezenční listina'!C84=0,\"\",'Prezenční listina'!J84)","v":""},{"$f":"IF('Prezenční listina'!C84=0,\"\",'Prezenční listina'!K84)","v":""},{"$f":"IF('Prezenční listina'!C84=0,\"\",'Prezenční listina'!A84)","v":""}]
["",{"$f":"IF('Prezenční listina'!C85=0,\"\",'Prezenční listina'!C85)","v":""},{"$f":"IF('Prezenční listina'!C85=0,\"\",'Prezenční listina'!D85)","v":""},{"$f":"IF('Prezenční listina'!C85=0,\"\",'Prezenční listina'!E85)","v":""},{"$f":"IF('Prezenční listina'!C85=0,\"\",'Prezenční listina'!F85)","v":""},{"$f":"IF('Prezenční listina'!C85=0,\"\",'Prezenční listina'!J85)","v":""},{"$f":"IF('Prezenční listina'!C85=0,\"\",'Prezenční listina'!K85)","v":""},{"$f":"IF('Prezenční listina'!C85=0,\"\",'Prezenční listina'!A85)","v":""}]
["",{"$f":"IF('Prezenční listina'!C86=0,\"\",'Prezenční listina'!C86)","v":""},{"$f":"IF('Prezenční listina'!C86=0,\"\",'Prezenční listina'!D86)","v":""},{"$f":"IF('Prezenční listina'!C86=0,\"\",'Prezenční listina'!E86)","v":""},{"$f":"IF('Prezenční listina'!C86=0,\"\",'Prezenční listina'!F86)","v":""},{"$f":"IF('Prezenční listina'!C86=0,\"\",'Prezenční listina'!J86)","v":""},{"$f":"IF('Prezenční listina'!C86=0,\"\",'Prezenční listina'!K86)","v":""},{"$f":"IF('Prezenční listina'!C86=0,\"\",'Prezenční listina'!A86)","v":""}]
["",{"$f":"IF('Prezenční listina'!C87=0,\"\",'Prezenční listina'!C87)","v":""},{"$f":"IF('Prezenční listina'!C87=0,\"\",'Prezenční listina'!D87)","v":""},{"$f":"IF('Prezenční listina'!C87=0,\"\",'Prezenční listina'!E87)","v":""},{"$f":"IF('Prezenční listina'!C87=0,\"\",'Prezenční listina'!F87)","v":""},{"$f":"IF('Prezenční listina'!C87=0,\"\",'Prezenční listina'!J87)","v":""},{"$f":"IF('Prezenční listina'!C87=0,\"\",'Prezenční listina'!K87)","v":""},{"$f":"IF('Prezenční listina'!C87=0,\"\",'Prezenční listina'!A87)","v":""}]
["",{"$f":"IF('Prezenční listina'!C88=0,\"\",'Prezenční listina'!C88)","v":""},{"$f":"IF('Prezenční listina'!C88=0,\"\",'Prezenční listina'!D88)","v":""},{"$f":"IF('Prezenční listina'!C88=0,\"\",'Prezenční listina'!E88)","v":""},{"$f":"IF('Prezenční listina'!C88=0,\"\",'Prezenční listina'!F88)","v":""},{"$f":"IF('Prezenční listina'!C88=0,\"\",'Prezenční listina'!J88)","v":""},{"$f":"IF('Prezenční listina'!C88=0,\"\",'Prezenční listina'!K88)","v":""},{"$f":"IF('Prezenční listina'!C88=0,\"\",'Prezenční listina'!A88)","v":""}]
["",{"$f":"IF('Prezenční listina'!C89=0,\"\",'Prezenční listina'!C89)","v":""},{"$f":"IF('Prezenční listina'!C89=0,\"\",'Prezenční listina'!D89)","v":""},{"$f":"IF('Prezenční listina'!C89=0,\"\",'Prezenční listina'!E89)","v":""},{"$f":"IF('Prezenční listina'!C89=0,\"\",'Prezenční listina'!F89)","v":""},{"$f":"IF('Prezenční listina'!C89=0,\"\",'Prezenční listina'!J89)","v":""},{"$f":"IF('Prezenční listina'!C89=0,\"\",'Prezenční listina'!K89)","v":""},{"$f":"IF('Prezenční listina'!C89=0,\"\",'Prezenční listina'!A89)","v":""}]
["",{"$f":"IF('Prezenční listina'!C90=0,\"\",'Prezenční listina'!C90)","v":""},{"$f":"IF('Prezenční listina'!C90=0,\"\",'Prezenční listina'!D90)","v":""},{"$f":"IF('Prezenční listina'!C90=0,\"\",'Prezenční listina'!E90)","v":""},{"$f":"IF('Prezenční listina'!C90=0,\"\",'Prezenční listina'!F90)","v":""},{"$f":"IF('Prezenční listina'!C90=0,\"\",'Prezenční listina'!J90)","v":""},{"$f":"IF('Prezenční listina'!C90=0,\"\",'Prezenční listina'!K90)","v":""},{"$f":"IF('Prezenční listina'!C90=0,\"\",'Prezenční listina'!A90)","v":""}]
["",{"$f":"IF('Prezenční listina'!C91=0,\"\",'Prezenční listina'!C91)","v":""},{"$f":"IF('Prezenční listina'!C91=0,\"\",'Prezenční listina'!D91)","v":""},{"$f":"IF('Prezenční listina'!C91=0,\"\",'Prezenční listina'!E91)","v":""},{"$f":"IF('Prezenční listina'!C91=0,\"\",'Prezenční listina'!F91)","v":""},{"$f":"IF('Prezenční listina'!C91=0,\"\",'Prezenční listina'!J91)","v":""},{"$f":"IF('Prezenční listina'!C91=0,\"\",'Prezenční listina'!K91)","v":""},{"$f":"IF('Prezenční listina'!C91=0,\"\",'Prezenční listina'!A91)","v":""}]
["",{"$f":"IF('Prezenční listina'!C92=0,\"\",'Prezenční listina'!C92)","v":""},{"$f":"IF('Prezenční listina'!C92=0,\"\",'Prezenční listina'!D92)","v":""},{"$f":"IF('Prezenční listina'!C92=0,\"\",'Prezenční listina'!E92)","v":""},{"$f":"IF('Prezenční listina'!C92=0,\"\",'Prezenční listina'!F92)","v":""},{"$f":"IF('Prezenční listina'!C92=0,\"\",'Prezenční listina'!J92)","v":""},{"$f":"IF('Prezenční listina'!C92=0,\"\",'Prezenční listina'!K92)","v":""},{"$f":"IF('Prezenční listina'!C92=0,\"\",'Prezenční listina'!A92)","v":""}]
["",{"$f":"IF('Prezenční listina'!C93=0,\"\",'Prezenční listina'!C93)","v":""},{"$f":"IF('Prezenční listina'!C93=0,\"\",'Prezenční listina'!D93)","v":""},{"$f":"IF('Prezenční listina'!C93=0,\"\",'Prezenční listina'!E93)","v":""},{"$f":"IF('Prezenční listina'!C93=0,\"\",'Prezenční listina'!F93)","v":""},{"$f":"IF('Prezenční listina'!C93=0,\"\",'Prezenční listina'!J93)","v":""},{"$f":"IF('Prezenční listina'!C93=0,\"\",'Prezenční listina'!K93)","v":""},{"$f":"IF('Prezenční listina'!C93=0,\"\",'Prezenční listina'!A93)","v":""}]
["",{"$f":"IF('Prezenční listina'!C94=0,\"\",'Prezenční listina'!C94)","v":""},{"$f":"IF('Prezenční listina'!C94=0,\"\",'Prezenční listina'!D94)","v":""},{"$f":"IF('Prezenční listina'!C94=0,\"\",'Prezenční listina'!E94)","v":""},{"$f":"IF('Prezenční listina'!C94=0,\"\",'Prezenční listina'!F94)","v":""},{"$f":"IF('Prezenční listina'!C94=0,\"\",'Prezenční listina'!J94)","v":""},{"$f":"IF('Prezenční listina'!C94=0,\"\",'Prezenční listina'!K94)","v":""},{"$f":"IF('Prezenční listina'!C94=0,\"\",'Prezenční listina'!A94)","v":""}]
["",{"$f":"IF('Prezenční listina'!C95=0,\"\",'Prezenční listina'!C95)","v":""},{"$f":"IF('Prezenční listina'!C95=0,\"\",'Prezenční listina'!D95)","v":""},{"$f":"IF('Prezenční listina'!C95=0,\"\",'Prezenční listina'!E95)","v":""},{"$f":"IF('Prezenční listina'!C95=0,\"\",'Prezenční listina'!F95)","v":""},{"$f":"IF('Prezenční listina'!C95=0,\"\",'Prezenční listina'!J95)","v":""},{"$f":"IF('Prezenční listina'!C95=0,\"\",'Prezenční listina'!K95)","v":""},{"$f":"IF('Prezenční listina'!C95=0,\"\",'Prezenční listina'!A95)","v":""}]
["",{"$f":"IF('Prezenční listina'!C96=0,\"\",'Prezenční listina'!C96)","v":""},{"$f":"IF('Prezenční listina'!C96=0,\"\",'Prezenční listina'!D96)","v":""},{"$f":"IF('Prezenční listina'!C96=0,\"\",'Prezenční listina'!E96)","v":""},{"$f":"IF('Prezenční listina'!C96=0,\"\",'Prezenční listina'!F96)","v":""},{"$f":"IF('Prezenční listina'!C96=0,\"\",'Prezenční listina'!J96)","v":""},{"$f":"IF('Prezenční listina'!C96=0,\"\",'Prezenční listina'!K96)","v":""},{"$f":"IF('Prezenční listina'!C96=0,\"\",'Prezenční listina'!A96)","v":""}]
["",{"$f":"IF('Prezenční listina'!C97=0,\"\",'Prezenční listina'!C97)","v":""},{"$f":"IF('Prezenční listina'!C97=0,\"\",'Prezenční listina'!D97)","v":""},{"$f":"IF('Prezenční listina'!C97=0,\"\",'Prezenční listina'!E97)","v":""},{"$f":"IF('Prezenční listina'!C97=0,\"\",'Prezenční listina'!F97)","v":""},{"$f":"IF('Prezenční listina'!C97=0,\"\",'Prezenční listina'!J97)","v":""},{"$f":"IF('Prezenční listina'!C97=0,\"\",'Prezenční listina'!K97)","v":""},{"$f":"IF('Prezenční listina'!C97=0,\"\",'Prezenční listina'!A97)","v":""}]
["",{"$f":"IF('Prezenční listina'!C98=0,\"\",'Prezenční listina'!C98)","v":""},{"$f":"IF('Prezenční listina'!C98=0,\"\",'Prezenční listina'!D98)","v":""},{"$f":"IF('Prezenční listina'!C98=0,\"\",'Prezenční listina'!E98)","v":""},{"$f":"IF('Prezenční listina'!C98=0,\"\",'Prezenční listina'!F98)","v":""},{"$f":"IF('Prezenční listina'!C98=0,\"\",'Prezenční listina'!J98)","v":""},{"$f":"IF('Prezenční listina'!C98=0,\"\",'Prezenční listina'!K98)","v":""},{"$f":"IF('Prezenční listina'!C98=0,\"\",'Prezenční listina'!A98)","v":""}]
["",{"$f":"IF('Prezenční listina'!C99=0,\"\",'Prezenční listina'!C99)","v":""},{"$f":"IF('Prezenční listina'!C99=0,\"\",'Prezenční listina'!D99)","v":""},{"$f":"IF('Prezenční listina'!C99=0,\"\",'Prezenční listina'!E99)","v":""},{"$f":"IF('Prezenční listina'!C99=0,\"\",'Prezenční listina'!F99)","v":""},{"$f":"IF('Prezenční listina'!C99=0,\"\",'Prezenční listina'!J99)","v":""},{"$f":"IF('Prezenční listina'!C99=0,\"\",'Prezenční listina'!K99)","v":""},{"$f":"IF('Prezenční listina'!C99=0,\"\",'Prezenční listina'!A99)","v":""}]
["",{"$f":"IF('Prezenční listina'!C100=0,\"\",'Prezenční listina'!C100)","v":""},{"$f":"IF('Prezenční listina'!C100=0,\"\",'Prezenční listina'!D100)","v":""},{"$f":"IF('Prezenční listina'!C100=0,\"\",'Prezenční listina'!E100)","v":""},{"$f":"IF('Prezenční listina'!C100=0,\"\",'Prezenční listina'!F100)","v":""},{"$f":"IF('Prezenční listina'!C100=0,\"\",'Prezenční listina'!J100)","v":""},{"$f":"IF('Prezenční listina'!C100=0,\"\",'Prezenční listina'!K100)","v":""},{"$f":"IF('Prezenční listina'!C100=0,\"\",'Prezenční listina'!A100)","v":""}]
["",{"$f":"IF('Prezenční listina'!C101=0,\"\",'Prezenční listina'!C101)","v":""},{"$f":"IF('Prezenční listina'!C101=0,\"\",'Prezenční listina'!D101)","v":""},{"$f":"IF('Prezenční listina'!C101=0,\"\",'Prezenční listina'!E101)","v":""},{"$f":"IF('Prezenční listina'!C101=0,\"\",'Prezenční listina'!F101)","v":""},{"$f":"IF('Prezenční listina'!C101=0,\"\",'Prezenční listina'!J101)","v":""},{"$f":"IF('Prezenční listina'!C101=0,\"\",'Prezenční listina'!K101)","v":""},{"$f":"IF('Prezenční listina'!C101=0,\"\",'Prezenční listina'!A101)","v":""}]
["",{"$f":"IF('Prezenční listina'!C102=0,\"\",'Prezenční listina'!C102)","v":""},{"$f":"IF('Prezenční listina'!C102=0,\"\",'Prezenční listina'!D102)","v":""},{"$f":"IF('Prezenční listina'!C102=0,\"\",'Prezenční listina'!E102)","v":""},{"$f":"IF('Prezenční listina'!C102=0,\"\",'Prezenční listina'!F102)","v":""},{"$f":"IF('Prezenční listina'!C102=0,\"\",'Prezenční listina'!J102)","v":""},{"$f":"IF('Prezenční listina'!C102=0,\"\",'Prezenční listina'!K102)","v":""},{"$f":"IF('Prezenční listina'!C102=0,\"\",'Prezenční listina'!A102)","v":""}]
["",{"$f":"IF('Prezenční listina'!C103=0,\"\",'Prezenční listina'!C103)","v":""},{"$f":"IF('Prezenční listina'!C103=0,\"\",'Prezenční listina'!D103)","v":""},{"$f":"IF('Prezenční listina'!C103=0,\"\",'Prezenční listina'!E103)","v":""},{"$f":"IF('Prezenční listina'!C103=0,\"\",'Prezenční listina'!F103)","v":""},{"$f":"IF('Prezenční listina'!C103=0,\"\",'Prezenční listina'!J103)","v":""},{"$f":"IF('Prezenční listina'!C103=0,\"\",'Prezenční listina'!K103)","v":""},{"$f":"IF('Prezenční listina'!C103=0,\"\",'Prezenční listina'!A103)","v":""}]
["",{"$f":"IF('Prezenční listina'!C104=0,\"\",'Prezenční listina'!C104)","v":""},{"$f":"IF('Prezenční listina'!C104=0,\"\",'Prezenční listina'!D104)","v":""},{"$f":"IF('Prezenční listina'!C104=0,\"\",'Prezenční listina'!E104)","v":""},{"$f":"IF('Prezenční listina'!C104=0,\"\",'Prezenční listina'!F104)","v":""},{"$f":"IF('Prezenční listina'!C104=0,\"\",'Prezenční listina'!J104)","v":""},{"$f":"IF('Prezenční listina'!C104=0,\"\",'Prezenční listina'!K104)","v":""},{"$f":"IF('Prezenční listina'!C104=0,\"\",'Prezenční listina'!A104)","v":""}]
["",{"$f":"IF('Prezenční listina'!C105=0,\"\",'Prezenční listina'!C105)","v":""},{"$f":"IF('Prezenční listina'!C105=0,\"\",'Prezenční listina'!D105)","v":""},{"$f":"IF('Prezenční listina'!C105=0,\"\",'Prezenční listina'!E105)","v":""},{"$f":"IF('Prezenční listina'!C105=0,\"\",'Prezenční listina'!F105)","v":""},{"$f":"IF('Prezenční listina'!C105=0,\"\",'Prezenční listina'!J105)","v":""},{"$f":"IF('Prezenční listina'!C105=0,\"\",'Prezenční listina'!K105)","v":""},{"$f":"IF('Prezenční listina'!C105=0,\"\",'Prezenční listina'!A105)","v":""}]
["",{"$f":"IF('Prezenční listina'!C106=0,\"\",'Prezenční listina'!C106)","v":""},{"$f":"IF('Prezenční listina'!C106=0,\"\",'Prezenční listina'!D106)","v":""},{"$f":"IF('Prezenční listina'!C106=0,\"\",'Prezenční listina'!E106)","v":""},{"$f":"IF('Prezenční listina'!C106=0,\"\",'Prezenční listina'!F106)","v":""},{"$f":"IF('Prezenční listina'!C106=0,\"\",'Prezenční listina'!J106)","v":""},{"$f":"IF('Prezenční listina'!C106=0,\"\",'Prezenční listina'!K106)","v":""},{"$f":"IF('Prezenční listina'!C106=0,\"\",'Prezenční listina'!A106)","v":""}]
["",{"$f":"IF('Prezenční listina'!C107=0,\"\",'Prezenční listina'!C107)","v":""},{"$f":"IF('Prezenční listina'!C107=0,\"\",'Prezenční listina'!D107)","v":""},{"$f":"IF('Prezenční listina'!C107=0,\"\",'Prezenční listina'!E107)","v":""},{"$f":"IF('Prezenční listina'!C107=0,\"\",'Prezenční listina'!F107)","v":""},{"$f":"IF('Prezenční listina'!C107=0,\"\",'Prezenční listina'!J107)","v":""},{"$f":"IF('Prezenční listina'!C107=0,\"\",'Prezenční listina'!K107)","v":""},{"$f":"IF('Prezenční listina'!C107=0,\"\",'Prezenční listina'!A107)","v":""}]
["",{"$f":"IF('Prezenční listina'!C108=0,\"\",'Prezenční listina'!C108)","v":""},{"$f":"IF('Prezenční listina'!C108=0,\"\",'Prezenční listina'!D108)","v":""},{"$f":"IF('Prezenční listina'!C108=0,\"\",'Prezenční listina'!E108)","v":""},{"$f":"IF('Prezenční listina'!C108=0,\"\",'Prezenční listina'!F108)","v":""},{"$f":"IF('Prezenční listina'!C108=0,\"\",'Prezenční listina'!J108)","v":""},{"$f":"IF('Prezenční listina'!C108=0,\"\",'Prezenční listina'!K108)","v":""},{"$f":"IF('Prezenční listina'!C108=0,\"\",'Prezenční listina'!A108)","v":""}]
["",{"$f":"IF('Prezenční listina'!C109=0,\"\",'Prezenční listina'!C109)","v":""},{"$f":"IF('Prezenční listina'!C109=0,\"\",'Prezenční listina'!D109)","v":""},{"$f":"IF('Prezenční listina'!C109=0,\"\",'Prezenční listina'!E109)","v":""},{"$f":"IF('Prezenční listina'!C109=0,\"\",'Prezenční listina'!F109)","v":""},{"$f":"IF('Prezenční listina'!C109=0,\"\",'Prezenční listina'!J109)","v":""},{"$f":"IF('Prezenční listina'!C109=0,\"\",'Prezenční listina'!K109)","v":""},{"$f":"IF('Prezenční listina'!C109=0,\"\",'Prezenční listina'!A109)","v":""}]
["",{"$f":"IF('Prezenční listina'!C110=0,\"\",'Prezenční listina'!C110)","v":""},{"$f":"IF('Prezenční listina'!C110=0,\"\",'Prezenční listina'!D110)","v":""},{"$f":"IF('Prezenční listina'!C110=0,\"\",'Prezenční listina'!E110)","v":""},{"$f":"IF('Prezenční listina'!C110=0,\"\",'Prezenční listina'!F110)","v":""},{"$f":"IF('Prezenční listina'!C110=0,\"\",'Prezenční listina'!J110)","v":""},{"$f":"IF('Prezenční listina'!C110=0,\"\",'Prezenční listina'!K110)","v":""},{"$f":"IF('Prezenční listina'!C110=0,\"\",'Prezenční listina'!A110)","v":""}]
["",{"$f":"IF('Prezenční listina'!C111=0,\"\",'Prezenční listina'!C111)","v":""},{"$f":"IF('Prezenční listina'!C111=0,\"\",'Prezenční listina'!D111)","v":""},{"$f":"IF('Prezenční listina'!C111=0,\"\",'Prezenční listina'!E111)","v":""},{"$f":"IF('Prezenční listina'!C111=0,\"\",'Prezenční listina'!F111)","v":""},{"$f":"IF('Prezenční listina'!C111=0,\"\",'Prezenční listina'!J111)","v":""},{"$f":"IF('Prezenční listina'!C111=0,\"\",'Prezenční listina'!K111)","v":""},{"$f":"IF('Prezenční listina'!C111=0,\"\",'Prezenční listina'!A111)","v":""}]
["",{"$f":"IF('Prezenční listina'!C112=0,\"\",'Prezenční listina'!C112)","v":""},{"$f":"IF('Prezenční listina'!C112=0,\"\",'Prezenční listina'!D112)","v":""},{"$f":"IF('Prezenční listina'!C112=0,\"\",'Prezenční listina'!E112)","v":""},{"$f":"IF('Prezenční listina'!C112=0,\"\",'Prezenční listina'!F112)","v":""},{"$f":"IF('Prezenční listina'!C112=0,\"\",'Prezenční listina'!J112)","v":""},{"$f":"IF('Prezenční listina'!C112=0,\"\",'Prezenční listina'!K112)","v":""},{"$f":"IF('Prezenční listina'!C112=0,\"\",'Prezenční listina'!A112)","v":""}]
["",{"$f":"IF('Prezenční listina'!C113=0,\"\",'Prezenční listina'!C113)","v":""},{"$f":"IF('Prezenční listina'!C113=0,\"\",'Prezenční listina'!D113)","v":""},{"$f":"IF('Prezenční listina'!C113=0,\"\",'Prezenční listina'!E113)","v":""},{"$f":"IF('Prezenční listina'!C113=0,\"\",'Prezenční listina'!F113)","v":""},{"$f":"IF('Prezenční listina'!C113=0,\"\",'Prezenční listina'!J113)","v":""},{"$f":"IF('Prezenční listina'!C113=0,\"\",'Prezenční listina'!K113)","v":""},{"$f":"IF('Prezenční listina'!C113=0,\"\",'Prezenční listina'!A113)","v":""}]
["",{"$f":"IF('Prezenční listina'!C114=0,\"\",'Prezenční listina'!C114)","v":""},{"$f":"IF('Prezenční listina'!C114=0,\"\",'Prezenční listina'!D114)","v":""},{"$f":"IF('Prezenční listina'!C114=0,\"\",'Prezenční listina'!E114)","v":""},{"$f":"IF('Prezenční listina'!C114=0,\"\",'Prezenční listina'!F114)","v":""},{"$f":"IF('Prezenční listina'!C114=0,\"\",'Prezenční listina'!J114)","v":""},{"$f":"IF('Prezenční listina'!C114=0,\"\",'Prezenční listina'!K114)","v":""},{"$f":"IF('Prezenční listina'!C114=0,\"\",'Prezenční listina'!A114)","v":""}]
["",{"$f":"IF('Prezenční listina'!C115=0,\"\",'Prezenční listina'!C115)","v":""},{"$f":"IF('Prezenční listina'!C115=0,\"\",'Prezenční listina'!D115)","v":""},{"$f":"IF('Prezenční listina'!C115=0,\"\",'Prezenční listina'!E115)","v":""},{"$f":"IF('Prezenční listina'!C115=0,\"\",'Prezenční listina'!F115)","v":""},{"$f":"IF('Prezenční listina'!C115=0,\"\",'Prezenční listina'!J115)","v":""},{"$f":"IF('Prezenční listina'!C115=0,\"\",'Prezenční listina'!K115)","v":""},{"$f":"IF('Prezenční listina'!C115=0,\"\",'Prezenční listina'!A115)","v":""}]
["",{"$f":"IF('Prezenční listina'!C116=0,\"\",'Prezenční listina'!C116)","v":""},{"$f":"IF('Prezenční listina'!C116=0,\"\",'Prezenční listina'!D116)","v":""},{"$f":"IF('Prezenční listina'!C116=0,\"\",'Prezenční listina'!E116)","v":""},{"$f":"IF('Prezenční listina'!C116=0,\"\",'Prezenční listina'!F116)","v":""},{"$f":"IF('Prezenční listina'!C116=0,\"\",'Prezenční listina'!J116)","v":""},{"$f":"IF('Prezenční listina'!C116=0,\"\",'Prezenční listina'!K116)","v":""},{"$f":"IF('Prezenční listina'!C116=0,\"\",'Prezenční listina'!A116)","v":""}]
["",{"$f":"IF('Prezenční listina'!C117=0,\"\",'Prezenční listina'!C117)","v":""},{"$f":"IF('Prezenční listina'!C117=0,\"\",'Prezenční listina'!D117)","v":""},{"$f":"IF('Prezenční listina'!C117=0,\"\",'Prezenční listina'!E117)","v":""},{"$f":"IF('Prezenční listina'!C117=0,\"\",'Prezenční listina'!F117)","v":""},{"$f":"IF('Prezenční listina'!C117=0,\"\",'Prezenční listina'!J117)","v":""},{"$f":"IF('Prezenční listina'!C117=0,\"\",'Prezenční listina'!K117)","v":""},{"$f":"IF('Prezenční listina'!C117=0,\"\",'Prezenční listina'!A117)","v":""}]
["",{"$f":"IF('Prezenční listina'!C118=0,\"\",'Prezenční listina'!C118)","v":""},{"$f":"IF('Prezenční listina'!C118=0,\"\",'Prezenční listina'!D118)","v":""},{"$f":"IF('Prezenční listina'!C118=0,\"\",'Prezenční listina'!E118)","v":""},{"$f":"IF('Prezenční listina'!C118=0,\"\",'Prezenční listina'!F118)","v":""},{"$f":"IF('Prezenční listina'!C118=0,\"\",'Prezenční listina'!J118)","v":""},{"$f":"IF('Prezenční listina'!C118=0,\"\",'Prezenční listina'!K118)","v":""},{"$f":"IF('Prezenční listina'!C118=0,\"\",'Prezenční listina'!A118)","v":""}]
["",{"$f":"IF('Prezenční listina'!C119=0,\"\",'Prezenční listina'!C119)","v":""},{"$f":"IF('Prezenční listina'!C119=0,\"\",'Prezenční listina'!D119)","v":""},{"$f":"IF('Prezenční listina'!C119=0,\"\",'Prezenční listina'!E119)","v":""},{"$f":"IF('Prezenční listina'!C119=0,\"\",'Prezenční listina'!F119)","v":""},{"$f":"IF('Prezenční listina'!C119=0,\"\",'Prezenční listina'!J119)","v":""},{"$f":"IF('Prezenční listina'!C119=0,\"\",'Prezenční listina'!K119)","v":""},{"$f":"IF('Prezenční listina'!C119=0,\"\",'Prezenční listina'!A119)","v":""}]
["",{"$f":"IF('Prezenční listina'!C120=0,\"\",'Prezenční listina'!C120)","v":""},{"$f":"IF('Prezenční listina'!C120=0,\"\",'Prezenční listina'!D120)","v":""},{"$f":"IF('Prezenční listina'!C120=0,\"\",'Prezenční listina'!E120)","v":""},{"$f":"IF('Prezenční listina'!C120=0,\"\",'Prezenční listina'!F120)","v":""},{"$f":"IF('Prezenční listina'!C120=0,\"\",'Prezenční listina'!J120)","v":""},{"$f":"IF('Prezenční listina'!C120=0,\"\",'Prezenční listina'!K120)","v":""},{"$f":"IF('Prezenční listina'!C120=0,\"\",'Prezenční listina'!A120)","v":""}]
["",{"$f":"IF('Prezenční listina'!C121=0,\"\",'Prezenční listina'!C121)","v":""},{"$f":"IF('Prezenční listina'!C121=0,\"\",'Prezenční listina'!D121)","v":""},{"$f":"IF('Prezenční listina'!C121=0,\"\",'Prezenční listina'!E121)","v":""},{"$f":"IF('Prezenční listina'!C121=0,\"\",'Prezenční listina'!F121)","v":""},{"$f":"IF('Prezenční listina'!C121=0,\"\",'Prezenční listina'!J121)","v":""},{"$f":"IF('Prezenční listina'!C121=0,\"\",'Prezenční listina'!K121)","v":""},{"$f":"IF('Prezenční listina'!C121=0,\"\",'Prezenční listina'!A121)","v":""}]
["",{"$f":"IF('Prezenční listina'!C122=0,\"\",'Prezenční listina'!C122)","v":""},{"$f":"IF('Prezenční listina'!C122=0,\"\",'Prezenční listina'!D122)","v":""},{"$f":"IF('Prezenční listina'!C122=0,\"\",'Prezenční listina'!E122)","v":""},{"$f":"IF('Prezenční listina'!C122=0,\"\",'Prezenční listina'!F122)","v":""},{"$f":"IF('Prezenční listina'!C122=0,\"\",'Prezenční listina'!J122)","v":""},{"$f":"IF('Prezenční listina'!C122=0,\"\",'Prezenční listina'!K122)","v":""},{"$f":"IF('Prezenční listina'!C122=0,\"\",'Prezenční listina'!A122)","v":""}]
["",{"$f":"IF('Prezenční listina'!C123=0,\"\",'Prezenční listina'!C123)","v":""},{"$f":"IF('Prezenční listina'!C123=0,\"\",'Prezenční listina'!D123)","v":""},{"$f":"IF('Prezenční listina'!C123=0,\"\",'Prezenční listina'!E123)","v":""},{"$f":"IF('Prezenční listina'!C123=0,\"\",'Prezenční listina'!F123)","v":""},{"$f":"IF('Prezenční listina'!C123=0,\"\",'Prezenční listina'!J123)","v":""},{"$f":"IF('Prezenční listina'!C123=0,\"\",'Prezenční listina'!K123)","v":""},{"$f":"IF('Prezenční listina'!C123=0,\"\",'Prezenční listina'!A123)","v":""}]
["",{"$f":"IF('Prezenční listina'!C124=0,\"\",'Prezenční listina'!C124)","v":""},{"$f":"IF('Prezenční listina'!C124=0,\"\",'Prezenční listina'!D124)","v":""},{"$f":"IF('Prezenční listina'!C124=0,\"\",'Prezenční listina'!E124)","v":""},{"$f":"IF('Prezenční listina'!C124=0,\"\",'Prezenční listina'!F124)","v":""},{"$f":"IF('Prezenční listina'!C124=0,\"\",'Prezenční listina'!J124)","v":""},{"$f":"IF('Prezenční listina'!C124=0,\"\",'Prezenční listina'!K124)","v":""},{"$f":"IF('Prezenční listina'!C124=0,\"\",'Prezenční listina'!A124)","v":""}]
["",{"$f":"IF('Prezenční listina'!C125=0,\"\",'Prezenční listina'!C125)","v":""},{"$f":"IF('Prezenční listina'!C125=0,\"\",'Prezenční listina'!D125)","v":""},{"$f":"IF('Prezenční listina'!C125=0,\"\",'Prezenční listina'!E125)","v":""},{"$f":"IF('Prezenční listina'!C125=0,\"\",'Prezenční listina'!F125)","v":""},{"$f":"IF('Prezenční listina'!C125=0,\"\",'Prezenční listina'!J125)","v":""},{"$f":"IF('Prezenční listina'!C125=0,\"\",'Prezenční listina'!K125)","v":""},{"$f":"IF('Prezenční listina'!C125=0,\"\",'Prezenční listina'!A125)","v":""}]
["",{"$f":"IF('Prezenční listina'!C126=0,\"\",'Prezenční listina'!C126)","v":""},{"$f":"IF('Prezenční listina'!C126=0,\"\",'Prezenční listina'!D126)","v":""},{"$f":"IF('Prezenční listina'!C126=0,\"\",'Prezenční listina'!E126)","v":""},{"$f":"IF('Prezenční listina'!C126=0,\"\",'Prezenční listina'!F126)","v":""},{"$f":"IF('Prezenční listina'!C126=0,\"\",'Prezenční listina'!J126)","v":""},{"$f":"IF('Prezenční listina'!C126=0,\"\",'Prezenční listina'!K126)","v":""},{"$f":"IF('Prezenční listina'!C126=0,\"\",'Prezenční listina'!A126)","v":""}]
["",{"$f":"IF('Prezenční listina'!C127=0,\"\",'Prezenční listina'!C127)","v":""},{"$f":"IF('Prezenční listina'!C127=0,\"\",'Prezenční listina'!D127)","v":""},{"$f":"IF('Prezenční listina'!C127=0,\"\",'Prezenční listina'!E127)","v":""},{"$f":"IF('Prezenční listina'!C127=0,\"\",'Prezenční listina'!F127)","v":""},{"$f":"IF('Prezenční listina'!C127=0,\"\",'Prezenční listina'!J127)","v":""},{"$f":"IF('Prezenční listina'!C127=0,\"\",'Prezenční listina'!K127)","v":""},{"$f":"IF('Prezenční listina'!C127=0,\"\",'Prezenční listina'!A127)","v":""}]
["",{"$f":"IF('Prezenční listina'!C128=0,\"\",'Prezenční listina'!C128)","v":""},{"$f":"IF('Prezenční listina'!C128=0,\"\",'Prezenční listina'!D128)","v":""},{"$f":"IF('Prezenční listina'!C128=0,\"\",'Prezenční listina'!E128)","v":""},{"$f":"IF('Prezenční listina'!C128=0,\"\",'Prezenční listina'!F128)","v":""},{"$f":"IF('Prezenční listina'!C128=0,\"\",'Prezenční listina'!J128)","v":""},{"$f":"IF('Prezenční listina'!C128=0,\"\",'Prezenční listina'!K128)","v":""},{"$f":"IF('Prezenční listina'!C128=0,\"\",'Prezenční listina'!A128)","v":""}]
["",{"$f":"IF('Prezenční listina'!C129=0,\"\",'Prezenční listina'!C129)","v":""},{"$f":"IF('Prezenční listina'!C129=0,\"\",'Prezenční listina'!D129)","v":""},{"$f":"IF('Prezenční listina'!C129=0,\"\",'Prezenční listina'!E129)","v":""},{"$f":"IF('Prezenční listina'!C129=0,\"\",'Prezenční listina'!F129)","v":""},{"$f":"IF('Prezenční listina'!C129=0,\"\",'Prezenční listina'!J129)","v":""},{"$f":"IF('Prezenční listina'!C129=0,\"\",'Prezenční listina'!K129)","v":""},{"$f":"IF('Prezenční listina'!C129=0,\"\",'Prezenční listina'!A129)","v":""}]
["",{"$f":"IF('Prezenční listina'!C130=0,\"\",'Prezenční listina'!C130)","v":""},{"$f":"IF('Prezenční listina'!C130=0,\"\",'Prezenční listina'!D130)","v":""},{"$f":"IF('Prezenční listina'!C130=0,\"\",'Prezenční listina'!E130)","v":""},{"$f":"IF('Prezenční listina'!C130=0,\"\",'Prezenční listina'!F130)","v":""},{"$f":"IF('Prezenční listina'!C130=0,\"\",'Prezenční listina'!J130)","v":""},{"$f":"IF('Prezenční listina'!C130=0,\"\",'Prezenční listina'!K130)","v":""},{"$f":"IF('Prezenční listina'!C130=0,\"\",'Prezenční listina'!A130)","v":""}]
["",{"$f":"IF('Prezenční listina'!C131=0,\"\",'Prezenční listina'!C131)","v":""},{"$f":"IF('Prezenční listina'!C131=0,\"\",'Prezenční listina'!D131)","v":""},{"$f":"IF('Prezenční listina'!C131=0,\"\",'Prezenční listina'!E131)","v":""},{"$f":"IF('Prezenční listina'!C131=0,\"\",'Prezenční listina'!F131)","v":""},{"$f":"IF('Prezenční listina'!C131=0,\"\",'Prezenční listina'!J131)","v":""},{"$f":"IF('Prezenční listina'!C131=0,\"\",'Prezenční listina'!K131)","v":""},{"$f":"IF('Prezenční listina'!C131=0,\"\",'Prezenční listina'!A131)","v":""}]
["",{"$f":"IF('Prezenční listina'!C132=0,\"\",'Prezenční listina'!C132)","v":""},{"$f":"IF('Prezenční listina'!C132=0,\"\",'Prezenční listina'!D132)","v":""},{"$f":"IF('Prezenční listina'!C132=0,\"\",'Prezenční listina'!E132)","v":""},{"$f":"IF('Prezenční listina'!C132=0,\"\",'Prezenční listina'!F132)","v":""},{"$f":"IF('Prezenční listina'!C132=0,\"\",'Prezenční listina'!J132)","v":""},{"$f":"IF('Prezenční listina'!C132=0,\"\",'Prezenční listina'!K132)","v":""},{"$f":"IF('Prezenční listina'!C132=0,\"\",'Prezenční listina'!A132)","v":""}]
[{"$f":"IF(B135=\"\",\"\",A134+1)","v":""},{"$f":"IF('Prezenční listina'!C133=0,\"\",'Prezenční listina'!C133)","v":""},{"$f":"IF('Prezenční listina'!C133=0,\"\",'Prezenční listina'!D133)","v":""},{"$f":"IF('Prezenční listina'!C133=0,\"\",'Prezenční listina'!E133)","v":""},{"$f":"IF('Prezenční listina'!C133=0,\"\",'Prezenční listina'!F133)","v":""},{"$f":"IF('Prezenční listina'!C133=0,\"\",'Prezenční listina'!J133)","v":""},{"$f":"IF('Prezenční listina'!C133=0,\"\",'Prezenční listina'!K133)","v":""},{"$f":"IF('Prezenční listina'!C133=0,\"\",'Prezenční listina'!A133)","v":""}]
["",{"$f":"IF('Prezenční listina'!C134=0,\"\",'Prezenční listina'!C134)","v":""},{"$f":"IF('Prezenční listina'!C134=0,\"\",'Prezenční listina'!D134)","v":""},{"$f":"IF('Prezenční listina'!C134=0,\"\",'Prezenční listina'!E134)","v":""},{"$f":"IF('Prezenční listina'!C134=0,\"\",'Prezenční listina'!F134)","v":""},{"$f":"IF('Prezenční listina'!C134=0,\"\",'Prezenční listina'!J134)","v":""},{"$f":"IF('Prezenční listina'!C134=0,\"\",'Prezenční listina'!K134)","v":""},{"$f":"IF('Prezenční listina'!C134=0,\"\",'Prezenční listina'!A134)","v":""}]
["",{"$f":"IF('Prezenční listina'!C135=0,\"\",'Prezenční listina'!C135)","v":""},{"$f":"IF('Prezenční listina'!C135=0,\"\",'Prezenční listina'!D135)","v":""},{"$f":"IF('Prezenční listina'!C135=0,\"\",'Prezenční listina'!E135)","v":""},{"$f":"IF('Prezenční listina'!C135=0,\"\",'Prezenční listina'!F135)","v":""},{"$f":"IF('Prezenční listina'!C135=0,\"\",'Prezenční listina'!J135)","v":""},{"$f":"IF('Prezenční listina'!C135=0,\"\",'Prezenční listina'!K135)","v":""},{"$f":"IF('Prezenční listina'!C135=0,\"\",'Prezenční listina'!A135)","v":""}]
["",{"$f":"IF('Prezenční listina'!C136=0,\"\",'Prezenční listina'!C136)","v":""},{"$f":"IF('Prezenční listina'!C136=0,\"\",'Prezenční listina'!D136)","v":""},{"$f":"IF('Prezenční listina'!C136=0,\"\",'Prezenční listina'!E136)","v":""},{"$f":"IF('Prezenční listina'!C136=0,\"\",'Prezenční listina'!F136)","v":""},{"$f":"IF('Prezenční listina'!C136=0,\"\",'Prezenční listina'!J136)","v":""},{"$f":"IF('Prezenční listina'!C136=0,\"\",'Prezenční listina'!K136)","v":""},{"$f":"IF('Prezenční listina'!C136=0,\"\",'Prezenční listina'!A136)","v":""}]
["",{"$f":"IF('Prezenční listina'!C137=0,\"\",'Prezenční listina'!C137)","v":""},{"$f":"IF('Prezenční listina'!C137=0,\"\",'Prezenční listina'!D137)","v":""},{"$f":"IF('Prezenční listina'!C137=0,\"\",'Prezenční listina'!E137)","v":""},{"$f":"IF('Prezenční listina'!C137=0,\"\",'Prezenční listina'!F137)","v":""},{"$f":"IF('Prezenční listina'!C137=0,\"\",'Prezenční listina'!J137)","v":""},{"$f":"IF('Prezenční listina'!C137=0,\"\",'Prezenční listina'!K137)","v":""},{"$f":"IF('Prezenční listina'!C137=0,\"\",'Prezenční listina'!A137)","v":""}]
["",{"$f":"IF('Prezenční listina'!C138=0,\"\",'Prezenční listina'!C138)","v":""},{"$f":"IF('Prezenční listina'!C138=0,\"\",'Prezenční listina'!D138)","v":""},{"$f":"IF('Prezenční listina'!C138=0,\"\",'Prezenční listina'!E138)","v":""},{"$f":"IF('Prezenční listina'!C138=0,\"\",'Prezenční listina'!F138)","v":""},{"$f":"IF('Prezenční listina'!C138=0,\"\",'Prezenční listina'!J138)","v":""},{"$f":"IF('Prezenční listina'!C138=0,\"\",'Prezenční listina'!K138)","v":""},{"$f":"IF('Prezenční listina'!C138=0,\"\",'Prezenční listina'!A138)","v":""}]
["",{"$f":"IF('Prezenční listina'!C139=0,\"\",'Prezenční listina'!C139)","v":""},{"$f":"IF('Prezenční listina'!C139=0,\"\",'Prezenční listina'!D139)","v":""},{"$f":"IF('Prezenční listina'!C139=0,\"\",'Prezenční listina'!E139)","v":""},{"$f":"IF('Prezenční listina'!C139=0,\"\",'Prezenční listina'!F139)","v":""},{"$f":"IF('Prezenční listina'!C139=0,\"\",'Prezenční listina'!J139)","v":""},{"$f":"IF('Prezenční listina'!C139=0,\"\",'Prezenční listina'!K139)","v":""},{"$f":"IF('Prezenční listina'!C139=0,\"\",'Prezenční listina'!A139)","v":""}]
[null,{"$f":"IF('Prezenční listina'!C140=0,\"\",'Prezenční listina'!C140)","v":""},{"$f":"IF('Prezenční listina'!C140=0,\"\",'Prezenční listina'!D140)","v":""},{"$f":"IF('Prezenční listina'!C140=0,\"\",'Prezenční listina'!E140)","v":""},{"$f":"IF('Prezenční listina'!C140=0,\"\",'Prezenční listina'!F140)","v":""},{"$f":"IF('Prezenční listina'!C140=0,\"\",'Prezenční listina'!J140)","v":""},{"$f":"IF('Prezenční listina'!C140=0,\"\",'Prezenční listina'!K140)","v":""},{"$f":"IF('Prezenční listina'!C140=0,\"\",'Prezenční listina'!A140)","v":""}]
[null,{"$f":"IF('Prezenční listina'!C141=0,\"\",'Prezenční listina'!C141)","v":""},{"$f":"IF('Prezenční listina'!C141=0,\"\",'Prezenční listina'!D141)","v":""},{"$f":"IF('Prezenční listina'!C141=0,\"\",'Prezenční listina'!E141)","v":""},{"$f":"IF('Prezenční listina'!C141=0,\"\",'Prezenční listina'!F141)","v":""},{"$f":"IF('Prezenční listina'!C141=0,\"\",'Prezenční listina'!J141)","v":""},{"$f":"IF('Prezenční listina'!C141=0,\"\",'Prezenční listina'!K141)","v":""},{"$f":"IF('Prezenční listina'!C141=0,\"\",'Prezenční listina'!A141)","v":""}]
[null,{"$f":"IF('Prezenční listina'!C142=0,\"\",'Prezenční listina'!C142)","v":""},{"$f":"IF('Prezenční listina'!C142=0,\"\",'Prezenční listina'!D142)","v":""},{"$f":"IF('Prezenční listina'!C142=0,\"\",'Prezenční listina'!E142)","v":""},{"$f":"IF('Prezenční listina'!C142=0,\"\",'Prezenční listina'!F142)","v":""},{"$f":"IF('Prezenční listina'!C142=0,\"\",'Prezenční listina'!J142)","v":""},{"$f":"IF('Prezenční listina'!C142=0,\"\",'Prezenční listina'!K142)","v":""},{"$f":"IF('Prezenční listina'!C142=0,\"\",'Prezenční listina'!A142)","v":""}]
[null,{"$f":"IF('Prezenční listina'!C143=0,\"\",'Prezenční listina'!C143)","v":""},{"$f":"IF('Prezenční listina'!C143=0,\"\",'Prezenční listina'!D143)","v":""},{"$f":"IF('Prezenční listina'!C143=0,\"\",'Prezenční listina'!E143)","v":""},{"$f":"IF('Prezenční listina'!C143=0,\"\",'Prezenční listina'!F143)","v":""},{"$f":"IF('Prezenční listina'!C143=0,\"\",'Prezenční listina'!J143)","v":""},{"$f":"IF('Prezenční listina'!C143=0,\"\",'Prezenční listina'!K143)","v":""},{"$f":"IF('Prezenční listina'!C143=0,\"\",'Prezenční listina'!A143)","v":""}]
[null,{"$f":"IF('Prezenční listina'!C144=0,\"\",'Prezenční listina'!C144)","v":""},{"$f":"IF('Prezenční listina'!C144=0,\"\",'Prezenční listina'!D144)","v":""},{"$f":"IF('Prezenční listina'!C144=0,\"\",'Prezenční listina'!E144)","v":""},{"$f":"IF('Prezenční listina'!C144=0,\"\",'Prezenční listina'!F144)","v":""},{"$f":"IF('Prezenční listina'!C144=0,\"\",'Prezenční listina'!J144)","v":""},{"$f":"IF('Prezenční listina'!C144=0,\"\",'Prezenční listina'!K144)","v":""},{"$f":"IF('Prezenční listina'!C144=0,\"\",'Prezenční listina'!A144)","v":""}]
[null,{"$f":"IF('Prezenční listina'!C145=0,\"\",'Prezenční listina'!C145)","v":""},{"$f":"IF('Prezenční listina'!C145=0,\"\",'Prezenční listina'!D145)","v":""},{"$f":"IF('Prezenční listina'!C145=0,\"\",'Prezenční listina'!E145)","v":""},{"$f":"IF('Prezenční listina'!C145=0,\"\",'Prezenční listina'!F145)","v":""},{"$f":"IF('Prezenční listina'!C145=0,\"\",'Prezenční listina'!J145)","v":""},{"$f":"IF('Prezenční listina'!C145=0,\"\",'Prezenční listina'!K145)","v":""},{"$f":"IF('Prezenční listina'!C145=0,\"\",'Prezenční listina'!A145)","v":""}]
[null,{"$f":"IF('Prezenční listina'!C146=0,\"\",'Prezenční listina'!C146)","v":""},{"$f":"IF('Prezenční listina'!C146=0,\"\",'Prezenční listina'!D146)","v":""},{"$f":"IF('Prezenční listina'!C146=0,\"\",'Prezenční listina'!E146)","v":""},{"$f":"IF('Prezenční listina'!C146=0,\"\",'Prezenční listina'!F146)","v":""},{"$f":"IF('Prezenční listina'!C146=0,\"\",'Prezenční listina'!J146)","v":""},{"$f":"IF('Prezenční listina'!C146=0,\"\",'Prezenční listina'!K146)","v":""},{"$f":"IF('Prezenční listina'!C146=0,\"\",'Prezenční listina'!A146)","v":""}]
[null,{"$f":"IF('Prezenční listina'!C147=0,\"\",'Prezenční listina'!C147)","v":""},{"$f":"IF('Prezenční listina'!C147=0,\"\",'Prezenční listina'!D147)","v":""},{"$f":"IF('Prezenční listina'!C147=0,\"\",'Prezenční listina'!E147)","v":""},{"$f":"IF('Prezenční listina'!C147=0,\"\",'Prezenční listina'!F147)","v":""},{"$f":"IF('Prezenční listina'!C147=0,\"\",'Prezenční listina'!J147)","v":""},{"$f":"IF('Prezenční listina'!C147=0,\"\",'Prezenční listina'!K147)","v":""},{"$f":"IF('Prezenční listina'!C147=0,\"\",'Prezenční listina'!A147)","v":""}]
[null,{"$f":"IF('Prezenční listina'!C148=0,\"\",'Prezenční listina'!C148)","v":""},{"$f":"IF('Prezenční listina'!C148=0,\"\",'Prezenční listina'!D148)","v":""},{"$f":"IF('Prezenční listina'!C148=0,\"\",'Prezenční listina'!E148)","v":""},{"$f":"IF('Prezenční listina'!C148=0,\"\",'Prezenční listina'!F148)","v":""},{"$f":"IF('Prezenční listina'!C148=0,\"\",'Prezenční listina'!J148)","v":""},{"$f":"IF('Prezenční listina'!C148=0,\"\",'Prezenční listina'!K148)","v":""},{"$f":"IF('Prezenční listina'!C148=0,\"\",'Prezenční listina'!A148)","v":""}]
[null,{"$f":"IF('Prezenční listina'!C149=0,\"\",'Prezenční listina'!C149)","v":""},{"$f":"IF('Prezenční listina'!C149=0,\"\",'Prezenční listina'!D149)","v":""},{"$f":"IF('Prezenční listina'!C149=0,\"\",'Prezenční listina'!E149)","v":""},{"$f":"IF('Prezenční listina'!C149=0,\"\",'Prezenční listina'!F149)","v":""},{"$f":"IF('Prezenční listina'!C149=0,\"\",'Prezenční listina'!J149)","v":""},{"$f":"IF('Prezenční listina'!C149=0,\"\",'Prezenční listina'!K149)","v":""},{"$f":"IF('Prezenční listina'!C149=0,\"\",'Prezenční listina'!A149)","v":""}]
[null,{"$f":"IF('Prezenční listina'!C150=0,\"\",'Prezenční listina'!C150)","v":""},{"$f":"IF('Prezenční listina'!C150=0,\"\",'Prezenční listina'!D150)","v":""},{"$f":"IF('Prezenční listina'!C150=0,\"\",'Prezenční listina'!E150)","v":""},{"$f":"IF('Prezenční listina'!C150=0,\"\",'Prezenční listina'!F150)","v":""},{"$f":"IF('Prezenční listina'!C150=0,\"\",'Prezenční listina'!J150)","v":""},{"$f":"IF('Prezenční listina'!C150=0,\"\",'Prezenční listina'!K150)","v":""},{"$f":"IF('Prezenční listina'!C150=0,\"\",'Prezenční listina'!A150)","v":""}]

{"sheet":"Výsledková listina","index":2,"n_rows":103,"n_cols":12,"rows_kept":103,"cut":false,"hidden":false,"merged":[[0,0,0,9],[2,0,2,9],[1,0,1,9],[1,11,12,15]]}
[{"$f":"\"Výsledková listina - Bystřickem kolem Vírské přehrady \"&'Prezenční listina'!U2","v":"Výsledková listina - Bystřickem kolem Vírské přehrady 2018"}]
[{"$f":"'Startovní listina'!A2:H2","v":"2018-05-26"},null,null,null,null,null,null,null,null,null,null,"\nPoté, co jsou dopsány časy VŠECH běžců, stisknout tlačítko 1.řazení \n\n\nVe sloupci B (Pořadí v kategorii) vytvořit posloupnou číselnou řadu pro každou kategorii a poté stisknout tlačítko 2.řazení\n\n\n                      !!! POZOR!!!\n\n               Použití tlačítek je nevratný krok!"]
[{"$f":"'Startovní listina'!A3:H3","v":"14. ročník"}]
["Celkové pořadí","Pořadí v kategorii","Kategorie","Startovní číslo","Příjmení","Jméno","Narození","Město","Tým","Čas"]
[1,1,"A",27,"Kohut","Jan",1985,null,"Univerzita Brno","01:47:49"]
[{"$f":"IF('Výsledková listina'!D5<>\"\",A5+1,\"\")","v":2},2,"A",36,"Hradecký","Jaromír",1985,"Skuteč",null,"01:49:08"]
[{"$f":"IF('Výsledková listina'!D6<>\"\",A6+1,\"\")","v":3},3,"A",29,"Šebánek","Petr",1979,"Rájec",null,"01:49:37"]
[{"$f":"IF('Výsledková listina'!D19<>\"\",A7+1,\"\")","v":4},1,"B",35,"Vintrlík","Martin",1977,"Křepice","Triatlon Křepice","01:50:54"]
[{"$f":"IF('Výsledková listina'!D20<>\"\",A8+1,\"\")","v":5},2,"B",33,"Pohanka","Martin",1973,null,"Track & Field Brno","01:51:50"]
[{"$f":"IF('Výsledková listina'!D7<>\"\",A9+1,\"\")","v":6},4,"A",43,"Glier","Michal",1982,"Doubravník","SDH Doubravník","01:52:23"]
[{"$f":"IF('Výsledková listina'!D8<>\"\",A10+1,\"\")","v":7},5,"A",21,"Toman","Radek",1987,"Litomysl","AFK Kornice","01:53:30"]
[{"$f":"IF('Výsledková listina'!D9<>\"\",A11+1,\"\")","v":8},6,"A",34,"Oberreiter","Martin",1988,"Polná",null,"01:54:00"]
[{"$f":"IF('Výsledková listina'!D10<>\"\",A12+1,\"\")","v":9},7,"A",5,"Hrdina","Tomáš",1979,"Rosice","AC Moravská Slavia Brno","01:57:49"]
[{"$f":"IF('Výsledková listina'!D21<>\"\",A13+1,\"\")","v":10},3,"B",39,"Konečný","Libor",1971,"Kuřim",null,"02:00:10"]
[{"$f":"IF('Výsledková listina'!D30<>\"\",A14+1,\"\")","v":11},1,"C",14,"Ožana","Václav",1964,"Nové Město na Moravě","TJ Nové Město na Moravě","02:02:49"]
[{"$f":"IF('Výsledková listina'!D22<>\"\",A15+1,\"\")","v":12},4,"B",6,"Šerák","Martin",1978,null,"Sokol Bílovice n. Svit.","02:03:11"]
[{"$f":"IF('Výsledková listina'!D31<>\"\",A16+1,\"\")","v":13},2,"C",23,"Šimunek","Martin",1966,"Modřice","Modřice","02:03:14"]
[{"$f":"IF('Výsledková listina'!D32<>\"\",A17+1,\"\")","v":14},3,"C",19,"Hýbl","Jiří",1967,"Hrušovany u Brna","Hrušovany u Brna","02:03:25"]
[{"$f":"IF('Výsledková listina'!D33<>\"\",A18+1,\"\")","v":15},4,"C",22,"Svoboda","Petr",1968,"Brno","AC Moravská Slavia Brno","02:04:03"]
[{"$f":"IF('Výsledková listina'!D23<>\"\",A19+1,\"\")","v":16},5,"B",2,"Kuneš","David",1974,"Tišnov","EURUNNER","02:04:35"]
[{"$f":"IF('Výsledková listina'!D40<>\"\",A20+1,\"\")","v":17},1,"F",4,"Pešáková","Mirka",1985,"Tetčice","AC Racers","02:07:24"]
[{"$f":"IF('Výsledková listina'!D11<>\"\",A21+1,\"\")","v":18},8,"A",1,"Hübner","Tomáš",1979,"Brno","SDH Bolešín","02:08:44"]
[{"$f":"IF('Výsledková listina'!D34<>\"\",A22+1,\"\")","v":19},5,"C",30,"Dvořáček","Jiří",1968,null,"Elite Sport Max Training","02:10:43"]
[{"$f":"IF('Výsledková listina'!D24<>\"\",A23+1,\"\")","v":20},6,"B",20,"Kropáček","Jaroslav",1970,"Brno",null,"02:11:05"]
[{"$f":"IF('Výsledková listina'!D25<>\"\",A24+1,\"\")","v":21},7,"B",42,"Fritscher","Adam",1975,null,"TJ Liga 100 Olomouc","02:11:22"]
[{"$f":"IF('Výsledková listina'!D26<>\"\",A25+1,\"\")","v":22},8,"B",44,"Kratochvíl","Jaroslav",1977,"Moravany","SDH Hluboké","02:14:34"]
[{"$f":"IF('Výsledková listina'!D44<>\"\",A26+1,\"\")","v":23},1,"G",32,"Klinecká","Jana",1981,"Hlinsko","MK Hlinsko","02:15:54"]
[{"$f":"IF('Výsledková listina'!D35<>\"\",A27+1,\"\")","v":24},6,"C",24,"Nosek","Pavel ",1965,"Slavkov u Brna","ASK Slavkov","02:16:26"]
[{"$f":"IF('Výsledková listina'!D45<>\"\",A28+1,\"\")","v":25},2,"G",38,"Komárková","Zdeňka",1974,"Olešnice na Mor.","SDH Bolešín","02:17:33"]
[{"$f":"IF('Výsledková listina'!D12<>\"\",A29+1,\"\")","v":26},9,"A",25,"Košek","Martin",1984,"Brno",null,"02:23:54"]
[{"$f":"IF('Výsledková listina'!D13<>\"\",A30+1,\"\")","v":27},10,"A",3,"Hanák","Jakub",1986,"Vír","Plant Powered Runners","02:24:42"]
[{"$f":"IF('Výsledková listina'!D41<>\"\",A31+1,\"\")","v":28},2,"F",41,"Matějíková","Jana",1990,null,"TJ Liga 100 Olomouc","02:28:09"]
[{"$f":"IF('Výsledková listina'!D14<>\"\",A32+1,\"\")","v":29},11,"A",13,"Koutský","Tomáš",1987,null,"Ledová stěna Vír","02:28:55"]
[{"$f":"IF('Výsledková listina'!D46<>\"\",A33+1,\"\")","v":30},3,"G",16,"Kuncová","Markéta",1982,"Rožná",null,"02:30:39"]
[{"$f":"IF('Výsledková listina'!D36<>\"\",A34+1,\"\")","v":31},7,"C",31,"Žák","Miroslav",1965,"Stříbrné Hory",null,"02:30:41"]
[{"$f":"IF('Výsledková listina'!D15<>\"\",A35+1,\"\")","v":32},12,"A",9,"Labedz","Jan",1984,"Svinošice",null,"02:32:53"]
[{"$f":"IF('Výsledková listina'!D38<>\"\",A36+1,\"\")","v":33},1,"D",18,"Mareš","Bohumil",1951,"Brno","Posilovna Průvan Brno","02:35:27"]
[{"$f":"IF('Výsledková listina'!D16<>\"\",A37+1,\"\")","v":34},13,"A",11,"Vrba","Tomáš",1986,"Bystré",null,"02:37:47"]
[{"$f":"IF('Výsledková listina'!D27<>\"\",A38+1,\"\")","v":35},9,"B",28,"Kupka","Pavel",1975,"Lukovany",null,"02:41:06"]
[{"$f":"IF('Výsledková listina'!D17<>\"\",A39+1,\"\")","v":36},14,"A",26,"Hakl ","Zdeněk ",1982,"Žďár nad Sázavou ","SK Tri Cyklochlubna","02:49:18"]
[{"$f":"IF('Výsledková listina'!D42<>\"\",A40+1,\"\")","v":37},3,"F",15,"Trefilová","Ester",1993,"Vír",null,"02:49:45"]
[{"$f":"IF('Výsledková listina'!D43<>\"\",A41+1,\"\")","v":38},4,"F",37,"Tomková","Iva",1990,"Letovice","Letovice","02:53:26"]
[{"$f":"IF('Výsledková listina'!D18<>\"\",A42+1,\"\")","v":39},15,"A",40,"Lenhart","Vít",1982,"Přerov","TJ Liga 100 Olomouc","02:53:29"]
[{"$f":"IF('Výsledková listina'!D47<>\"\",A43+1,\"\")","v":40},1,"H",12,"Breburdová","Hana",1961,"19800 Praha 9, Tálinská 999","Maraton klub Kladno","02:59:57"]
[{"$f":"IF('Výsledková listina'!D28<>\"\",A44+1,\"\")","v":41},10,"B",8,"Faja","Ondřej",1976,"Brno",null,"03:12:02"]
[{"$f":"IF('Výsledková listina'!D39<>\"\",A45+1,\"\")","v":42},1,"E",7,"Holý","Josef",1941,null,"AC Moravská Slavia","03:35:32"]
[{"$f":"IF('Výsledková listina'!D37<>\"\",A46+1,\"\")","v":43},8,"C",17,"Krátký","Josef",1965,"Vysoká nad Labem","Hvězda Pardubice","03:37:19"]
[{"$f":"IF('Výsledková listina'!D29<>\"\",A47+1,\"\")","v":44},11,"B",10,"Štýbnar","Zbyněk",1974,"P team",{"$f":"'Startovní listina'!G49","v":""},"DNF"]
[{"$f":"IF('Výsledková listina'!D48<>\"\",A48+1,\"\")","v":45},null,{"$f":"'Startovní listina'!H50","v":""},{"$f":"'Startovní listina'!B50","v":""},{"$f":"'Startovní listina'!C50","v":""},{"$f":"'Startovní listina'!D50","v":""},{"$f":"'Startovní listina'!E50","v":""},{"$f":"'Startovní listina'!F50","v":""},{"$f":"'Startovní listina'!G50","v":""}]
[{"$f":"IF('Výsledková listina'!D49<>\"\",A49+1,\"\")","v":""},null,{"$f":"'Startovní listina'!H51","v":""},{"$f":"'Startovní listina'!B51","v":""},{"$f":"'Startovní listina'!C51","v":""},{"$f":"'Startovní listina'!D51","v":""},{"$f":"'Startovní listina'!E51","v":""},{"$f":"'Startovní listina'!F51","v":""},{"$f":"'Startovní listina'!G51","v":""}]
[{"$f":"IF('Výsledková listina'!D50<>\"\",A50+1,\"\")","v":""},null,{"$f":"'Startovní listina'!H52","v":""},{"$f":"'Startovní listina'!B52","v":""},{"$f":"'Startovní listina'!C52","v":""},{"$f":"'Startovní listina'!D52","v":""},{"$f":"'Startovní listina'!E52","v":""},{"$f":"'Startovní listina'!F52","v":""},{"$f":"'Startovní listina'!G52","v":""}]
[{"$f":"IF('Výsledková listina'!D51<>\"\",A51+1,\"\")","v":""},null,{"$f":"'Startovní listina'!H53","v":""},{"$f":"'Startovní listina'!B53","v":""},{"$f":"'Startovní listina'!C53","v":""},{"$f":"'Startovní listina'!D53","v":""},{"$f":"'Startovní listina'!E53","v":""},{"$f":"'Startovní listina'!F53","v":""},{"$f":"'Startovní listina'!G53","v":""}]
[{"$f":"IF('Výsledková listina'!D52<>\"\",A52+1,\"\")","v":""},null,{"$f":"'Startovní listina'!H54","v":""},{"$f":"'Startovní listina'!B54","v":""},{"$f":"'Startovní listina'!C54","v":""},{"$f":"'Startovní listina'!D54","v":""},{"$f":"'Startovní listina'!E54","v":""},{"$f":"'Startovní listina'!F54","v":""},{"$f":"'Startovní listina'!G54","v":""}]
[{"$f":"IF('Výsledková listina'!D53<>\"\",A53+1,\"\")","v":""},null,{"$f":"'Startovní listina'!H55","v":""},{"$f":"'Startovní listina'!B55","v":""},{"$f":"'Startovní listina'!C55","v":""},{"$f":"'Startovní listina'!D55","v":""},{"$f":"'Startovní listina'!E55","v":""},{"$f":"'Startovní listina'!F55","v":""},{"$f":"'Startovní listina'!G55","v":""}]
[{"$f":"IF('Výsledková listina'!D54<>\"\",A54+1,\"\")","v":""},null,{"$f":"'Startovní listina'!H56","v":""},{"$f":"'Startovní listina'!B56","v":""},{"$f":"'Startovní listina'!C56","v":""},{"$f":"'Startovní listina'!D56","v":""},{"$f":"'Startovní listina'!E56","v":""},{"$f":"'Startovní listina'!F56","v":""},{"$f":"'Startovní listina'!G56","v":""}]
[{"$f":"IF('Výsledková listina'!D55<>\"\",A55+1,\"\")","v":""},null,{"$f":"'Startovní listina'!H57","v":""},{"$f":"'Startovní listina'!B57","v":""},{"$f":"'Startovní listina'!C57","v":""},{"$f":"'Startovní listina'!D57","v":""},{"$f":"'Startovní listina'!E57","v":""},{"$f":"'Startovní listina'!F57","v":""},{"$f":"'Startovní listina'!G57","v":""}]
[{"$f":"IF('Výsledková listina'!D56<>\"\",A56+1,\"\")","v":""},null,{"$f":"'Startovní listina'!H58","v":""},{"$f":"'Startovní listina'!B58","v":""},{"$f":"'Startovní listina'!C58","v":""},{"$f":"'Startovní listina'!D58","v":""},{"$f":"'Startovní listina'!E58","v":""},{"$f":"'Startovní listina'!F58","v":""},{"$f":"'Startovní listina'!G58","v":""}]
[{"$f":"IF('Výsledková listina'!D57<>\"\",A57+1,\"\")","v":""},null,{"$f":"'Startovní listina'!H59","v":""},{"$f":"'Startovní listina'!B59","v":""},{"$f":"'Startovní listina'!C59","v":""},{"$f":"'Startovní listina'!D59","v":""},{"$f":"'Startovní listina'!E59","v":""},{"$f":"'Startovní listina'!F59","v":""},{"$f":"'Startovní listina'!G59","v":""}]
[{"$f":"IF('Výsledková listina'!D58<>\"\",A58+1,\"\")","v":""},null,{"$f":"'Startovní listina'!H60","v":""},{"$f":"'Startovní listina'!B60","v":""},{"$f":"'Startovní listina'!C60","v":""},{"$f":"'Startovní listina'!D60","v":""},{"$f":"'Startovní listina'!E60","v":""},{"$f":"'Startovní listina'!F60","v":""},{"$f":"'Startovní listina'!G60","v":""}]
[{"$f":"IF('Výsledková listina'!D59<>\"\",A59+1,\"\")","v":""},null,{"$f":"'Startovní listina'!H61","v":""},{"$f":"'Startovní listina'!B61","v":""},{"$f":"'Startovní listina'!C61","v":""},{"$f":"'Startovní listina'!D61","v":""},{"$f":"'Startovní listina'!E61","v":""},{"$f":"'Startovní listina'!F61","v":""},{"$f":"'Startovní listina'!G61","v":""}]
[{"$f":"IF('Výsledková listina'!D60<>\"\",A60+1,\"\")","v":""},null,{"$f":"'Startovní listina'!H62","v":""},{"$f":"'Startovní listina'!B62","v":""},{"$f":"'Startovní listina'!C62","v":""},{"$f":"'Startovní listina'!D62","v":""},{"$f":"'Startovní listina'!E62","v":""},{"$f":"'Startovní listina'!F62","v":""},{"$f":"'Startovní listina'!G62","v":""}]
[{"$f":"IF('Výsledková listina'!D61<>\"\",A61+1,\"\")","v":""},null,{"$f":"'Startovní listina'!H63","v":""},{"$f":"'Startovní listina'!B63","v":""},{"$f":"'Startovní listina'!C63","v":""},{"$f":"'Startovní listina'!D63","v":""},{"$f":"'Startovní listina'!E63","v":""},{"$f":"'Startovní listina'!F63","v":""},{"$f":"'Startovní listina'!G63","v":""}]
[{"$f":"IF('Výsledková listina'!D62<>\"\",A62+1,\"\")","v":""},null,{"$f":"'Startovní listina'!H64","v":""},{"$f":"'Startovní listina'!B64","v":""},{"$f":"'Startovní listina'!C64","v":""},{"$f":"'Startovní listina'!D64","v":""},{"$f":"'Startovní listina'!E64","v":""},{"$f":"'Startovní listina'!F64","v":""},{"$f":"'Startovní listina'!G64","v":""}]
[{"$f":"IF('Výsledková listina'!D63<>\"\",A63+1,\"\")","v":""},null,{"$f":"'Startovní listina'!H65","v":""},{"$f":"'Startovní listina'!B65","v":""},{"$f":"'Startovní listina'!C65","v":""},{"$f":"'Startovní listina'!D65","v":""},{"$f":"'Startovní listina'!E65","v":""},{"$f":"'Startovní listina'!F65","v":""},{"$f":"'Startovní listina'!G65","v":""}]
[{"$f":"IF('Výsledková listina'!D64<>\"\",A64+1,\"\")","v":""},null,{"$f":"'Startovní listina'!H66","v":""},{"$f":"'Startovní listina'!B66","v":""},{"$f":"'Startovní listina'!C66","v":""},{"$f":"'Startovní listina'!D66","v":""},{"$f":"'Startovní listina'!E66","v":""},{"$f":"'Startovní listina'!F66","v":""},{"$f":"'Startovní listina'!G66","v":""}]
[{"$f":"IF('Výsledková listina'!D65<>\"\",A65+1,\"\")","v":""},null,{"$f":"'Startovní listina'!H67","v":""},{"$f":"'Startovní listina'!B67","v":""},{"$f":"'Startovní listina'!C67","v":""},{"$f":"'Startovní listina'!D67","v":""},{"$f":"'Startovní listina'!E67","v":""},{"$f":"'Startovní listina'!F67","v":""},{"$f":"'Startovní listina'!G67","v":""}]
[{"$f":"IF('Výsledková listina'!D66<>\"\",A66+1,\"\")","v":""},null,{"$f":"'Startovní listina'!H68","v":""},{"$f":"'Startovní listina'!B68","v":""},{"$f":"'Startovní listina'!C68","v":""},{"$f":"'Startovní listina'!D68","v":""},{"$f":"'Startovní listina'!E68","v":""},{"$f":"'Startovní listina'!F68","v":""},{"$f":"'Startovní listina'!G68","v":""}]
[{"$f":"IF('Výsledková listina'!D67<>\"\",A67+1,\"\")","v":""},null,{"$f":"'Startovní listina'!H69","v":""},{"$f":"'Startovní listina'!B69","v":""},{"$f":"'Startovní listina'!C69","v":""},{"$f":"'Startovní listina'!D69","v":""},{"$f":"'Startovní listina'!E69","v":""},{"$f":"'Startovní listina'!F69","v":""},{"$f":"'Startovní listina'!G69","v":""}]
[{"$f":"IF('Výsledková listina'!D68<>\"\",A68+1,\"\")","v":""},null,{"$f":"'Startovní listina'!H70","v":""},{"$f":"'Startovní listina'!B70","v":""},{"$f":"'Startovní listina'!C70","v":""},{"$f":"'Startovní listina'!D70","v":""},{"$f":"'Startovní listina'!E70","v":""},{"$f":"'Startovní listina'!F70","v":""},{"$f":"'Startovní listina'!G70","v":""}]
[{"$f":"IF('Výsledková listina'!D69<>\"\",A69+1,\"\")","v":""},null,{"$f":"'Startovní listina'!H71","v":""},{"$f":"'Startovní listina'!B71","v":""},{"$f":"'Startovní listina'!C71","v":""},{"$f":"'Startovní listina'!D71","v":""},{"$f":"'Startovní listina'!E71","v":""},{"$f":"'Startovní listina'!F71","v":""},{"$f":"'Startovní listina'!G71","v":""}]
[{"$f":"IF('Výsledková listina'!D70<>\"\",A70+1,\"\")","v":""},null,{"$f":"'Startovní listina'!H72","v":""},{"$f":"'Startovní listina'!B72","v":""},{"$f":"'Startovní listina'!C72","v":""},{"$f":"'Startovní listina'!D72","v":""},{"$f":"'Startovní listina'!E72","v":""},{"$f":"'Startovní listina'!F72","v":""},{"$f":"'Startovní listina'!G72","v":""}]
[{"$f":"IF('Výsledková listina'!D71<>\"\",A71+1,\"\")","v":""},null,{"$f":"'Startovní listina'!H73","v":""},{"$f":"'Startovní listina'!B73","v":""},{"$f":"'Startovní listina'!C73","v":""},{"$f":"'Startovní listina'!D73","v":""},{"$f":"'Startovní listina'!E73","v":""},{"$f":"'Startovní listina'!F73","v":""},{"$f":"'Startovní listina'!G73","v":""}]
[{"$f":"IF('Výsledková listina'!D72<>\"\",A72+1,\"\")","v":""},null,{"$f":"'Startovní listina'!H74","v":""},{"$f":"'Startovní listina'!B74","v":""},{"$f":"'Startovní listina'!C74","v":""},{"$f":"'Startovní listina'!D74","v":""},{"$f":"'Startovní listina'!E74","v":""},{"$f":"'Startovní listina'!F74","v":""},{"$f":"'Startovní listina'!G74","v":""}]
[{"$f":"IF('Výsledková listina'!D73<>\"\",A73+1,\"\")","v":""},null,{"$f":"'Startovní listina'!H75","v":""},{"$f":"'Startovní listina'!B75","v":""},{"$f":"'Startovní listina'!C75","v":""},{"$f":"'Startovní listina'!D75","v":""},{"$f":"'Startovní listina'!E75","v":""},{"$f":"'Startovní listina'!F75","v":""},{"$f":"'Startovní listina'!G75","v":""}]
[{"$f":"IF('Výsledková listina'!D74<>\"\",A74+1,\"\")","v":""},null,{"$f":"'Startovní listina'!H76","v":""},{"$f":"'Startovní listina'!B76","v":""},{"$f":"'Startovní listina'!C76","v":""},{"$f":"'Startovní listina'!D76","v":""},{"$f":"'Startovní listina'!E76","v":""},{"$f":"'Startovní listina'!F76","v":""},{"$f":"'Startovní listina'!G76","v":""}]
[{"$f":"IF('Výsledková listina'!D75<>\"\",A75+1,\"\")","v":""},null,{"$f":"'Startovní listina'!H77","v":""},{"$f":"'Startovní listina'!B77","v":""},{"$f":"'Startovní listina'!C77","v":""},{"$f":"'Startovní listina'!D77","v":""},{"$f":"'Startovní listina'!E77","v":""},{"$f":"'Startovní listina'!F77","v":""},{"$f":"'Startovní listina'!G77","v":""}]
[{"$f":"IF('Výsledková listina'!D76<>\"\",A76+1,\"\")","v":""},null,{"$f":"'Startovní listina'!H78","v":""},{"$f":"'Startovní listina'!B78","v":""},{"$f":"'Startovní listina'!C78","v":""},{"$f":"'Startovní listina'!D78","v":""},{"$f":"'Startovní listina'!E78","v":""},{"$f":"'Startovní listina'!F78","v":""},{"$f":"'Startovní listina'!G78","v":""}]
[{"$f":"IF('Výsledková listina'!D77<>\"\",A77+1,\"\")","v":""},null,{"$f":"'Startovní listina'!H79","v":""},{"$f":"'Startovní listina'!B79","v":""},{"$f":"'Startovní listina'!C79","v":""},{"$f":"'Startovní listina'!D79","v":""},{"$f":"'Startovní listina'!E79","v":""},{"$f":"'Startovní listina'!F79","v":""},{"$f":"'Startovní listina'!G79","v":""}]
[{"$f":"IF('Výsledková listina'!D78<>\"\",A78+1,\"\")","v":""},null,{"$f":"'Startovní listina'!H80","v":""},{"$f":"'Startovní listina'!B80","v":""},{"$f":"'Startovní listina'!C80","v":""},{"$f":"'Startovní listina'!D80","v":""},{"$f":"'Startovní listina'!E80","v":""},{"$f":"'Startovní listina'!F80","v":""},{"$f":"'Startovní listina'!G80","v":""}]
[{"$f":"IF('Výsledková listina'!D79<>\"\",A79+1,\"\")","v":""},null,{"$f":"'Startovní listina'!H81","v":""},{"$f":"'Startovní listina'!B81","v":""},{"$f":"'Startovní listina'!C81","v":""},{"$f":"'Startovní listina'!D81","v":""},{"$f":"'Startovní listina'!E81","v":""},{"$f":"'Startovní listina'!F81","v":""},{"$f":"'Startovní listina'!G81","v":""}]
[{"$f":"IF('Výsledková listina'!D80<>\"\",A80+1,\"\")","v":""},null,{"$f":"'Startovní listina'!H82","v":""},{"$f":"'Startovní listina'!B82","v":""},{"$f":"'Startovní listina'!C82","v":""},{"$f":"'Startovní listina'!D82","v":""},{"$f":"'Startovní listina'!E82","v":""},{"$f":"'Startovní listina'!F82","v":""},{"$f":"'Startovní listina'!G82","v":""}]
[{"$f":"IF('Výsledková listina'!D81<>\"\",A81+1,\"\")","v":""},null,{"$f":"'Startovní listina'!H83","v":""},{"$f":"'Startovní listina'!B83","v":""},{"$f":"'Startovní listina'!C83","v":""},{"$f":"'Startovní listina'!D83","v":""},{"$f":"'Startovní listina'!E83","v":""},{"$f":"'Startovní listina'!F83","v":""},{"$f":"'Startovní listina'!G83","v":""}]
[{"$f":"IF('Výsledková listina'!D82<>\"\",A82+1,\"\")","v":""},null,{"$f":"'Startovní listina'!H84","v":""},{"$f":"'Startovní listina'!B84","v":""},{"$f":"'Startovní listina'!C84","v":""},{"$f":"'Startovní listina'!D84","v":""},{"$f":"'Startovní listina'!E84","v":""},{"$f":"'Startovní listina'!F84","v":""},{"$f":"'Startovní listina'!G84","v":""}]
[{"$f":"IF('Výsledková listina'!D83<>\"\",A83+1,\"\")","v":""},null,{"$f":"'Startovní listina'!H85","v":""},{"$f":"'Startovní listina'!B85","v":""},{"$f":"'Startovní listina'!C85","v":""},{"$f":"'Startovní listina'!D85","v":""},{"$f":"'Startovní listina'!E85","v":""},{"$f":"'Startovní listina'!F85","v":""},{"$f":"'Startovní listina'!G85","v":""}]
[{"$f":"IF('Výsledková listina'!D84<>\"\",A84+1,\"\")","v":""},null,{"$f":"'Startovní listina'!H86","v":""},{"$f":"'Startovní listina'!B86","v":""},{"$f":"'Startovní listina'!C86","v":""},{"$f":"'Startovní listina'!D86","v":""},{"$f":"'Startovní listina'!E86","v":""},{"$f":"'Startovní listina'!F86","v":""},{"$f":"'Startovní listina'!G86","v":""}]
[{"$f":"IF('Výsledková listina'!D85<>\"\",A85+1,\"\")","v":""},null,{"$f":"'Startovní listina'!H87","v":""},{"$f":"'Startovní listina'!B87","v":""},{"$f":"'Startovní listina'!C87","v":""},{"$f":"'Startovní listina'!D87","v":""},{"$f":"'Startovní listina'!E87","v":""},{"$f":"'Startovní listina'!F87","v":""},{"$f":"'Startovní listina'!G87","v":""}]
[{"$f":"IF('Výsledková listina'!D86<>\"\",A86+1,\"\")","v":""},null,{"$f":"'Startovní listina'!H88","v":""},{"$f":"'Startovní listina'!B88","v":""},{"$f":"'Startovní listina'!C88","v":""},{"$f":"'Startovní listina'!D88","v":""},{"$f":"'Startovní listina'!E88","v":""},{"$f":"'Startovní listina'!F88","v":""},{"$f":"'Startovní listina'!G88","v":""}]
[{"$f":"IF('Výsledková listina'!D87<>\"\",A87+1,\"\")","v":""},null,{"$f":"'Startovní listina'!H89","v":""},{"$f":"'Startovní listina'!B89","v":""},{"$f":"'Startovní listina'!C89","v":""},{"$f":"'Startovní listina'!D89","v":""},{"$f":"'Startovní listina'!E89","v":""},{"$f":"'Startovní listina'!F89","v":""},{"$f":"'Startovní listina'!G89","v":""}]
[{"$f":"IF('Výsledková listina'!D88<>\"\",A88+1,\"\")","v":""},null,{"$f":"'Startovní listina'!H90","v":""},{"$f":"'Startovní listina'!B90","v":""},{"$f":"'Startovní listina'!C90","v":""},{"$f":"'Startovní listina'!D90","v":""},{"$f":"'Startovní listina'!E90","v":""},{"$f":"'Startovní listina'!F90","v":""},{"$f":"'Startovní listina'!G90","v":""}]
[{"$f":"IF('Výsledková listina'!D89<>\"\",A89+1,\"\")","v":""},null,{"$f":"'Startovní listina'!H91","v":""},{"$f":"'Startovní listina'!B91","v":""},{"$f":"'Startovní listina'!C91","v":""},{"$f":"'Startovní listina'!D91","v":""},{"$f":"'Startovní listina'!E91","v":""},{"$f":"'Startovní listina'!F91","v":""},{"$f":"'Startovní listina'!G91","v":""}]
[{"$f":"IF('Výsledková listina'!D90<>\"\",A90+1,\"\")","v":""},null,{"$f":"'Startovní listina'!H92","v":""},{"$f":"'Startovní listina'!B92","v":""},{"$f":"'Startovní listina'!C92","v":""},{"$f":"'Startovní listina'!D92","v":""},{"$f":"'Startovní listina'!E92","v":""},{"$f":"'Startovní listina'!F92","v":""},{"$f":"'Startovní listina'!G92","v":""}]
[{"$f":"IF('Výsledková listina'!D91<>\"\",A91+1,\"\")","v":""},null,{"$f":"'Startovní listina'!H93","v":""},{"$f":"'Startovní listina'!B93","v":""},{"$f":"'Startovní listina'!C93","v":""},{"$f":"'Startovní listina'!D93","v":""},{"$f":"'Startovní listina'!E93","v":""},{"$f":"'Startovní listina'!F93","v":""},{"$f":"'Startovní listina'!G93","v":""}]
[{"$f":"IF('Výsledková listina'!D92<>\"\",A92+1,\"\")","v":""},null,{"$f":"'Startovní listina'!H94","v":""},{"$f":"'Startovní listina'!B94","v":""},{"$f":"'Startovní listina'!C94","v":""},{"$f":"'Startovní listina'!D94","v":""},{"$f":"'Startovní listina'!E94","v":""},{"$f":"'Startovní listina'!F94","v":""},{"$f":"'Startovní listina'!G94","v":""}]
[{"$f":"IF('Výsledková listina'!D93<>\"\",A93+1,\"\")","v":""},null,{"$f":"'Startovní listina'!H95","v":""},{"$f":"'Startovní listina'!B95","v":""},{"$f":"'Startovní listina'!C95","v":""},{"$f":"'Startovní listina'!D95","v":""},{"$f":"'Startovní listina'!E95","v":""},{"$f":"'Startovní listina'!F95","v":""},{"$f":"'Startovní listina'!G95","v":""}]
[{"$f":"IF('Výsledková listina'!D94<>\"\",A94+1,\"\")","v":""},null,{"$f":"'Startovní listina'!H96","v":""},{"$f":"'Startovní listina'!B96","v":""},{"$f":"'Startovní listina'!C96","v":""},{"$f":"'Startovní listina'!D96","v":""},{"$f":"'Startovní listina'!E96","v":""},{"$f":"'Startovní listina'!F96","v":""},{"$f":"'Startovní listina'!G96","v":""}]
[{"$f":"IF('Výsledková listina'!D95<>\"\",A95+1,\"\")","v":""},null,{"$f":"'Startovní listina'!H97","v":""},{"$f":"'Startovní listina'!B97","v":""},{"$f":"'Startovní listina'!C97","v":""},{"$f":"'Startovní listina'!D97","v":""},{"$f":"'Startovní listina'!E97","v":""},{"$f":"'Startovní listina'!F97","v":""},{"$f":"'Startovní listina'!G97","v":""}]
[{"$f":"IF('Výsledková listina'!D96<>\"\",A96+1,\"\")","v":""},null,{"$f":"'Startovní listina'!H98","v":""},{"$f":"'Startovní listina'!B98","v":""},{"$f":"'Startovní listina'!C98","v":""},{"$f":"'Startovní listina'!D98","v":""},{"$f":"'Startovní listina'!E98","v":""},{"$f":"'Startovní listina'!F98","v":""},{"$f":"'Startovní listina'!G98","v":""}]
[{"$f":"IF('Výsledková listina'!D97<>\"\",A97+1,\"\")","v":""},null,{"$f":"'Startovní listina'!H99","v":""},{"$f":"'Startovní listina'!B99","v":""},{"$f":"'Startovní listina'!C99","v":""},{"$f":"'Startovní listina'!D99","v":""},{"$f":"'Startovní listina'!E99","v":""},{"$f":"'Startovní listina'!F99","v":""},{"$f":"'Startovní listina'!G99","v":""}]
[{"$f":"IF('Výsledková listina'!D98<>\"\",A98+1,\"\")","v":""},null,{"$f":"'Startovní listina'!H100","v":""},{"$f":"'Startovní listina'!B100","v":""},{"$f":"'Startovní listina'!C100","v":""},{"$f":"'Startovní listina'!D100","v":""},{"$f":"'Startovní listina'!E100","v":""},{"$f":"'Startovní listina'!F100","v":""},{"$f":"'Startovní listina'!G100","v":""}]
[{"$f":"IF('Výsledková listina'!D99<>\"\",A99+1,\"\")","v":""},null,{"$f":"'Startovní listina'!H101","v":""},{"$f":"'Startovní listina'!B101","v":""},{"$f":"'Startovní listina'!C101","v":""},{"$f":"'Startovní listina'!D101","v":""},{"$f":"'Startovní listina'!E101","v":""},{"$f":"'Startovní listina'!F101","v":""},{"$f":"'Startovní listina'!G101","v":""}]
[{"$f":"IF('Výsledková listina'!D100<>\"\",A100+1,\"\")","v":""},null,{"$f":"'Startovní listina'!H102","v":""},{"$f":"'Startovní listina'!B102","v":""},{"$f":"'Startovní listina'!C102","v":""},{"$f":"'Startovní listina'!D102","v":""},{"$f":"'Startovní listina'!E102","v":""},{"$f":"'Startovní listina'!F102","v":""},{"$f":"'Startovní listina'!G102","v":""}]
[{"$f":"IF('Výsledková listina'!D101<>\"\",A101+1,\"\")","v":""},null,{"$f":"'Startovní listina'!H103","v":""},{"$f":"'Startovní listina'!B103","v":""},{"$f":"'Startovní listina'!C103","v":""},{"$f":"'Startovní listina'!D103","v":""},{"$f":"'Startovní listina'!E103","v":""},{"$f":"'Startovní listina'!F103","v":""},{"$f":"'Startovní listina'!G103","v":""}]
[{"$f":"IF('Výsledková listina'!D102<>\"\",A102+1,\"\")","v":""},null,{"$f":"'Startovní listina'!H104","v":""},{"$f":"'Startovní listina'!B104","v":""},{"$f":"'Startovní listina'!C104","v":""},{"$f":"'Startovní listina'!D104","v":""},{"$f":"'Startovní listina'!E104","v":""},{"$f":"'Startovní listina'!F104","v":""},{"$f":"'Startovní listina'!G104","v":""}]

{"sheet":"Běh přes přehradu","index":3,"n_rows":52,"n_cols":11,"rows_kept":52,"cut":false,"hidden":false,"merged":[[0,0,0,7],[1,0,1,7]]}
[{"$f":"'Startovní listina'!A3:H3&\" Běhu přes přehradu \"&'Prezenční listina'!U2","v":"14. ročník Běhu přes přehradu 2018"}]
[{"$f":"'Startovní listina'!A2:H2","v":"2018-05-26"}]
[null,"Příjmení","Jméno","Narození","Oddíl / Bydliště","Startovní číslo","Čas","Pohlaví"]
[1,"Králík","Luděk",2000,"Brno",106,"00:17:04",{"$f":"IF(LEN(B4)=0,\" \",IF(MID(B4,LEN(B4),1)=\"á\",\"Ž\",\"M\"))","v":"M"}]
[{"$f":"IF(B5=\"\",\"\",A4+1)","v":2},"Bednář","Jan",1992,"Polná",102,"00:17:34","M"]
[{"$f":"IF(B6=\"\",\"\",A5+1)","v":3},"Štýbnar","Štěpán",2003,"PTEAM",112,"00:17:41","M"]
[4,"Coural","Jaroslav",2002,"Vír",103,"00:18:00","M"]
[5,"Jonáš","Jakub",2003,"SK ANTE, Žďár nad Sázavou",105,"00:18:28","M",null,null,","]
[6,"Janů","Petr",2003,"Hlinné",104,"00:19:04","M"]
[7,"Pohanka","Tomáš",2009,"Drásov",108,"00:20:10","M"]
[8,"Žličař","Karel",1977,"Polička",114,"00:21:09","M"]
[9,"Pučálka","Radek",1973,"Štěpánov",109,"00:21:10","M"]
[10,"Tomek","Miloš",1963,"Letovice",113,"00:23:52","M"]
[11,"Řehůřek","Michal",1988,"Vír",110,"00:24:27","M"]
[12,"Kuneš","Vincent",2008,"Tišnov",107,"00:26:30","M"]
[13,"Šenkýř","David",1991,"Vír",111,"00:27:14","M"]
[1,"Glierová","Renata",1985,"SDH Doubravník",116,"00:20:16","Ž"]
[2,"Oberreiterová","Renata",2000,"Polná",121,"00:21:06","Ž"]
[3,"Oberreiterová","Kristýna",2000,"Polná",122,"00:21:07","Ž"]
[4,"Uhlířová","Magda",1980,"Domanínek",127,"00:23:21","Ž"]
[5,"Stalmachová","Nika",2002,"Vír",125,"00:23:51","Ž"]
[6,"Pečínková","Zuzana",1987,"Domanín",123,"00:25:25","Ž"]
[7,"Havlová","Gabriela",1975,"Vír",117,"00:27:13","Ž"]
[8,"Dufková","Miroslava",1970,"4MaxFitness",115,"00:29:30","Ž"]
[9,"Skryjová","Zdena",1965,"4MaxFitness",124,"00:29:36","Ž"]
[10,"Chadimová","Vladimíra",1972,"Malhostovice",118,"00:29:53","Ž"]
[11,"Kunešová","Violeta",2010,"Tišnov",119,"00:33:43","Ž"]
[12,"Kunešová","Monika",1978,"Tišnov",120,"00:33:44","Ž"]
[13,"Tomková","Alena",1991,"Letovice",126,"00:36:08","Ž"]
["",null,null,null,null,null,null," "]
["",null,null,null,null,null,null," "]
["",null,null,null,null,null,null," "]
["",null,null,null,null,null,null," "]
["",null,null,null,null,null,null," "]
["",null,null,null,null,null,null," "]
["",null,null,null,null,null,null,{"$f":"IF(LEN(B36)=0,\" \",IF(MID(B36,LEN(B36),1)=\"á\",\"Ž\",\"M\"))","v":" "}]
["",null,null,null,null,null,null," "]
["",null,null,null,null,null,null," "]
["",null,null,null,null,null,null," "]
["",null,null,null,null,null,null," "]
["",null,null,null,null,null,null," "]
["",null,null,null,null,null,null," "]
["",null,null,null,null,null,null," "]
["",null,null,null,null,null,null," "]
["",null,null,null,null,null,null," "]
["",null,null,null,null,null,null," "]
["",null,null,null,null,null,null," "]
["",null,null,null,null,null,null," "]
["",null,null,null,null,null,null," "]
["",null,null,null,null,null,null," "]
["",null,null,null,null,null,null," "]
["",null,null,null,null,null,null," "]

{"sheet":"mezičasy 2017","index":4,"n_rows":14,"n_cols":6,"rows_kept":14,"cut":false,"hidden":true,"merged":[[0,0,0,1],[0,2,0,3],[0,4,0,5]]}
["5. km",null,"10. km",null,"22. km"]
["číslo","čas","číslo","čas","číslo","čas"]
[51,"00:18:47",51,"00:36:23",24,"01:22:30"]
[24,"00:18:59",24,"00:36:27",51,"01:23:12"]
[69,"00:20:00",69,"00:39:24",10,"01:29:22"]
[37,"00:20:17",49,"00:39:30",36,"01:30:12"]
[49,"00:20:20",37,"00:39:32",49,"01:30:12"]
[10,"00:20:52",36,"00:40:03",69,"01:30:59"]
[36,"00:20:52",10,"00:40:03",null,":        :"]
[38,"00:21:06",23,"00:40:57",null,":        :"]
[23,"00:21:35",38,"00:41:27",null,":        :"]
[21,"00:22:01",21,"00:43:05",null,":        :"]
[54,"00:22:07",54,"00:43:24"]
[19,"00:22:55",19,"00:44:48"]

{"sheet":"mezičasy tisk","index":5,"n_rows":24,"n_cols":6,"rows_kept":24,"cut":false,"hidden":true,"merged":[[0,0,0,1],[0,2,0,3],[0,4,0,5]]}
["5. km",null,"10. km",null,"22. km"]
["číslo","čas","číslo","čas","číslo","čas"]
[null,":        :",null,":        :",null,":        :"]
[null,":        :",null,":        :",null,":        :"]
[null,":        :",null,":        :",null,":        :"]
[null,":        :",null,":        :",null,":        :"]
[null,":        :",null,":        :",null,":        :"]
[null,":        :",null,":        :",null,":        :"]
[null,":        :",null,":        :",null,":        :"]
[null,":        :",null,":        :",null,":        :"]
[null,":        :",null,":        :",null,":        :"]
[null,":        :",null,":        :",null,":        :"]
[null,":        :",null,":        :",null,":        :"]
[null,":        :",null,":        :",null,":        :"]
[null,":        :",null,":        :",null,":        :"]
[null,":        :",null,":        :",null,":        :"]
[null,":        :",null,":        :",null,":        :"]
[null,":        :",null,":        :",null,":        :"]
[null,":        :",null,":        :",null,":        :"]
[null,":        :",null,":        :",null,":        :"]
[null,":        :",null,":        :",null,":        :"]
[null,":        :",null,":        :",null,":        :"]
[null,":        :",null,":        :",null,":        :"]
[null,":        :",null,":        :",null,":        :"]

{"sheet":"Diplom MSM A5","index":6,"n_rows":36,"n_cols":13,"rows_kept":36,"cut":false,"hidden":true,"merged":[[26,3,28,10],[29,6,31,6],[31,3,34,3],[32,12,33,13],[35,6,36,9]]}
[]
[]
[]
[]
[]
[]
[]
[]
[]
[]
[]
[]
[]
[]
[]
[]
[]
[]
[]
[]
[]
[]
[]
[]
[]
[]
[null,null,null,{"$f":"'Výsledková listina'!E5&\" \"&'Výsledková listina'!F5","v":"Kohut Jan"}]
[]
[]
[null,null,null,null,null,null,{"$f":"'Výsledková listina'!B5&\".\"","v":"1."}]
[]
[null,null,null,{"$f":"'Výsledková listina'!C5","v":"A"}]
[null,null,null,null,null,null,null,null,null,null,null,null,{"$f":"'Výsledková listina'!J5","v":"01:47:49"}]
[]
[]
[null,null,null,null,null,null,"20. srpna 2016"]

{"sheet":"Diplom MSM A5 (2)","index":7,"n_rows":36,"n_cols":13,"rows_kept":36,"cut":false,"hidden":true,"merged":[[26,3,28,10],[29,6,31,6],[31,3,34,3],[32,12,33,13],[35,6,36,9]]}
[]
[]
[]
[]
[]
[]
[]
[]
[]
[]
[]
[]
[]
[]
[]
[]
[]
[]
[]
[]
[]
[]
[]
[]
[]
[]
[null,null,null,{"$f":"'Výsledková listina'!E6&\" \"&'Výsledková listina'!F6","v":"Hradecký Jaromír"}]
[]
[]
[null,null,null,null,null,null,{"$f":"'Výsledková listina'!B6&\".\"","v":"2."}]
[]
[null,null,null,{"$f":"'Výsledková listina'!C6","v":"A"}]
[null,null,null,null,null,null,null,null,null,null,null,null,{"$f":"'Výsledková listina'!J6","v":"01:49:08"}]
[]
[]
[null,null,null,null,null,null,"20. srpna 2016"]

{"sheet":"Družstva (prac.)","index":8,"n_rows":21,"n_cols":11,"rows_kept":21,"cut":false,"hidden":true,"merged":[[19,1,20,1],[19,6,20,6],[19,8,20,8],[15,1,16,1],[15,6,16,6],[15,8,16,8],[17,1,18,1],[17,6,18,6],[17,8,18,8],[11,1,12,1],[11,6,12,6],[11,8,12,8],[13,1,14,1],[13,6,14,6],[13,8,14,8],[7,1,8,1],[7,6,8,6],[7,8,8,8],[9,1,10,1],[9,6,10,6],[9,8,10,8],[5,1,6,1],[5,6,6,6],[5,8,6,8],[0,1,0,8],[1,1,1,8],[3,1,4,1],[3,6,4,6],[3,8,4,8]]}
[null,{"$f":"\"Výsledková listina - Malý svratecký maratón \"&'Prezenční listina'!U2&\" - družstva\"","v":"Výsledková listina - Malý svratecký maratón 2018 - družstva"}]
[null,{"$f":"'Prezenční listina'!U2-1953&\". ročník\"","v":"65. ročník"}]
[null,"Pořadí","Startovní číslo","Příjmení","Jméno","Narození","Oddíl / Bydliště","Čas","Výsledný čas"]
[null,"1.",3,{"$f":"IF(ISERROR(VLOOKUP(C4,'Startovní listina'!$B$5:$G$141,2)),\"\",VLOOKUP(C4,'Startovní listina'!$B$5:$G$141,2))","v":"Hanák"},{"$f":"IF(ISERROR(VLOOKUP(C4,'Startovní listina'!$B$5:$G$141,3)),\"\",VLOOKUP(C4,'Startovní listina'!$B$5:$G$141,3))","v":"Jakub"},{"$f":"IF(ISERROR(VLOOKUP(C4,'Startovní listina'!$B$5:$G$141,4)),\"\",VLOOKUP(C4,'Startovní listina'!$B$5:$G$141,4))","v":1986},{"$f":"IF(K4=K5,K4,\"RŮZNÉ ODDÍLY !!!\")","v":"RŮZNÉ ODDÍLY !!!"},"03:07:50",{"$f":"IF((H4=0),\"\",H4+H5)","v":"05:48:15"},null,{"$f":"IF(ISERROR(VLOOKUP(C4,'Startovní listina'!$B$5:$G$141,5)),\"\",VLOOKUP(C4,'Startovní listina'!$B$5:$G$141,5))","v":"Vír"}]
[null,null,2,{"$f":"IF(ISERROR(VLOOKUP(C5,'Startovní listina'!$B$5:$G$141,2)),\"\",VLOOKUP(C5,'Startovní listina'!$B$5:$G$141,2))","v":"Kuneš"},{"$f":"IF(ISERROR(VLOOKUP(C5,'Startovní listina'!$B$5:$G$141,3)),\"\",VLOOKUP(C5,'Startovní listina'!$B$5:$G$141,3))","v":"David"},{"$f":"IF(ISERROR(VLOOKUP(C5,'Startovní listina'!$B$5:$G$141,4)),\"\",VLOOKUP(C5,'Startovní listina'!$B$5:$G$141,4))","v":1974},null,"02:40:25",null,null,{"$f":"IF(ISERROR(VLOOKUP(C5,'Startovní listina'!$B$5:$G$141,5)),\"\",VLOOKUP(C5,'Startovní listina'!$B$5:$G$141,5))","v":"Tišnov"}]
[null,"2.",11,{"$f":"IF(ISERROR(VLOOKUP(C6,'Startovní listina'!$B$5:$G$141,2)),\"\",VLOOKUP(C6,'Startovní listina'!$B$5:$G$141,2))","v":"Vrba"},{"$f":"IF(ISERROR(VLOOKUP(C6,'Startovní listina'!$B$5:$G$141,3)),\"\",VLOOKUP(C6,'Startovní listina'!$B$5:$G$141,3))","v":"Tomáš"},{"$f":"IF(ISERROR(VLOOKUP(C6,'Startovní listina'!$B$5:$G$141,4)),\"\",VLOOKUP(C6,'Startovní listina'!$B$5:$G$141,4))","v":1986},{"$f":"IF(K6=K7,K6,\"RŮZNÉ ODDÍLY !!!\")","v":"RŮZNÉ ODDÍLY !!!"},"02:01:16",{"$f":"IF((H6=0),\"\",H6+H7)","v":"04:06:56"},null,{"$f":"IF(ISERROR(VLOOKUP(C6,'Startovní listina'!$B$5:$G$141,5)),\"\",VLOOKUP(C6,'Startovní listina'!$B$5:$G$141,5))","v":"Bystré"}]
[null,null,8,{"$f":"IF(ISERROR(VLOOKUP(C7,'Startovní listina'!$B$5:$G$141,2)),\"\",VLOOKUP(C7,'Startovní listina'!$B$5:$G$141,2))","v":"Faja"},{"$f":"IF(ISERROR(VLOOKUP(C7,'Startovní listina'!$B$5:$G$141,3)),\"\",VLOOKUP(C7,'Startovní listina'!$B$5:$G$141,3))","v":"Ondřej"},{"$f":"IF(ISERROR(VLOOKUP(C7,'Startovní listina'!$B$5:$G$141,4)),\"\",VLOOKUP(C7,'Startovní listina'!$B$5:$G$141,4))","v":1976},null,"02:05:40",null,null,{"$f":"IF(ISERROR(VLOOKUP(C7,'Startovní listina'!$B$5:$G$141,5)),\"\",VLOOKUP(C7,'Startovní listina'!$B$5:$G$141,5))","v":"Brno"}]
[null,"3.",9,{"$f":"IF(ISERROR(VLOOKUP(C8,'Startovní listina'!$B$5:$G$141,2)),\"\",VLOOKUP(C8,'Startovní listina'!$B$5:$G$141,2))","v":"Labedz"},{"$f":"IF(ISERROR(VLOOKUP(C8,'Startovní listina'!$B$5:$G$141,3)),\"\",VLOOKUP(C8,'Startovní listina'!$B$5:$G$141,3))","v":"Jan"},{"$f":"IF(ISERROR(VLOOKUP(C8,'Startovní listina'!$B$5:$G$141,4)),\"\",VLOOKUP(C8,'Startovní listina'!$B$5:$G$141,4))","v":1984},{"$f":"IF(K8=K9,K8,\"RŮZNÉ ODDÍLY !!!\")","v":"RŮZNÉ ODDÍLY !!!"},"02:40:16",{"$f":"IF((H8=0),\"\",H8+H9)","v":"05:12:53"},null,{"$f":"IF(ISERROR(VLOOKUP(C8,'Startovní listina'!$B$5:$G$141,5)),\"\",VLOOKUP(C8,'Startovní listina'!$B$5:$G$141,5))","v":"Svinošice"}]
[null,null,10,{"$f":"IF(ISERROR(VLOOKUP(C9,'Startovní listina'!$B$5:$G$141,2)),\"\",VLOOKUP(C9,'Startovní listina'!$B$5:$G$141,2))","v":"Štýbnar"},{"$f":"IF(ISERROR(VLOOKUP(C9,'Startovní listina'!$B$5:$G$141,3)),\"\",VLOOKUP(C9,'Startovní listina'!$B$5:$G$141,3))","v":"Zbyněk"},{"$f":"IF(ISERROR(VLOOKUP(C9,'Startovní listina'!$B$5:$G$141,4)),\"\",VLOOKUP(C9,'Startovní listina'!$B$5:$G$141,4))","v":1974},null,"02:32:37",null,null,{"$f":"IF(ISERROR(VLOOKUP(C9,'Startovní listina'!$B$5:$G$141,5)),\"\",VLOOKUP(C9,'Startovní listina'!$B$5:$G$141,5))","v":0}]
[null,"4.",23,{"$f":"IF(ISERROR(VLOOKUP(C10,'Startovní listina'!$B$5:$G$141,2)),\"\",VLOOKUP(C10,'Startovní listina'!$B$5:$G$141,2))","v":"Šimunek"},{"$f":"IF(ISERROR(VLOOKUP(C10,'Startovní listina'!$B$5:$G$141,3)),\"\",VLOOKUP(C10,'Startovní listina'!$B$5:$G$141,3))","v":"Martin"},{"$f":"IF(ISERROR(VLOOKUP(C10,'Startovní listina'!$B$5:$G$141,4)),\"\",VLOOKUP(C10,'Startovní listina'!$B$5:$G$141,4))","v":1966},{"$f":"IF(K10=K11,K10,\"RŮZNÉ ODDÍLY !!!\")","v":"RŮZNÉ ODDÍLY !!!"},"03:04:10",{"$f":"IF((H10=0),\"\",H10+H11)","v":"06:10:48"},null,{"$f":"IF(ISERROR(VLOOKUP(C10,'Startovní listina'!$B$5:$G$141,5)),\"\",VLOOKUP(C10,'Startovní listina'!$B$5:$G$141,5))","v":"Modřice"}]
[null,null,24,{"$f":"IF(ISERROR(VLOOKUP(C11,'Startovní listina'!$B$5:$G$141,2)),\"\",VLOOKUP(C11,'Startovní listina'!$B$5:$G$141,2))","v":"Nosek"},{"$f":"IF(ISERROR(VLOOKUP(C11,'Startovní listina'!$B$5:$G$141,3)),\"\",VLOOKUP(C11,'Startovní listina'!$B$5:$G$141,3))","v":"Pavel "},{"$f":"IF(ISERROR(VLOOKUP(C11,'Startovní listina'!$B$5:$G$141,4)),\"\",VLOOKUP(C11,'Startovní listina'!$B$5:$G$141,4))","v":1965},null,"03:06:38",null,null,{"$f":"IF(ISERROR(VLOOKUP(C11,'Startovní listina'!$B$5:$G$141,5)),\"\",VLOOKUP(C11,'Startovní listina'!$B$5:$G$141,5))","v":"Slavkov u Brna"}]
[null,"5.",35,{"$f":"IF(ISERROR(VLOOKUP(C12,'Startovní listina'!$B$5:$G$141,2)),\"\",VLOOKUP(C12,'Startovní listina'!$B$5:$G$141,2))","v":"Vintrlík"},{"$f":"IF(ISERROR(VLOOKUP(C12,'Startovní listina'!$B$5:$G$141,3)),\"\",VLOOKUP(C12,'Startovní listina'!$B$5:$G$141,3))","v":"Martin"},{"$f":"IF(ISERROR(VLOOKUP(C12,'Startovní listina'!$B$5:$G$141,4)),\"\",VLOOKUP(C12,'Startovní listina'!$B$5:$G$141,4))","v":1977},{"$f":"IF(K12=K13,K12,\"RŮZNÉ ODDÍLY !!!\")","v":"RŮZNÉ ODDÍLY !!!"},"02:31:40",{"$f":"IF((H12=0),\"\",H12+H13)","v":"06:21:15"},null,{"$f":"IF(ISERROR(VLOOKUP(C12,'Startovní listina'!$B$5:$G$141,5)),\"\",VLOOKUP(C12,'Startovní listina'!$B$5:$G$141,5))","v":"Křepice"}]
[null,null,36,{"$f":"IF(ISERROR(VLOOKUP(C13,'Startovní listina'!$B$5:$G$141,2)),\"\",VLOOKUP(C13,'Startovní listina'!$B$5:$G$141,2))","v":"Hradecký"},{"$f":"IF(ISERROR(VLOOKUP(C13,'Startovní listina'!$B$5:$G$141,3)),\"\",VLOOKUP(C13,'Startovní listina'!$B$5:$G$141,3))","v":"Jaromír"},{"$f":"IF(ISERROR(VLOOKUP(C13,'Startovní listina'!$B$5:$G$141,4)),\"\",VLOOKUP(C13,'Startovní listina'!$B$5:$G$141,4))","v":1985},null,"03:49:35",null,null,{"$f":"IF(ISERROR(VLOOKUP(C13,'Startovní listina'!$B$5:$G$141,5)),\"\",VLOOKUP(C13,'Startovní listina'!$B$5:$G$141,5))","v":"Skuteč"}]
[null,"6.",82,{"$f":"IF(ISERROR(VLOOKUP(C14,'Startovní listina'!$B$5:$G$141,2)),\"\",VLOOKUP(C14,'Startovní listina'!$B$5:$G$141,2))","v":"Kratochvíl"},{"$f":"IF(ISERROR(VLOOKUP(C14,'Startovní listina'!$B$5:$G$141,3)),\"\",VLOOKUP(C14,'Startovní listina'!$B$5:$G$141,3))","v":"Jaroslav"},{"$f":"IF(ISERROR(VLOOKUP(C14,'Startovní listina'!$B$5:$G$141,4)),\"\",VLOOKUP(C14,'Startovní listina'!$B$5:$G$141,4))","v":1977},{"$f":"IF(K14=K15,K14,\"RŮZNÉ ODDÍLY !!!\")","v":"Moravany"},"02:11:00",{"$f":"IF((H14=0),\"\",H14+H15)","v":"04:05:34"},null,{"$f":"IF(ISERROR(VLOOKUP(C14,'Startovní listina'!$B$5:$G$141,5)),\"\",VLOOKUP(C14,'Startovní listina'!$B$5:$G$141,5))","v":"Moravany"}]
[null,null,107,{"$f":"IF(ISERROR(VLOOKUP(C15,'Startovní listina'!$B$5:$G$141,2)),\"\",VLOOKUP(C15,'Startovní listina'!$B$5:$G$141,2))","v":"Kratochvíl"},{"$f":"IF(ISERROR(VLOOKUP(C15,'Startovní listina'!$B$5:$G$141,3)),\"\",VLOOKUP(C15,'Startovní listina'!$B$5:$G$141,3))","v":"Jaroslav"},{"$f":"IF(ISERROR(VLOOKUP(C15,'Startovní listina'!$B$5:$G$141,4)),\"\",VLOOKUP(C15,'Startovní listina'!$B$5:$G$141,4))","v":1977},null,"01:54:34",null,null,{"$f":"IF(ISERROR(VLOOKUP(C15,'Startovní listina'!$B$5:$G$141,5)),\"\",VLOOKUP(C15,'Startovní listina'!$B$5:$G$141,5))","v":"Moravany"}]
[null,"7.",28,{"$f":"IF(ISERROR(VLOOKUP(C16,'Startovní listina'!$B$5:$G$141,2)),\"\",VLOOKUP(C16,'Startovní listina'!$B$5:$G$141,2))","v":"Kupka"},{"$f":"IF(ISERROR(VLOOKUP(C16,'Startovní listina'!$B$5:$G$141,3)),\"\",VLOOKUP(C16,'Startovní listina'!$B$5:$G$141,3))","v":"Pavel"},{"$f":"IF(ISERROR(VLOOKUP(C16,'Startovní listina'!$B$5:$G$141,4)),\"\",VLOOKUP(C16,'Startovní listina'!$B$5:$G$141,4))","v":1975},{"$f":"IF(K16=K17,K16,\"RŮZNÉ ODDÍLY !!!\")","v":"RŮZNÉ ODDÍLY !!!"},"02:19:07",{"$f":"IF((H16=0),\"\",H16+H17)","v":"04:24:14"},null,{"$f":"IF(ISERROR(VLOOKUP(C16,'Startovní listina'!$B$5:$G$141,5)),\"\",VLOOKUP(C16,'Startovní listina'!$B$5:$G$141,5))","v":"Lukovany"}]
[null,null,26,{"$f":"IF(ISERROR(VLOOKUP(C17,'Startovní listina'!$B$5:$G$141,2)),\"\",VLOOKUP(C17,'Startovní listina'!$B$5:$G$141,2))","v":"Hakl"},{"$f":"IF(ISERROR(VLOOKUP(C17,'Startovní listina'!$B$5:$G$141,3)),\"\",VLOOKUP(C17,'Startovní listina'!$B$5:$G$141,3))","v":"Zdeněk "},{"$f":"IF(ISERROR(VLOOKUP(C17,'Startovní listina'!$B$5:$G$141,4)),\"\",VLOOKUP(C17,'Startovní listina'!$B$5:$G$141,4))","v":1982},null,"02:05:07",null,null,{"$f":"IF(ISERROR(VLOOKUP(C17,'Startovní listina'!$B$5:$G$141,5)),\"\",VLOOKUP(C17,'Startovní listina'!$B$5:$G$141,5))","v":"Žďár nad Sázavou "}]
[null,"8.",null,{"$f":"IF(ISERROR(VLOOKUP(C18,'Startovní listina'!$B$5:$G$141,2)),\"\",VLOOKUP(C18,'Startovní listina'!$B$5:$G$141,2))","v":""},{"$f":"IF(ISERROR(VLOOKUP(C18,'Startovní listina'!$B$5:$G$141,3)),\"\",VLOOKUP(C18,'Startovní listina'!$B$5:$G$141,3))","v":""},{"$f":"IF(ISERROR(VLOOKUP(C18,'Startovní listina'!$B$5:$G$141,4)),\"\",VLOOKUP(C18,'Startovní listina'!$B$5:$G$141,4))","v":""},{"$f":"IF(K18=K19,K18,\"RŮZNÉ ODDÍLY !!!\")","v":""},null,{"$f":"IF((H18=0),\"\",H18+H19)","v":""},null,{"$f":"IF(ISERROR(VLOOKUP(C18,'Startovní listina'!$B$5:$G$141,5)),\"\",VLOOKUP(C18,'Startovní listina'!$B$5:$G$141,5))","v":""}]
[null,null,null,{"$f":"IF(ISERROR(VLOOKUP(C19,'Startovní listina'!$B$5:$G$141,2)),\"\",VLOOKUP(C19,'Startovní listina'!$B$5:$G$141,2))","v":""},{"$f":"IF(ISERROR(VLOOKUP(C19,'Startovní listina'!$B$5:$G$141,3)),\"\",VLOOKUP(C19,'Startovní listina'!$B$5:$G$141,3))","v":""},{"$f":"IF(ISERROR(VLOOKUP(C19,'Startovní listina'!$B$5:$G$141,4)),\"\",VLOOKUP(C19,'Startovní listina'!$B$5:$G$141,4))","v":""},null,null,null,null,{"$f":"IF(ISERROR(VLOOKUP(C19,'Startovní listina'!$B$5:$G$141,5)),\"\",VLOOKUP(C19,'Startovní listina'!$B$5:$G$141,5))","v":""}]
[null,"9.",null,{"$f":"IF(ISERROR(VLOOKUP(C20,'Startovní listina'!$B$5:$G$141,2)),\"\",VLOOKUP(C20,'Startovní listina'!$B$5:$G$141,2))","v":""},{"$f":"IF(ISERROR(VLOOKUP(C20,'Startovní listina'!$B$5:$G$141,3)),\"\",VLOOKUP(C20,'Startovní listina'!$B$5:$G$141,3))","v":""},{"$f":"IF(ISERROR(VLOOKUP(C20,'Startovní listina'!$B$5:$G$141,4)),\"\",VLOOKUP(C20,'Startovní listina'!$B$5:$G$141,4))","v":""},{"$f":"IF(K20=K21,K20,\"RŮZNÉ ODDÍLY !!!\")","v":""},null,{"$f":"IF((H20=0),\"\",H20+H21)","v":""},null,{"$f":"IF(ISERROR(VLOOKUP(C20,'Startovní listina'!$B$5:$G$141,5)),\"\",VLOOKUP(C20,'Startovní listina'!$B$5:$G$141,5))","v":""}]
[null,null,null,{"$f":"IF(ISERROR(VLOOKUP(C21,'Startovní listina'!$B$5:$G$141,2)),\"\",VLOOKUP(C21,'Startovní listina'!$B$5:$G$141,2))","v":""},{"$f":"IF(ISERROR(VLOOKUP(C21,'Startovní listina'!$B$5:$G$141,3)),\"\",VLOOKUP(C21,'Startovní listina'!$B$5:$G$141,3))","v":""},{"$f":"IF(ISERROR(VLOOKUP(C21,'Startovní listina'!$B$5:$G$141,4)),\"\",VLOOKUP(C21,'Startovní listina'!$B$5:$G$141,4))","v":""},null,null,null,null,{"$f":"IF(ISERROR(VLOOKUP(C21,'Startovní listina'!$B$5:$G$141,5)),\"\",VLOOKUP(C21,'Startovní listina'!$B$5:$G$141,5))","v":""}]

{"sheet":"Výsledková listina (2)","index":9,"n_rows":103,"n_cols":11,"rows_kept":103,"cut":false,"hidden":true,"merged":[[0,0,0,8],[1,0,1,8],[1,10,12,14],[2,0,2,8]]}
[{"$f":"\"Výsledková listina - Malý svratecký maraton \"&'Prezenční listina'!U2","v":"Výsledková listina - Malý svratecký maraton 2018"}]
["2015-08-22",null,null,null,null,null,null,null,null,null,"\nPoté, co jsou dopsány časy VŠECH běžců, stisknout tlačítko 1.řazení \n\n\nVe sloupci B (Pořadí v kategorii) vytvořit posloupnou číselnou řadu pro každou kategorii a poté stisknout tlačítko 2.řazení\n\n\n                      !!! POZOR!!!\n\n               Použití tlačítek je nevratný krok!"]
[{"$f":"'Prezenční listina'!U2-1953&\". ročník\"","v":"65. ročník"}]
["Celkové pořadí","Pořadí v kategorii","Kategorie","Startovní číslo","Příjmení","Jméno","Narození","Oddíl / Bydliště","Čas"]
[1,1,{"$f":"'Startovní listina'!H47","v":"A"},{"$f":"'Startovní listina'!B47","v":43},{"$f":"'Startovní listina'!C47","v":"Glier"},{"$f":"'Startovní listina'!F47","v":"Doubravník"},{"$f":"'Startovní listina'!G47","v":"SDH Doubravník"},{"$f":"'Startovní listina'!#REF!","v":{"$error":"#REF!"}},"02:19:48"]
[{"$f":"IF('Výsledková listina (2)'!D5<>\"\",A5+1,\"\")","v":2},null,{"$f":"'Startovní listina'!H71","v":""},{"$f":"'Startovní listina'!B71","v":""},{"$f":"'Startovní listina'!C71","v":""},{"$f":"'Startovní listina'!F71","v":""},{"$f":"'Startovní listina'!G71","v":""},{"$f":"'Startovní listina'!#REF!","v":{"$error":"#REF!"}},"02:47:00"]
[{"$f":"IF('Výsledková listina (2)'!D6<>\"\",A6+1,\"\")","v":""},null,{"$f":"'Startovní listina'!H5","v":"A"},{"$f":"'Startovní listina'!B5","v":1},{"$f":"'Startovní listina'!C5","v":"Hübner"},{"$f":"'Startovní listina'!F5","v":"Brno"},{"$f":"'Startovní listina'!G5","v":"SDH Bolešín"},{"$f":"'Startovní listina'!#REF!","v":{"$error":"#REF!"}},"03:02:17"]
[{"$f":"IF('Výsledková listina (2)'!D7<>\"\",A7+1,\"\")","v":{"$error":"#VALUE!"}},null,{"$f":"'Startovní listina'!H85","v":""},{"$f":"'Startovní listina'!B85","v":""},{"$f":"'Startovní listina'!C85","v":""},{"$f":"'Startovní listina'!F85","v":""},{"$f":"'Startovní listina'!G85","v":""},{"$f":"'Startovní listina'!#REF!","v":{"$error":"#REF!"}},"03:28:11"]
[{"$f":"IF('Výsledková listina (2)'!D8<>\"\",A8+1,\"\")","v":""},null,{"$f":"'Startovní listina'!H59","v":""},{"$f":"'Startovní listina'!B59","v":""},{"$f":"'Startovní listina'!C59","v":""},{"$f":"'Startovní listina'!F59","v":""},{"$f":"'Startovní listina'!G59","v":""},{"$f":"'Startovní listina'!#REF!","v":{"$error":"#REF!"}},"02:23:11"]
[{"$f":"IF('Výsledková listina (2)'!D9<>\"\",A9+1,\"\")","v":""},null,{"$f":"'Startovní listina'!H46","v":"B"},{"$f":"'Startovní listina'!B46","v":42},{"$f":"'Startovní listina'!C46","v":"Fritscher"},{"$f":"'Startovní listina'!F46","v":0},{"$f":"'Startovní listina'!G46","v":"TJ Liga 100 Olomouc"},{"$f":"'Startovní listina'!#REF!","v":{"$error":"#REF!"}},"02:50:33"]
[{"$f":"IF('Výsledková listina (2)'!D10<>\"\",A10+1,\"\")","v":{"$error":"#VALUE!"}},null,{"$f":"'Startovní listina'!H28","v":"C"},{"$f":"'Startovní listina'!B28","v":24},{"$f":"'Startovní listina'!C28","v":"Nosek"},{"$f":"'Startovní listina'!F28","v":"Slavkov u Brna"},{"$f":"'Startovní listina'!G28","v":"ASK Slavkov"},{"$f":"'Startovní listina'!#REF!","v":{"$error":"#REF!"}},"02:26:07"]
[{"$f":"IF('Výsledková listina (2)'!D11<>\"\",A11+1,\"\")","v":{"$error":"#VALUE!"}},null,{"$f":"'Startovní listina'!H67","v":""},{"$f":"'Startovní listina'!B67","v":""},{"$f":"'Startovní listina'!C67","v":""},{"$f":"'Startovní listina'!F67","v":""},{"$f":"'Startovní listina'!G67","v":""},{"$f":"'Startovní listina'!#REF!","v":{"$error":"#REF!"}},"02:34:42"]
[{"$f":"IF('Výsledková listina (2)'!D12<>\"\",A12+1,\"\")","v":""},null,{"$f":"'Startovní listina'!H68","v":""},{"$f":"'Startovní listina'!B68","v":""},{"$f":"'Startovní listina'!C68","v":""},{"$f":"'Startovní listina'!F68","v":""},{"$f":"'Startovní listina'!G68","v":""},{"$f":"'Startovní listina'!#REF!","v":{"$error":"#REF!"}},"02:42:43"]
[{"$f":"IF('Výsledková listina (2)'!D13<>\"\",A13+1,\"\")","v":""},null,{"$f":"'Startovní listina'!H62","v":""},{"$f":"'Startovní listina'!B62","v":""},{"$f":"'Startovní listina'!C62","v":""},{"$f":"'Startovní listina'!F62","v":""},{"$f":"'Startovní listina'!G62","v":""},{"$f":"'Startovní listina'!#REF!","v":{"$error":"#REF!"}},"02:42:35"]
[{"$f":"IF('Výsledková listina (2)'!D14<>\"\",A14+1,\"\")","v":""},null,{"$f":"'Startovní listina'!H55","v":""},{"$f":"'Startovní listina'!B55","v":""},{"$f":"'Startovní listina'!C55","v":""},{"$f":"'Startovní listina'!F55","v":""},{"$f":"'Startovní listina'!G55","v":""},{"$f":"'Startovní listina'!#REF!","v":{"$error":"#REF!"}},"02:40:36"]
[{"$f":"IF('Výsledková listina (2)'!D15<>\"\",A15+1,\"\")","v":""},null,{"$f":"'Startovní listina'!H60","v":""},{"$f":"'Startovní listina'!B60","v":""},{"$f":"'Startovní listina'!C60","v":""},{"$f":"'Startovní listina'!F60","v":""},{"$f":"'Startovní listina'!G60","v":""},{"$f":"'Startovní listina'!#REF!","v":{"$error":"#REF!"}},"02:38:54"]
[{"$f":"IF('Výsledková listina (2)'!D16<>\"\",A16+1,\"\")","v":""},null,{"$f":"'Startovní listina'!H7","v":"A"},{"$f":"'Startovní listina'!B7","v":3},{"$f":"'Startovní listina'!C7","v":"Hanák"},{"$f":"'Startovní listina'!F7","v":"Vír"},{"$f":"'Startovní listina'!G7","v":"Plant Powered Runners"},{"$f":"'Startovní listina'!#REF!","v":{"$error":"#REF!"}},"03:07:50"]
[{"$f":"IF('Výsledková listina (2)'!D17<>\"\",A17+1,\"\")","v":{"$error":"#VALUE!"}},null,{"$f":"'Startovní listina'!H63","v":""},{"$f":"'Startovní listina'!B63","v":""},{"$f":"'Startovní listina'!C63","v":""},{"$f":"'Startovní listina'!F63","v":""},{"$f":"'Startovní listina'!G63","v":""},{"$f":"'Startovní listina'!#REF!","v":{"$error":"#REF!"}},"02:39:15"]
[{"$f":"IF('Výsledková listina (2)'!D18<>\"\",A18+1,\"\")","v":""},null,{"$f":"'Startovní listina'!H49","v":""},{"$f":"'Startovní listina'!B49","v":""},{"$f":"'Startovní listina'!C49","v":""},{"$f":"'Startovní listina'!F49","v":""},{"$f":"'Startovní listina'!G49","v":""},{"$f":"'Startovní listina'!#REF!","v":{"$error":"#REF!"}},"02:13:13"]
[{"$f":"IF('Výsledková listina (2)'!D19<>\"\",A19+1,\"\")","v":""},null,{"$f":"'Startovní listina'!H14","v":"B"},{"$f":"'Startovní listina'!B14","v":10},{"$f":"'Startovní listina'!C14","v":"Štýbnar"},{"$f":"'Startovní listina'!F14","v":0},{"$f":"'Startovní listina'!G14","v":"PTEAM"},{"$f":"'Startovní listina'!#REF!","v":{"$error":"#REF!"}},"02:32:37"]
[{"$f":"IF('Výsledková listina (2)'!D20<>\"\",A20+1,\"\")","v":{"$error":"#VALUE!"}},null,{"$f":"'Startovní listina'!H42","v":"G"},{"$f":"'Startovní listina'!B42","v":38},{"$f":"'Startovní listina'!C42","v":"Komárková"},{"$f":"'Startovní listina'!F42","v":"Olešnice na Mor."},{"$f":"'Startovní listina'!G42","v":"SDH Bolešín"},{"$f":"'Startovní listina'!#REF!","v":{"$error":"#REF!"}},"02:49:46"]
[{"$f":"IF('Výsledková listina (2)'!D22<>\"\",A21+1,\"\")","v":""},null,{"$f":"'Startovní listina'!H79","v":""},{"$f":"'Startovní listina'!B79","v":""},{"$f":"'Startovní listina'!C79","v":""},{"$f":"'Startovní listina'!F79","v":""},{"$f":"'Startovní listina'!G79","v":""},{"$f":"'Startovní listina'!#REF!","v":{"$error":"#REF!"}},"02:13:29"]
[{"$f":"IF('Výsledková listina (2)'!D21<>\"\",A22+1,\"\")","v":{"$error":"#VALUE!"}},null,{"$f":"'Startovní listina'!H15","v":"A"},{"$f":"'Startovní listina'!B15","v":11},{"$f":"'Startovní listina'!C15","v":"Vrba"},{"$f":"'Startovní listina'!F15","v":"Bystré"},{"$f":"'Startovní listina'!G15","v":0},{"$f":"'Startovní listina'!#REF!","v":{"$error":"#REF!"}},"02:01:16"]
[{"$f":"IF('Výsledková listina (2)'!D23<>\"\",A23+1,\"\")","v":{"$error":"#VALUE!"}},null,{"$f":"'Startovní listina'!H91","v":""},{"$f":"'Startovní listina'!B91","v":""},{"$f":"'Startovní listina'!C91","v":""},{"$f":"'Startovní listina'!F91","v":""},{"$f":"'Startovní listina'!G91","v":""},{"$f":"'Startovní listina'!#REF!","v":{"$error":"#REF!"}},"02:30:31"]
[{"$f":"IF('Výsledková listina (2)'!D24<>\"\",A24+1,\"\")","v":""},null,{"$f":"'Startovní listina'!H74","v":""},{"$f":"'Startovní listina'!B74","v":""},{"$f":"'Startovní listina'!C74","v":""},{"$f":"'Startovní listina'!F74","v":""},{"$f":"'Startovní listina'!G74","v":""},{"$f":"'Startovní listina'!#REF!","v":{"$error":"#REF!"}},"02:11:00"]
[{"$f":"IF('Výsledková listina (2)'!D25<>\"\",A25+1,\"\")","v":""},null,{"$f":"'Startovní listina'!H44","v":"A"},{"$f":"'Startovní listina'!B44","v":40},{"$f":"'Startovní listina'!C44","v":"Lenhart"},{"$f":"'Startovní listina'!F44","v":"Přerov"},{"$f":"'Startovní listina'!G44","v":"TJ Liga 100 Olomouc"},{"$f":"'Startovní listina'!#REF!","v":{"$error":"#REF!"}},"03:10:37"]
[{"$f":"IF('Výsledková listina (2)'!D26<>\"\",A26+1,\"\")","v":{"$error":"#VALUE!"}},null,{"$f":"'Startovní listina'!H84","v":""},{"$f":"'Startovní listina'!B84","v":""},{"$f":"'Startovní listina'!C84","v":""},{"$f":"'Startovní listina'!F84","v":""},{"$f":"'Startovní listina'!G84","v":""},{"$f":"'Startovní listina'!#REF!","v":{"$error":"#REF!"}},"02:28:22"]
[{"$f":"IF('Výsledková listina (2)'!D27<>\"\",A27+1,\"\")","v":""},null,{"$f":"'Startovní listina'!H87","v":""},{"$f":"'Startovní listina'!B87","v":""},{"$f":"'Startovní listina'!C87","v":""},{"$f":"'Startovní listina'!F87","v":""},{"$f":"'Startovní listina'!G87","v":""},{"$f":"'Startovní listina'!#REF!","v":{"$error":"#REF!"}},"02:29:21"]
[{"$f":"IF('Výsledková listina (2)'!D28<>\"\",A28+1,\"\")","v":""},null,{"$f":"'Startovní listina'!H75","v":""},{"$f":"'Startovní listina'!B75","v":""},{"$f":"'Startovní listina'!C75","v":""},{"$f":"'Startovní listina'!F75","v":""},{"$f":"'Startovní listina'!G75","v":""},{"$f":"'Startovní listina'!#REF!","v":{"$error":"#REF!"}},"03:01:37"]
[{"$f":"IF('Výsledková listina (2)'!D29<>\"\",A29+1,\"\")","v":""},null,{"$f":"'Startovní listina'!H18","v":"C"},{"$f":"'Startovní listina'!B18","v":14},{"$f":"'Startovní listina'!C18","v":"Ožana"},{"$f":"'Startovní listina'!F18","v":"Nové Město na Moravě"},{"$f":"'Startovní listina'!G18","v":"TJ Nové Město na Moravě"},{"$f":"'Startovní listina'!#REF!","v":{"$error":"#REF!"}}]
[{"$f":"IF('Výsledková listina (2)'!D30<>\"\",A30+1,\"\")","v":{"$error":"#VALUE!"}},null,{"$f":"'Startovní listina'!H41","v":"F"},{"$f":"'Startovní listina'!B41","v":37},{"$f":"'Startovní listina'!C41","v":"Tomková"},{"$f":"'Startovní listina'!F41","v":"Letovice"},{"$f":"'Startovní listina'!G41","v":"Letovice"},{"$f":"'Startovní listina'!#REF!","v":{"$error":"#REF!"}},"02:16:46"]
[{"$f":"IF('Výsledková listina (2)'!D31<>\"\",A31+1,\"\")","v":{"$error":"#VALUE!"}},null,{"$f":"'Startovní listina'!H23","v":"C"},{"$f":"'Startovní listina'!B23","v":19},{"$f":"'Startovní listina'!C23","v":"Hýbl"},{"$f":"'Startovní listina'!F23","v":"Hrušovany u Brna"},{"$f":"'Startovní listina'!G23","v":"Hrušovany u Brna"},{"$f":"'Startovní listina'!#REF!","v":{"$error":"#REF!"}}]
[{"$f":"IF('Výsledková listina (2)'!D32<>\"\",A32+1,\"\")","v":{"$error":"#VALUE!"}},null,{"$f":"'Startovní listina'!H57","v":""},{"$f":"'Startovní listina'!B57","v":""},{"$f":"'Startovní listina'!C57","v":""},{"$f":"'Startovní listina'!F57","v":""},{"$f":"'Startovní listina'!G57","v":""},{"$f":"'Startovní listina'!#REF!","v":{"$error":"#REF!"}},"02:42:39"]
[{"$f":"IF('Výsledková listina (2)'!D33<>\"\",A33+1,\"\")","v":""},null,{"$f":"'Startovní listina'!H40","v":"A"},{"$f":"'Startovní listina'!B40","v":36},{"$f":"'Startovní listina'!C40","v":"Hradecký"},{"$f":"'Startovní listina'!F40","v":"Skuteč"},{"$f":"'Startovní listina'!G40","v":0},{"$f":"'Startovní listina'!#REF!","v":{"$error":"#REF!"}},"02:10:10"]
[{"$f":"IF('Výsledková listina (2)'!D34<>\"\",A34+1,\"\")","v":{"$error":"#VALUE!"}},null,{"$f":"'Startovní listina'!H9","v":"A"},{"$f":"'Startovní listina'!B9","v":5},{"$f":"'Startovní listina'!C9","v":"Hrdina"},{"$f":"'Startovní listina'!F9","v":"Rosice"},{"$f":"'Startovní listina'!G9","v":"AC Moravská Slavia Brno"},{"$f":"'Startovní listina'!#REF!","v":{"$error":"#REF!"}},"02:05:55"]
[{"$f":"IF('Výsledková listina (2)'!D35<>\"\",A35+1,\"\")","v":{"$error":"#VALUE!"}},null,{"$f":"'Startovní listina'!H77","v":""},{"$f":"'Startovní listina'!B77","v":""},{"$f":"'Startovní listina'!C77","v":""},{"$f":"'Startovní listina'!F77","v":""},{"$f":"'Startovní listina'!G77","v":""},{"$f":"'Startovní listina'!#REF!","v":{"$error":"#REF!"}}]
[{"$f":"IF('Výsledková listina (2)'!D36<>\"\",A36+1,\"\")","v":""},null,{"$f":"'Startovní listina'!H81","v":""},{"$f":"'Startovní listina'!B81","v":""},{"$f":"'Startovní listina'!C81","v":""},{"$f":"'Startovní listina'!F81","v":""},{"$f":"'Startovní listina'!G81","v":""},{"$f":"'Startovní listina'!#REF!","v":{"$error":"#REF!"}},"03:24:59"]
[{"$f":"IF('Výsledková listina (2)'!D37<>\"\",A37+1,\"\")","v":""},null,{"$f":"'Startovní listina'!H54","v":""},{"$f":"'Startovní listina'!B54","v":""},{"$f":"'Startovní listina'!C54","v":""},{"$f":"'Startovní listina'!F54","v":""},{"$f":"'Startovní listina'!G54","v":""},{"$f":"'Startovní listina'!#REF!","v":{"$error":"#REF!"}},"02:37:38"]
[{"$f":"IF('Výsledková listina (2)'!D38<>\"\",A38+1,\"\")","v":""},null,{"$f":"'Startovní listina'!H94","v":""},{"$f":"'Startovní listina'!B94","v":""},{"$f":"'Startovní listina'!C94","v":""},{"$f":"'Startovní listina'!F94","v":""},{"$f":"'Startovní listina'!G94","v":""},{"$f":"'Startovní listina'!#REF!","v":{"$error":"#REF!"}},"03:13:50"]
[{"$f":"IF('Výsledková listina (2)'!D39<>\"\",A39+1,\"\")","v":""},null,{"$f":"'Startovní listina'!H20","v":"G"},{"$f":"'Startovní listina'!B20","v":16},{"$f":"'Startovní listina'!C20","v":"Kuncová"},{"$f":"'Startovní listina'!F20","v":"Rožná"},{"$f":"'Startovní listina'!G20","v":0},{"$f":"'Startovní listina'!#REF!","v":{"$error":"#REF!"}},"02:43:21"]
[{"$f":"IF('Výsledková listina (2)'!D40<>\"\",A40+1,\"\")","v":{"$error":"#VALUE!"}},null,{"$f":"'Startovní listina'!H19","v":"F"},{"$f":"'Startovní listina'!B19","v":15},{"$f":"'Startovní listina'!C19","v":"Trefilová"},{"$f":"'Startovní listina'!F19","v":"Vír"},{"$f":"'Startovní listina'!G19","v":0},{"$f":"'Startovní listina'!#REF!","v":{"$error":"#REF!"}},"03:01:04"]
[{"$f":"IF('Výsledková listina (2)'!D41<>\"\",A41+1,\"\")","v":{"$error":"#VALUE!"}},null,{"$f":"'Startovní listina'!H69","v":""},{"$f":"'Startovní listina'!B69","v":""},{"$f":"'Startovní listina'!C69","v":""},{"$f":"'Startovní listina'!F69","v":""},{"$f":"'Startovní listina'!G69","v":""},{"$f":"'Startovní listina'!#REF!","v":{"$error":"#REF!"}},"DNF"]
[{"$f":"IF('Výsledková listina (2)'!D42<>\"\",A42+1,\"\")","v":""},null,{"$f":"'Startovní listina'!H38","v":"A"},{"$f":"'Startovní listina'!B38","v":34},{"$f":"'Startovní listina'!C38","v":"Oberreiter"},{"$f":"'Startovní listina'!F38","v":"Polná"},{"$f":"'Startovní listina'!G38","v":0},{"$f":"'Startovní listina'!#REF!","v":{"$error":"#REF!"}},"02:26:38"]
[{"$f":"IF('Výsledková listina (2)'!D43<>\"\",A43+1,\"\")","v":{"$error":"#VALUE!"}},null,{"$f":"'Startovní listina'!H80","v":""},{"$f":"'Startovní listina'!B80","v":""},{"$f":"'Startovní listina'!C80","v":""},{"$f":"'Startovní listina'!F80","v":""},{"$f":"'Startovní listina'!G80","v":""},{"$f":"'Startovní listina'!#REF!","v":{"$error":"#REF!"}},"02:45:32"]
[{"$f":"IF('Výsledková listina (2)'!D44<>\"\",A44+1,\"\")","v":""},null,{"$f":"'Startovní listina'!H53","v":""},{"$f":"'Startovní listina'!B53","v":""},{"$f":"'Startovní listina'!C53","v":""},{"$f":"'Startovní listina'!F53","v":""},{"$f":"'Startovní listina'!G53","v":""},{"$f":"'Startovní listina'!#REF!","v":{"$error":"#REF!"}},"02:46:25"]
[{"$f":"IF('Výsledková listina (2)'!D45<>\"\",A45+1,\"\")","v":""},null,{"$f":"'Startovní listina'!H11","v":"E"},{"$f":"'Startovní listina'!B11","v":7},{"$f":"'Startovní listina'!C11","v":"Holý"},{"$f":"'Startovní listina'!F11","v":0},{"$f":"'Startovní listina'!G11","v":"AC Moravská Slavia"},{"$f":"'Startovní listina'!#REF!","v":{"$error":"#REF!"}},"02:45:37"]
[{"$f":"IF('Výsledková listina (2)'!D46<>\"\",A46+1,\"\")","v":{"$error":"#VALUE!"}},null,{"$f":"'Startovní listina'!H89","v":""},{"$f":"'Startovní listina'!B89","v":""},{"$f":"'Startovní listina'!C89","v":""},{"$f":"'Startovní listina'!F89","v":""},{"$f":"'Startovní listina'!G89","v":""},{"$f":"'Startovní listina'!#REF!","v":{"$error":"#REF!"}},"02:23:07"]
[{"$f":"IF('Výsledková listina (2)'!D47<>\"\",A47+1,\"\")","v":""},null,{"$f":"'Startovní listina'!H93","v":""},{"$f":"'Startovní listina'!B93","v":""},{"$f":"'Startovní listina'!C93","v":""},{"$f":"'Startovní listina'!F93","v":""},{"$f":"'Startovní listina'!G93","v":""},{"$f":"'Startovní listina'!#REF!","v":{"$error":"#REF!"}}]
[{"$f":"IF('Výsledková listina (2)'!D48<>\"\",A48+1,\"\")","v":""},null,{"$f":"'Startovní listina'!H78","v":""},{"$f":"'Startovní listina'!B78","v":""},{"$f":"'Startovní listina'!C78","v":""},{"$f":"'Startovní listina'!F78","v":""},{"$f":"'Startovní listina'!G78","v":""},{"$f":"'Startovní listina'!#REF!","v":{"$error":"#REF!"}},"02:49:04"]
[{"$f":"IF('Výsledková listina (2)'!D49<>\"\",A49+1,\"\")","v":""},null,{"$f":"'Startovní listina'!H35","v":"C"},{"$f":"'Startovní listina'!B35","v":31},{"$f":"'Startovní listina'!C35","v":"Žák"},{"$f":"'Startovní listina'!F35","v":"Stříbrné Hory"},{"$f":"'Startovní listina'!G35","v":0},{"$f":"'Startovní listina'!#REF!","v":{"$error":"#REF!"}},"02:31:40"]
[{"$f":"IF('Výsledková listina (2)'!D50<>\"\",A50+1,\"\")","v":{"$error":"#VALUE!"}},null,{"$f":"'Startovní listina'!H36","v":"G"},{"$f":"'Startovní listina'!B36","v":32},{"$f":"'Startovní listina'!C36","v":"Klinecká"},{"$f":"'Startovní listina'!F36","v":"Hlinsko"},{"$f":"'Startovní listina'!G36","v":"MK Hlinsko"},{"$f":"'Startovní listina'!#REF!","v":{"$error":"#REF!"}}]
[{"$f":"IF('Výsledková listina (2)'!D51<>\"\",A51+1,\"\")","v":{"$error":"#VALUE!"}},null,{"$f":"'Startovní listina'!H29","v":"A"},{"$f":"'Startovní listina'!B29","v":25},{"$f":"'Startovní listina'!C29","v":"Košek"},{"$f":"'Startovní listina'!F29","v":"Brno"},{"$f":"'Startovní listina'!G29","v":0},{"$f":"'Startovní listina'!#REF!","v":{"$error":"#REF!"}},"02:19:07"]
[{"$f":"IF('Výsledková listina (2)'!D52<>\"\",A52+1,\"\")","v":{"$error":"#VALUE!"}},null,{"$f":"'Startovní listina'!H86","v":""},{"$f":"'Startovní listina'!B86","v":""},{"$f":"'Startovní listina'!C86","v":""},{"$f":"'Startovní listina'!F86","v":""},{"$f":"'Startovní listina'!G86","v":""},{"$f":"'Startovní listina'!#REF!","v":{"$error":"#REF!"}},"02:21:00"]
[{"$f":"IF('Výsledková listina (2)'!D53<>\"\",A53+1,\"\")","v":""},null,{"$f":"'Startovní listina'!H17","v":"A"},{"$f":"'Startovní listina'!B17","v":13},{"$f":"'Startovní listina'!C17","v":"Koutský"},{"$f":"'Startovní listina'!F17","v":0},{"$f":"'Startovní listina'!G17","v":"Ledová stěna Vír"},{"$f":"'Startovní listina'!#REF!","v":{"$error":"#REF!"}},"03:06:22"]
[{"$f":"IF('Výsledková listina (2)'!D54<>\"\",A54+1,\"\")","v":{"$error":"#VALUE!"}},null,{"$f":"'Startovní listina'!H37","v":"B"},{"$f":"'Startovní listina'!B37","v":33},{"$f":"'Startovní listina'!C37","v":"Pohanka"},{"$f":"'Startovní listina'!F37","v":0},{"$f":"'Startovní listina'!G37","v":"Track & Field Brno"},{"$f":"'Startovní listina'!#REF!","v":{"$error":"#REF!"}},"02:32:28"]
[{"$f":"IF('Výsledková listina (2)'!D55<>\"\",A55+1,\"\")","v":{"$error":"#VALUE!"}},null,{"$f":"'Startovní listina'!H32","v":"B"},{"$f":"'Startovní listina'!B32","v":28},{"$f":"'Startovní listina'!C32","v":"Kupka"},{"$f":"'Startovní listina'!F32","v":"Lukovany"},{"$f":"'Startovní listina'!G32","v":0},{"$f":"'Startovní listina'!#REF!","v":{"$error":"#REF!"}},"02:59:30"]
[{"$f":"IF('Výsledková listina (2)'!D56<>\"\",A56+1,\"\")","v":{"$error":"#VALUE!"}},null,{"$f":"'Startovní listina'!H58","v":""},{"$f":"'Startovní listina'!B58","v":""},{"$f":"'Startovní listina'!C58","v":""},{"$f":"'Startovní listina'!F58","v":""},{"$f":"'Startovní listina'!G58","v":""},{"$f":"'Startovní listina'!#REF!","v":{"$error":"#REF!"}},"02:07:54"]
[{"$f":"IF('Výsledková listina (2)'!D57<>\"\",A57+1,\"\")","v":""},null,{"$f":"'Startovní listina'!H26","v":"C"},{"$f":"'Startovní listina'!B26","v":22},{"$f":"'Startovní listina'!C26","v":"Svoboda"},{"$f":"'Startovní listina'!F26","v":"Brno"},{"$f":"'Startovní listina'!G26","v":"AC Moravská Slavia Brno"},{"$f":"'Startovní listina'!#REF!","v":{"$error":"#REF!"}},"03:06:38"]
[{"$f":"IF('Výsledková listina (2)'!D58<>\"\",A58+1,\"\")","v":{"$error":"#VALUE!"}},null,{"$f":"'Startovní listina'!H52","v":""},{"$f":"'Startovní listina'!B52","v":""},{"$f":"'Startovní listina'!C52","v":""},{"$f":"'Startovní listina'!F52","v":""},{"$f":"'Startovní listina'!G52","v":""},{"$f":"'Startovní listina'!#REF!","v":{"$error":"#REF!"}},"03:14:48"]
[{"$f":"IF('Výsledková listina (2)'!D59<>\"\",A59+1,\"\")","v":""},null,{"$f":"'Startovní listina'!H66","v":""},{"$f":"'Startovní listina'!B66","v":""},{"$f":"'Startovní listina'!C66","v":""},{"$f":"'Startovní listina'!F66","v":""},{"$f":"'Startovní listina'!G66","v":""},{"$f":"'Startovní listina'!#REF!","v":{"$error":"#REF!"}},"02:46:48"]
[{"$f":"IF('Výsledková listina (2)'!D60<>\"\",A60+1,\"\")","v":""},null,{"$f":"'Startovní listina'!H31","v":"A"},{"$f":"'Startovní listina'!B31","v":27},{"$f":"'Startovní listina'!C31","v":"Kohut"},{"$f":"'Startovní listina'!F31","v":0},{"$f":"'Startovní listina'!G31","v":"Univerzita Brno"},{"$f":"'Startovní listina'!#REF!","v":{"$error":"#REF!"}},"02:38:44"]
[{"$f":"IF('Výsledková listina (2)'!D61<>\"\",A61+1,\"\")","v":{"$error":"#VALUE!"}},null,{"$f":"'Startovní listina'!H92","v":""},{"$f":"'Startovní listina'!B92","v":""},{"$f":"'Startovní listina'!C92","v":""},{"$f":"'Startovní listina'!F92","v":""},{"$f":"'Startovní listina'!G92","v":""},{"$f":"'Startovní listina'!#REF!","v":{"$error":"#REF!"}},"03:04:27"]
[{"$f":"IF('Výsledková listina (2)'!D62<>\"\",A62+1,\"\")","v":""},null,{"$f":"'Startovní listina'!H45","v":"F"},{"$f":"'Startovní listina'!B45","v":41},{"$f":"'Startovní listina'!C45","v":"Matějíková"},{"$f":"'Startovní listina'!F45","v":0},{"$f":"'Startovní listina'!G45","v":"TJ Liga 100 Olomouc"},{"$f":"'Startovní listina'!#REF!","v":{"$error":"#REF!"}},"03:21:11"]
[{"$f":"IF('Výsledková listina (2)'!D63<>\"\",A63+1,\"\")","v":{"$error":"#VALUE!"}},null,{"$f":"'Startovní listina'!H34","v":"C"},{"$f":"'Startovní listina'!B34","v":30},{"$f":"'Startovní listina'!C34","v":"Dvořáček"},{"$f":"'Startovní listina'!F34","v":0},{"$f":"'Startovní listina'!G34","v":"Elite Sport Max Training"},{"$f":"'Startovní listina'!#REF!","v":{"$error":"#REF!"}},"03:00:59"]
[{"$f":"IF('Výsledková listina (2)'!D64<>\"\",A64+1,\"\")","v":{"$error":"#VALUE!"}},null,{"$f":"'Startovní listina'!H8","v":"F"},{"$f":"'Startovní listina'!B8","v":4},{"$f":"'Startovní listina'!C8","v":"Pešáková"},{"$f":"'Startovní listina'!F8","v":"Tetčice"},{"$f":"'Startovní listina'!G8","v":"AC Racers"},{"$f":"'Startovní listina'!#REF!","v":{"$error":"#REF!"}},"03:30:08"]
[{"$f":"IF('Výsledková listina (2)'!D65<>\"\",A65+1,\"\")","v":{"$error":"#VALUE!"}},null,{"$f":"'Startovní listina'!H73","v":""},{"$f":"'Startovní listina'!B73","v":""},{"$f":"'Startovní listina'!C73","v":""},{"$f":"'Startovní listina'!F73","v":""},{"$f":"'Startovní listina'!G73","v":""},{"$f":"'Startovní listina'!#REF!","v":{"$error":"#REF!"}},"03:01:32"]
[{"$f":"IF('Výsledková listina (2)'!D66<>\"\",A66+1,\"\")","v":""},null,{"$f":"'Startovní listina'!H27","v":"C"},{"$f":"'Startovní listina'!B27","v":23},{"$f":"'Startovní listina'!C27","v":"Šimunek"},{"$f":"'Startovní listina'!F27","v":"Modřice"},{"$f":"'Startovní listina'!G27","v":"Modřice"},{"$f":"'Startovní listina'!#REF!","v":{"$error":"#REF!"}},"02:05:07"]
[{"$f":"IF('Výsledková listina (2)'!D67<>\"\",A67+1,\"\")","v":{"$error":"#VALUE!"}},null,{"$f":"'Startovní listina'!H70","v":""},{"$f":"'Startovní listina'!B70","v":""},{"$f":"'Startovní listina'!C70","v":""},{"$f":"'Startovní listina'!F70","v":""},{"$f":"'Startovní listina'!G70","v":""},{"$f":"'Startovní listina'!#REF!","v":{"$error":"#REF!"}},"02:57:35"]
[{"$f":"IF('Výsledková listina (2)'!D68<>\"\",A68+1,\"\")","v":""},null,{"$f":"'Startovní listina'!H51","v":""},{"$f":"'Startovní listina'!B51","v":""},{"$f":"'Startovní listina'!C51","v":""},{"$f":"'Startovní listina'!F51","v":""},{"$f":"'Startovní listina'!G51","v":""},{"$f":"'Startovní listina'!#REF!","v":{"$error":"#REF!"}},"02:19:36"]
[{"$f":"IF('Výsledková listina (2)'!D69<>\"\",A69+1,\"\")","v":""},null,{"$f":"'Startovní listina'!H98","v":""},{"$f":"'Startovní listina'!B98","v":""},{"$f":"'Startovní listina'!C98","v":""},{"$f":"'Startovní listina'!F98","v":""},{"$f":"'Startovní listina'!G98","v":""},{"$f":"'Startovní listina'!#REF!","v":{"$error":"#REF!"}},"01:54:34"]
[{"$f":"IF('Výsledková listina (2)'!D70<>\"\",A70+1,\"\")","v":""},null,{"$f":"'Startovní listina'!H50","v":""},{"$f":"'Startovní listina'!B50","v":""},{"$f":"'Startovní listina'!C50","v":""},{"$f":"'Startovní listina'!F50","v":""},{"$f":"'Startovní listina'!G50","v":""},{"$f":"'Startovní listina'!#REF!","v":{"$error":"#REF!"}},"02:21:57"]
[{"$f":"IF('Výsledková listina (2)'!D71<>\"\",A71+1,\"\")","v":""},null,{"$f":"'Startovní listina'!H21","v":"C"},{"$f":"'Startovní listina'!B21","v":17},{"$f":"'Startovní listina'!C21","v":"Krátký"},{"$f":"'Startovní listina'!F21","v":"Vysoká nad Labem"},{"$f":"'Startovní listina'!G21","v":"Hvězda Pardubice"},{"$f":"'Startovní listina'!#REF!","v":{"$error":"#REF!"}}]
[{"$f":"IF('Výsledková listina (2)'!D72<>\"\",A72+1,\"\")","v":{"$error":"#VALUE!"}},null,{"$f":"'Startovní listina'!H6","v":"B"},{"$f":"'Startovní listina'!B6","v":2},{"$f":"'Startovní listina'!C6","v":"Kuneš"},{"$f":"'Startovní listina'!F6","v":"Tišnov"},{"$f":"'Startovní listina'!G6","v":"EURUNNER"},{"$f":"'Startovní listina'!#REF!","v":{"$error":"#REF!"}},"02:40:25"]
[{"$f":"IF('Výsledková listina (2)'!D73<>\"\",A73+1,\"\")","v":{"$error":"#VALUE!"}},null,{"$f":"'Startovní listina'!H48","v":"B"},{"$f":"'Startovní listina'!B48","v":44},{"$f":"'Startovní listina'!C48","v":"Kratochvíl"},{"$f":"'Startovní listina'!F48","v":"Moravany"},{"$f":"'Startovní listina'!G48","v":"SDH Hluboké"},{"$f":"'Startovní listina'!#REF!","v":{"$error":"#REF!"}},"02:21:35"]
[{"$f":"IF('Výsledková listina (2)'!D74<>\"\",A74+1,\"\")","v":{"$error":"#VALUE!"}},null,{"$f":"'Startovní listina'!H97","v":""},{"$f":"'Startovní listina'!B97","v":""},{"$f":"'Startovní listina'!C97","v":""},{"$f":"'Startovní listina'!F97","v":""},{"$f":"'Startovní listina'!G97","v":""},{"$f":"'Startovní listina'!#REF!","v":{"$error":"#REF!"}},"03:14:54"]
[{"$f":"IF('Výsledková listina (2)'!D75<>\"\",A75+1,\"\")","v":""},null,{"$f":"'Startovní listina'!H22","v":"D"},{"$f":"'Startovní listina'!B22","v":18},{"$f":"'Startovní listina'!C22","v":"Mareš"},{"$f":"'Startovní listina'!F22","v":"Brno"},{"$f":"'Startovní listina'!G22","v":"Posilovna Průvan Brno"},{"$f":"'Startovní listina'!#REF!","v":{"$error":"#REF!"}},"02:25:09"]
[{"$f":"IF('Výsledková listina (2)'!D76<>\"\",A76+1,\"\")","v":{"$error":"#VALUE!"}},null,{"$f":"'Startovní listina'!H82","v":""},{"$f":"'Startovní listina'!B82","v":""},{"$f":"'Startovní listina'!C82","v":""},{"$f":"'Startovní listina'!F82","v":""},{"$f":"'Startovní listina'!G82","v":""},{"$f":"'Startovní listina'!#REF!","v":{"$error":"#REF!"}},"02:50:59"]
[{"$f":"IF('Výsledková listina (2)'!D77<>\"\",A77+1,\"\")","v":""},null,{"$f":"'Startovní listina'!H96","v":""},{"$f":"'Startovní listina'!B96","v":""},{"$f":"'Startovní listina'!C96","v":""},{"$f":"'Startovní listina'!F96","v":""},{"$f":"'Startovní listina'!G96","v":""},{"$f":"'Startovní listina'!#REF!","v":{"$error":"#REF!"}},"03:12:26"]
[{"$f":"IF('Výsledková listina (2)'!D78<>\"\",A78+1,\"\")","v":""},null,{"$f":"'Startovní listina'!H30","v":"A"},{"$f":"'Startovní listina'!B30","v":26},{"$f":"'Startovní listina'!C30","v":"Hakl"},{"$f":"'Startovní listina'!F30","v":"Žďár nad Sázavou "},{"$f":"'Startovní listina'!G30","v":"SK Tri Cyklochlubna"},{"$f":"'Startovní listina'!#REF!","v":{"$error":"#REF!"}},"02:37:53"]
[{"$f":"IF('Výsledková listina (2)'!D79<>\"\",A79+1,\"\")","v":{"$error":"#VALUE!"}},null,{"$f":"'Startovní listina'!H64","v":""},{"$f":"'Startovní listina'!B64","v":""},{"$f":"'Startovní listina'!C64","v":""},{"$f":"'Startovní listina'!F64","v":""},{"$f":"'Startovní listina'!G64","v":""},{"$f":"'Startovní listina'!#REF!","v":{"$error":"#REF!"}},"03:18:47"]
[{"$f":"IF('Výsledková listina (2)'!D80<>\"\",A80+1,\"\")","v":""},null,{"$f":"'Startovní listina'!H39","v":"B"},{"$f":"'Startovní listina'!B39","v":35},{"$f":"'Startovní listina'!C39","v":"Vintrlík"},{"$f":"'Startovní listina'!F39","v":"Křepice"},{"$f":"'Startovní listina'!G39","v":"Triatlon Křepice"},{"$f":"'Startovní listina'!#REF!","v":{"$error":"#REF!"}},"02:07:35"]
[{"$f":"IF('Výsledková listina (2)'!D81<>\"\",A81+1,\"\")","v":{"$error":"#VALUE!"}},null,{"$f":"'Startovní listina'!H56","v":""},{"$f":"'Startovní listina'!B56","v":""},{"$f":"'Startovní listina'!C56","v":""},{"$f":"'Startovní listina'!F56","v":""},{"$f":"'Startovní listina'!G56","v":""},{"$f":"'Startovní listina'!#REF!","v":{"$error":"#REF!"}},"02:24:19"]
[{"$f":"IF('Výsledková listina (2)'!D82<>\"\",A82+1,\"\")","v":""},null,{"$f":"'Startovní listina'!H83","v":""},{"$f":"'Startovní listina'!B83","v":""},{"$f":"'Startovní listina'!C83","v":""},{"$f":"'Startovní listina'!F83","v":""},{"$f":"'Startovní listina'!G83","v":""},{"$f":"'Startovní listina'!#REF!","v":{"$error":"#REF!"}},"02:31:15"]
[{"$f":"IF('Výsledková listina (2)'!D83<>\"\",A83+1,\"\")","v":""},null,{"$f":"'Startovní listina'!H61","v":""},{"$f":"'Startovní listina'!B61","v":""},{"$f":"'Startovní listina'!C61","v":""},{"$f":"'Startovní listina'!F61","v":""},{"$f":"'Startovní listina'!G61","v":""},{"$f":"'Startovní listina'!#REF!","v":{"$error":"#REF!"}},"02:27:55"]
[{"$f":"IF('Výsledková listina (2)'!D84<>\"\",A84+1,\"\")","v":""},null,{"$f":"'Startovní listina'!H95","v":""},{"$f":"'Startovní listina'!B95","v":""},{"$f":"'Startovní listina'!C95","v":""},{"$f":"'Startovní listina'!F95","v":""},{"$f":"'Startovní listina'!G95","v":""},{"$f":"'Startovní listina'!#REF!","v":{"$error":"#REF!"}},"02:34:44"]
[{"$f":"IF('Výsledková listina (2)'!D85<>\"\",A85+1,\"\")","v":""},null,{"$f":"'Startovní listina'!H65","v":""},{"$f":"'Startovní listina'!B65","v":""},{"$f":"'Startovní listina'!C65","v":""},{"$f":"'Startovní listina'!F65","v":""},{"$f":"'Startovní listina'!G65","v":""},{"$f":"'Startovní listina'!#REF!","v":{"$error":"#REF!"}},"02:58:55"]
[{"$f":"IF('Výsledková listina (2)'!D86<>\"\",A86+1,\"\")","v":""},null,{"$f":"'Startovní listina'!H43","v":"B"},{"$f":"'Startovní listina'!B43","v":39},{"$f":"'Startovní listina'!C43","v":"Konečný"},{"$f":"'Startovní listina'!F43","v":"Kuřim"},{"$f":"'Startovní listina'!G43","v":0},{"$f":"'Startovní listina'!#REF!","v":{"$error":"#REF!"}},"02:32:49"]
[{"$f":"IF('Výsledková listina (2)'!D87<>\"\",A87+1,\"\")","v":{"$error":"#VALUE!"}},null,{"$f":"'Startovní listina'!H33","v":"A"},{"$f":"'Startovní listina'!B33","v":29},{"$f":"'Startovní listina'!C33","v":"Šebánek"},{"$f":"'Startovní listina'!F33","v":"Rájec"},{"$f":"'Startovní listina'!G33","v":0},{"$f":"'Startovní listina'!#REF!","v":{"$error":"#REF!"}}]
[{"$f":"IF('Výsledková listina (2)'!D88<>\"\",A88+1,\"\")","v":{"$error":"#VALUE!"}},null,{"$f":"'Startovní listina'!H76","v":""},{"$f":"'Startovní listina'!B76","v":""},{"$f":"'Startovní listina'!C76","v":""},{"$f":"'Startovní listina'!F76","v":""},{"$f":"'Startovní listina'!G76","v":""},{"$f":"'Startovní listina'!#REF!","v":{"$error":"#REF!"}},"03:18:56"]
[{"$f":"IF('Výsledková listina (2)'!D89<>\"\",A89+1,\"\")","v":""},null,{"$f":"'Startovní listina'!H12","v":"B"},{"$f":"'Startovní listina'!B12","v":8},{"$f":"'Startovní listina'!C12","v":"Faja"},{"$f":"'Startovní listina'!F12","v":"Brno"},{"$f":"'Startovní listina'!G12","v":0},{"$f":"'Startovní listina'!#REF!","v":{"$error":"#REF!"}},"02:05:40"]
[{"$f":"IF('Výsledková listina (2)'!D90<>\"\",A90+1,\"\")","v":{"$error":"#VALUE!"}},null,{"$f":"'Startovní listina'!H24","v":"B"},{"$f":"'Startovní listina'!B24","v":20},{"$f":"'Startovní listina'!C24","v":"Kropáček"},{"$f":"'Startovní listina'!F24","v":"Brno"},{"$f":"'Startovní listina'!G24","v":0},{"$f":"'Startovní listina'!#REF!","v":{"$error":"#REF!"}},"02:08:44"]
[{"$f":"IF('Výsledková listina (2)'!D91<>\"\",A91+1,\"\")","v":{"$error":"#VALUE!"}},null,{"$f":"'Startovní listina'!H16","v":"H"},{"$f":"'Startovní listina'!B16","v":12},{"$f":"'Startovní listina'!C16","v":"Breburdová"},{"$f":"'Startovní listina'!F16","v":"19800 Praha 9, Tálinská 999"},{"$f":"'Startovní listina'!G16","v":"Maraton klub Kladno"},{"$f":"'Startovní listina'!#REF!","v":{"$error":"#REF!"}}]
[{"$f":"IF('Výsledková listina (2)'!D92<>\"\",A92+1,\"\")","v":{"$error":"#VALUE!"}},null,{"$f":"'Startovní listina'!H88","v":""},{"$f":"'Startovní listina'!B88","v":""},{"$f":"'Startovní listina'!C88","v":""},{"$f":"'Startovní listina'!F88","v":""},{"$f":"'Startovní listina'!G88","v":""},{"$f":"'Startovní listina'!#REF!","v":{"$error":"#REF!"}},"02:53:55"]
[{"$f":"IF('Výsledková listina (2)'!D93<>\"\",A93+1,\"\")","v":""},null,{"$f":"'Startovní listina'!H90","v":""},{"$f":"'Startovní listina'!B90","v":""},{"$f":"'Startovní listina'!C90","v":""},{"$f":"'Startovní listina'!F90","v":""},{"$f":"'Startovní listina'!G90","v":""},{"$f":"'Startovní listina'!#REF!","v":{"$error":"#REF!"}},"02:55:52"]
[{"$f":"IF('Výsledková listina (2)'!D94<>\"\",A94+1,\"\")","v":""},null,{"$f":"'Startovní listina'!H25","v":"A"},{"$f":"'Startovní listina'!B25","v":21},{"$f":"'Startovní listina'!C25","v":"Toman"},{"$f":"'Startovní listina'!F25","v":"Litomysl"},{"$f":"'Startovní listina'!G25","v":"AFK Kornice"},{"$f":"'Startovní listina'!#REF!","v":{"$error":"#REF!"}},"03:04:10"]
[{"$f":"IF('Výsledková listina (2)'!D95<>\"\",A95+1,\"\")","v":{"$error":"#VALUE!"}},null,{"$f":"'Startovní listina'!H72","v":""},{"$f":"'Startovní listina'!B72","v":""},{"$f":"'Startovní listina'!C72","v":""},{"$f":"'Startovní listina'!F72","v":""},{"$f":"'Startovní listina'!G72","v":""},{"$f":"'Startovní listina'!#REF!","v":{"$error":"#REF!"}}]
[{"$f":"IF('Výsledková listina (2)'!D96<>\"\",A96+1,\"\")","v":""},null,{"$f":"'Startovní listina'!H13","v":"A"},{"$f":"'Startovní listina'!B13","v":9},{"$f":"'Startovní listina'!C13","v":"Labedz"},{"$f":"'Startovní listina'!F13","v":"Svinošice"},{"$f":"'Startovní listina'!G13","v":0},{"$f":"'Startovní listina'!#REF!","v":{"$error":"#REF!"}},"02:40:16"]
[{"$f":"IF('Výsledková listina (2)'!D97<>\"\",A97+1,\"\")","v":{"$error":"#VALUE!"}},null,{"$f":"'Startovní listina'!H10","v":"B"},{"$f":"'Startovní listina'!B10","v":6},{"$f":"'Startovní listina'!C10","v":"Šerák"},{"$f":"'Startovní listina'!F10","v":0},{"$f":"'Startovní listina'!G10","v":"Sokol Bílovice n. Svit."},{"$f":"'Startovní listina'!#REF!","v":{"$error":"#REF!"}},"03:00:21"]
[{"$f":"IF('Výsledková listina (2)'!D98<>\"\",A98+1,\"\")","v":{"$error":"#VALUE!"}},null,{"$f":"'Startovní listina'!H99","v":""},{"$f":"'Startovní listina'!B99","v":""},{"$f":"'Startovní listina'!C99","v":""},{"$f":"'Startovní listina'!F99","v":""},{"$f":"'Startovní listina'!G99","v":""},{"$f":"'Startovní listina'!#REF!","v":{"$error":"#REF!"}}]
[{"$f":"IF('Výsledková listina (2)'!D99<>\"\",A99+1,\"\")","v":""},null,{"$f":"'Startovní listina'!H100","v":""},{"$f":"'Startovní listina'!B100","v":""},{"$f":"'Startovní listina'!C100","v":""},{"$f":"'Startovní listina'!F100","v":""},{"$f":"'Startovní listina'!G100","v":""},{"$f":"'Startovní listina'!#REF!","v":{"$error":"#REF!"}}]
[{"$f":"IF('Výsledková listina (2)'!D100<>\"\",A100+1,\"\")","v":""},null,{"$f":"'Startovní listina'!H101","v":""},{"$f":"'Startovní listina'!B101","v":""},{"$f":"'Startovní listina'!C101","v":""},{"$f":"'Startovní listina'!F101","v":""},{"$f":"'Startovní listina'!G101","v":""},{"$f":"'Startovní listina'!#REF!","v":{"$error":"#REF!"}}]
[{"$f":"IF('Výsledková listina (2)'!D101<>\"\",A101+1,\"\")","v":""},null,{"$f":"'Startovní listina'!H102","v":""},{"$f":"'Startovní listina'!B102","v":""},{"$f":"'Startovní listina'!C102","v":""},{"$f":"'Startovní listina'!F102","v":""},{"$f":"'Startovní listina'!G102","v":""},{"$f":"'Startovní listina'!#REF!","v":{"$error":"#REF!"}}]
[{"$f":"IF('Výsledková listina (2)'!D102<>\"\",A102+1,\"\")","v":""},null,{"$f":"'Startovní listina'!H103","v":""},{"$f":"'Startovní listina'!B103","v":""},{"$f":"'Startovní listina'!C103","v":""},{"$f":"'Startovní listina'!F103","v":""},{"$f":"'Startovní listina'!G103","v":""},{"$f":"'Startovní listina'!#REF!","v":{"$error":"#REF!"}}]